Body Name,Vendor Number,Vendor Name,Amount,Cost Centre,Service Label,BV Code,Period
Slough Borough Council,806064,24 X 7 Buckinghamshire Ltd,"1,273.92",F123,Schools,Supplies and Services,Jan-22
Slough Borough Council,806901,4way Consulting Ltd,"1,579.18",P209,Capital,Capital Charges,Jan-22
Slough Borough Council,1055,A J Chapman,"2,860.00",F123,Schools,Supplies and Services,Jan-22
Slough Borough Council,536,Ability Housing Association,"1,023.74",B298,Finance,Supplies and Services,Jan-22
Slough Borough Council,536,Ability Housing Association,"2,348.00",B298,Finance,Supplies and Services,Jan-22
Slough Borough Council,536,Ability Housing Association,"1,193.96",B324,Finance,Supplies and Services,Jan-22
Slough Borough Council,536,Ability Housing Association,"3,076.80",M42E,Adult Social Care Operations,Supplies and Services,Jan-22
Slough Borough Council,536,Ability Housing Association,"2,731.36",M42E,Adult Social Care Operations,Supplies and Services,Jan-22
Slough Borough Council,536,Ability Housing Association,"2,675.13",M42E,Adult Social Care Operations,Supplies and Services,Jan-22
Slough Borough Council,536,Ability Housing Association,"2,517.48",M42E,Adult Social Care Operations,Supplies and Services,Jan-22
Slough Borough Council,536,Ability Housing Association,"1,272.30",M42E,Adult Social Care Operations,Supplies and Services,Jan-22
Slough Borough Council,536,Ability Housing Association,"1,855.72",M42E,Adult Social Care Operations,Supplies and Services,Jan-22
Slough Borough Council,536,Ability Housing Association,"2,630.94",M42E,Adult Social Care Operations,Supplies and Services,Jan-22
Slough Borough Council,536,Ability Housing Association,"1,429.95",M42E,Adult Social Care Operations,Supplies and Services,Jan-22
Slough Borough Council,536,Ability Housing Association,"2,530.52",M42E,Adult Social Care Operations,Supplies and Services,Jan-22
Slough Borough Council,536,Ability Housing Association,"1,446.01",M42E,Adult Social Care Operations,Supplies and Services,Jan-22
Slough Borough Council,536,Ability Housing Association,"1,894.89",M42E,Adult Social Care Operations,Supplies and Services,Jan-22
Slough Borough Council,536,Ability Housing Association,"2,999.46",M42E,Adult Social Care Operations,Supplies and Services,Jan-22
Slough Borough Council,536,Ability Housing Association,"2,698.23",M42E,Adult Social Care Operations,Supplies and Services,Jan-22
Slough Borough Council,536,Ability Housing Association,"2,437.15",M42E,Adult Social Care Operations,Supplies and Services,Jan-22
Slough Borough Council,536,Ability Housing Association,"2,691.19",M42E,Adult Social Care Operations,Supplies and Services,Jan-22
Slough Borough Council,536,Ability Housing Association,"2,358.52",M42E,Adult Social Care Operations,Supplies and Services,Jan-22
Slough Borough Council,536,Ability Housing Association,"2,851.86",M42E,Adult Social Care Operations,Supplies and Services,Jan-22
Slough Borough Council,536,Ability Housing Association,"3,490.57",M42E,Adult Social Care Operations,Supplies and Services,Jan-22
Slough Borough Council,536,Ability Housing Association,-550.32,M42E,Adult Social Care Operations,Supplies and Services,Jan-22
Slough Borough Council,536,Ability Housing Association,"2,358.52",M42E,Adult Social Care Operations,Supplies and Services,Jan-22
Slough Borough Council,536,Ability Housing Association,"2,437.14",M42E,Adult Social Care Operations,Supplies and Services,Jan-22
Slough Borough Council,536,Ability Housing Association,"1,100.66",M42E,Adult Social Care Operations,Supplies and Services,Jan-22
Slough Borough Council,536,Ability Housing Association,"2,798.65",M42E,Adult Social Care Operations,Supplies and Services,Jan-22
Slough Borough Council,536,Ability Housing Association,"2,358.52",M42E,Adult Social Care Operations,Supplies and Services,Jan-22
Slough Borough Council,536,Ability Housing Association,"2,437.14",M42E,Adult Social Care Operations,Supplies and Services,Jan-22
Slough Borough Council,536,Ability Housing Association,"2,437.14",M42E,Adult Social Care Operations,Supplies and Services,Jan-22
Slough Borough Council,536,Ability Housing Association,"1,815.55",M44E,Adult Social Care Operations,Supplies and Services,Jan-22
Slough Borough Council,536,Ability Housing Association,"2,221.24",M44E,Adult Social Care Operations,Supplies and Services,Jan-22
Slough Borough Council,536,Ability Housing Association,"2,301.58",M44E,Adult Social Care Operations,Supplies and Services,Jan-22
Slough Borough Council,536,Ability Housing Association,"1,883.84",M44E,Adult Social Care Operations,Supplies and Services,Jan-22
Slough Borough Council,804502,ACE Education,750.00,F169,DSG - Schools,Indirect Employee Expenses,Jan-22
Slough Borough Council,807554,Acorn Care & Education Ltd,"2,784.00",F558,DSG - High Needs Block,Supplies and Services,Jan-22
Slough Borough Council,807554,Acorn Care & Education Ltd,"4,160.00",F462,DSG - High Needs Block,Supplies and Services,Jan-22
Slough Borough Council,807554,Acorn Care & Education Ltd,"4,827.14",F462,DSG - High Needs Block,Supplies and Services,Jan-22
Slough Borough Council,807554,Acorn Care & Education Ltd,"4,671.43",F462,DSG - High Needs Block,Supplies and Services,Jan-22
Slough Borough Council,807554,Acorn Care & Education Ltd,"5,066.15",F462,DSG - High Needs Block,Supplies and Services,Jan-22
Slough Borough Council,807554,Acorn Care & Education Ltd,"4,457.14",F462,DSG - High Needs Block,Supplies and Services,Jan-22
Slough Borough Council,807554,Acorn Care & Education Ltd,"4,902.73",F462,DSG - High Needs Block,Supplies and Services,Jan-22
Slough Borough Council,807554,Acorn Care & Education Ltd,"4,605.71",F462,DSG - High Needs Block,Supplies and Services,Jan-22
Slough Borough Council,807554,Acorn Care & Education Ltd,"14,235.80",F462,DSG - High Needs Block,Supplies and Services,Jan-22
Slough Borough Council,807554,Acorn Care & Education Ltd,"14,493.24",F462,DSG - High Needs Block,Supplies and Services,Jan-22
Slough Borough Council,807554,Acorn Care & Education Ltd,"4,827.14",F462,DSG - High Needs Block,Supplies and Services,Jan-22
Slough Borough Council,807554,Acorn Care & Education Ltd,"14,493.23",F462,DSG - High Needs Block,Supplies and Services,Jan-22
Slough Borough Council,807554,Acorn Care & Education Ltd,"3,764.28",F462,DSG - High Needs Block,Supplies and Services,Jan-22
Slough Borough Council,807554,Acorn Care & Education Ltd,"3,642.86",F462,DSG - High Needs Block,Supplies and Services,Jan-22
Slough Borough Council,807554,Acorn Care & Education Ltd,"4,457.14",F462,DSG - High Needs Block,Supplies and Services,Jan-22
Slough Borough Council,807554,Acorn Care & Education Ltd,"4,605.71",F462,DSG - High Needs Block,Supplies and Services,Jan-22
Slough Borough Council,807554,Acorn Care & Education Ltd,"4,605.71",F462,DSG - High Needs Block,Supplies and Services,Jan-22
Slough Borough Council,807554,Acorn Care & Education Ltd,"4,360.00",F462,DSG - High Needs Block,Supplies and Services,Jan-22
Slough Borough Council,807554,Acorn Care & Education Ltd,"3,764.28",F462,DSG - High Needs Block,Supplies and Services,Jan-22
Slough Borough Council,807554,Acorn Care & Education Ltd,"3,764.28",F462,DSG - High Needs Block,Supplies and Services,Jan-22
Slough Borough Council,807554,Acorn Care & Education Ltd,"3,642.86",F462,DSG - High Needs Block,Supplies and Services,Jan-22
Slough Borough Council,807554,Acorn Care & Education Ltd,"4,902.73",F462,DSG - High Needs Block,Supplies and Services,Jan-22
Slough Borough Council,807554,Acorn Care & Education Ltd,"14,235.80",F462,DSG - High Needs Block,Supplies and Services,Jan-22
Slough Borough Council,807554,Acorn Care & Education Ltd,"4,457.14",F462,DSG - High Needs Block,Supplies and Services,Jan-22
Slough Borough Council,807554,Acorn Care & Education Ltd,"5,066.15",F462,DSG - High Needs Block,Supplies and Services,Jan-22
Slough Borough Council,807554,Acorn Care & Education Ltd,"5,066.15",F462,DSG - High Needs Block,Supplies and Services,Jan-22
Slough Borough Council,807554,Acorn Care & Education Ltd,"4,827.14",F462,DSG - High Needs Block,Supplies and Services,Jan-22
Slough Borough Council,807554,Acorn Care & Education Ltd,"4,827.14",F462,DSG - High Needs Block,Supplies and Services,Jan-22
Slough Borough Council,807554,Acorn Care & Education Ltd,"5,066.15",F462,DSG - High Needs Block,Supplies and Services,Jan-22
Slough Borough Council,807554,Acorn Care & Education Ltd,"4,605.71",F462,DSG - High Needs Block,Supplies and Services,Jan-22
Slough Borough Council,807554,Acorn Care & Education Ltd,"4,457.14",F462,DSG - High Needs Block,Supplies and Services,Jan-22
Slough Borough Council,807554,Acorn Care & Education Ltd,"4,605.71",F462,DSG - High Needs Block,Supplies and Services,Jan-22
Slough Borough Council,807554,Acorn Care & Education Ltd,"4,671.43",F462,DSG - High Needs Block,Supplies and Services,Jan-22
Slough Borough Council,807554,Acorn Care & Education Ltd,"14,235.80",F462,DSG - High Needs Block,Supplies and Services,Jan-22
Slough Borough Council,807554,Acorn Care & Education Ltd,"14,235.80",F462,DSG - High Needs Block,Supplies and Services,Jan-22
Slough Borough Council,807554,Acorn Care & Education Ltd,"1,740.00",F462,DSG - High Needs Block,Supplies and Services,Jan-22
Slough Borough Council,807554,Acorn Care & Education Ltd,"4,827.14",F462,DSG - High Needs Block,Supplies and Services,Jan-22
Slough Borough Council,807554,Acorn Care & Education Ltd,"3,828.00",F462,DSG - High Needs Block,Supplies and Services,Jan-22
Slough Borough Council,807554,Acorn Care & Education Ltd,"2,784.00",F462,DSG - High Needs Block,Supplies and Services,Jan-22
Slough Borough Council,807554,Acorn Care & Education Ltd,"3,392.00",F462,DSG - High Needs Block,Supplies and Services,Jan-22
Slough Borough Council,807554,Acorn Care & Education Ltd,"2,262.00",F462,DSG - High Needs Block,Supplies and Services,Jan-22
Slough Borough Council,807554,Acorn Care & Education Ltd,"2,784.00",F462,DSG - High Needs Block,Supplies and Services,Jan-22
Slough Borough Council,807554,Acorn Care & Education Ltd,"3,392.00",F462,DSG - High Needs Block,Supplies and Services,Jan-22
Slough Borough Council,807554,Acorn Care & Education Ltd,"3,392.00",F462,DSG - High Needs Block,Supplies and Services,Jan-22
Slough Borough Council,807554,Acorn Care & Education Ltd,"3,392.00",F462,DSG - High Needs Block,Supplies and Services,Jan-22
Slough Borough Council,807554,Acorn Care & Education Ltd,"3,392.00",F462,DSG - High Needs Block,Supplies and Services,Jan-22
Slough Borough Council,807554,Acorn Care & Education Ltd,"1,908.00",F462,DSG - High Needs Block,Supplies and Services,Jan-22
Slough Borough Council,807554,Acorn Care & Education Ltd,"3,392.00",F462,DSG - High Needs Block,Supplies and Services,Jan-22
Slough Borough Council,807554,Acorn Care & Education Ltd,"3,392.00",F462,DSG - High Needs Block,Supplies and Services,Jan-22
Slough Borough Council,807554,Acorn Care & Education Ltd,"3,392.00",F462,DSG - High Needs Block,Supplies and Services,Jan-22
Slough Borough Council,807554,Acorn Care & Education Ltd,"3,392.00",F462,DSG - High Needs Block,Supplies and Services,Jan-22
Slough Borough Council,807554,Acorn Care & Education Ltd,"1,044.00",F462,DSG - High Needs Block,Supplies and Services,Jan-22
Slough Borough Council,807554,Acorn Care & Education Ltd,"1,218.00",F462,DSG - High Needs Block,Supplies and Services,Jan-22
Slough Borough Council,807554,Acorn Care & Education Ltd,"3,392.00",F462,DSG - High Needs Block,Supplies and Services,Jan-22
Slough Borough Council,807554,Acorn Care & Education Ltd,"3,392.00",F462,DSG - High Needs Block,Supplies and Services,Jan-22
Slough Borough Council,807554,Acorn Care & Education Ltd,"3,392.00",F558,DSG - High Needs Block,Supplies and Services,Jan-22
Slough Borough Council,808103,Actian Europe Limited,"15,000.00",J200,Housing Revenue Account,Supplies and Services,Jan-22
Slough Borough Council,805529,Action First Recrutiment Ltd,930.00,A02A,Adult Social Care Operations,Supplies and Services,Jan-22
Slough Borough Council,2135,Adventure Learning Childcare Limited,"8,338.77",F909,DSG - Early Years,Supplies and Services,Jan-22
Slough Borough Council,805178,AFM Transport Limited,"1,368.50",D880,Direct Service Organisation (DSO),Supplies and Services,Jan-22
Slough Borough Council,2486,Agriculture And Estate Services Limited,"1,294.31",P220,Capital,Capital Charges,Jan-22
Slough Borough Council,807466,Airport Facilities Heathrow Ltd,"7,120.98",P006,Capital,Capital Charges,Jan-22
Slough Borough Council,86,Altwood Properties Ltd,"39,288.22",H205,Housing (People) Services,Premises,Jan-22
Slough Borough Council,86,Altwood Properties Ltd,"41,161.73",H205,Housing (People) Services,Premises,Jan-22
Slough Borough Council,807515,Always Growing Together Community Interest Company Limited,"8,943.17",F909,DSG - Early Years,Supplies and Services,Jan-22
Slough Borough Council,808191,Ambrose Adrian Healthcare Ltd,895.47,B324,Finance,Supplies and Services,Jan-22
Slough Borough Council,807893,Antz Kidz Activity Centre,"2,010.00",F382,Children & Families,TP-Other Bodies,Jan-22
Slough Borough Council,3137,Applegarth Care Home Ltd,930.68,B298,Finance,Supplies and Services,Jan-22
Slough Borough Council,3137,Applegarth Care Home Ltd,"3,200.00",M25C,Adult Social Care Operations,Supplies and Services,Jan-22
Slough Borough Council,3137,Applegarth Care Home Ltd,"3,400.00",M25C,Adult Social Care Operations,Supplies and Services,Jan-22
Slough Borough Council,3137,Applegarth Care Home Ltd,"3,200.00",M25C,Adult Social Care Operations,Supplies and Services,Jan-22
Slough Borough Council,3137,Applegarth Care Home Ltd,"3,400.00",M25C,Adult Social Care Operations,Supplies and Services,Jan-22
Slough Borough Council,3137,Applegarth Care Home Ltd,"3,500.00",M27C,Adult Social Care Operations,Supplies and Services,Jan-22
Slough Borough Council,3137,Applegarth Care Home Ltd,"3,500.00",M27C,Adult Social Care Operations,Supplies and Services,Jan-22
Slough Borough Council,3350,Arbour Vale School,"10,817.81",F555,DSG - High Needs Block,Supplies and Services,Jan-22
Slough Borough Council,3350,Arbour Vale School,"567,625.00",E509,DSG - High Needs Block,Supplies and Services,Jan-22
Slough Borough Council,785,Artifax Software Ltd,"2,397.00",B064,Building Management,Supplies and Services,Jan-22
Slough Borough Council,420,Ashburn Estate Agents,"103,695.00",H205,Housing (People) Services,Premises,Jan-22
Slough Borough Council,3666,Assisted Living South West,"4,816.04",M26E,Adult Social Care Operations,Supplies and Services,Jan-22
Slough Borough Council,3666,Assisted Living South West,"4,816.04",M26E,Adult Social Care Operations,Supplies and Services,Jan-22
Slough Borough Council,804324,Astoria Healthcare,"4,207.14",M27F,Adult Social Care Operations,Supplies and Services,Jan-22
Slough Borough Council,570,Atkins Limited,"22,257.00",P235,Capital,Capital Charges,Jan-22
Slough Borough Council,807686,Baxters Homecare,"1,567.07",B324,Finance,Supplies and Services,Jan-22
Slough Borough Council,3370,Baylis Court School,"2,700.00",E709,DSG - Schools,Supplies and Services,Jan-22
Slough Borough Council,1444,Baylis Media Ltd,"1,749.50",F210,Communities and Leisure,Supplies and Services,Jan-22
Slough Borough Council,1444,Baylis Media Ltd,532.61,F210,Communities and Leisure,Supplies and Services,Jan-22
Slough Borough Council,1444,Baylis Media Ltd,-874.75,F210,Communities and Leisure,Supplies and Services,Jan-22
Slough Borough Council,1681,Bcq,"1,453.00",A01P,Public Health,Supplies and Services,Jan-22
Slough Borough Council,1681,Bcq,883.00,B246,Governance,Supplies and Services,Jan-22
Slough Borough Council,1681,Bcq,"1,164.00",B246,Governance,Supplies and Services,Jan-22
Slough Borough Council,1681,Bcq,666.00,B246,Governance,Supplies and Services,Jan-22
Slough Borough Council,1681,Bcq,"1,161.00",B246,Governance,Supplies and Services,Jan-22
Slough Borough Council,3208,Be Happy Pre School,"8,022.68",F909,DSG - Early Years,Supplies and Services,Jan-22
Slough Borough Council,3208,Be Happy Pre School,"3,108.34",F909,DSG - Early Years,Supplies and Services,Jan-22
Slough Borough Council,1818,Bear Buses,995.54,D512,Major Infrastructure Projects,Supplies and Services,Jan-22
Slough Borough Council,1818,Bear Buses,995.54,D512,Major Infrastructure Projects,Supplies and Services,Jan-22
Slough Borough Council,805539,Beech Haven Ltd,"3,277.14",M27C,Adult Social Care Operations,Supplies and Services,Jan-22
Slough Borough Council,609,Beechwood Secondary School,"10,600.00",E519,DSG - Schools,Supplies and Services,Jan-22
Slough Borough Council,804588,BEN Motor & Allied Trades Bev.Fnd,"23,085.71",M15D,Adult Social Care Operations,Supplies and Services,Jan-22
Slough Borough Council,804588,BEN Motor & Allied Trades Bev.Fnd,"23,314.29",M15D,Adult Social Care Operations,Supplies and Services,Jan-22
Slough Borough Council,804588,BEN Motor & Allied Trades Bev.Fnd,"5,600.00",M27C,Adult Social Care Operations,Supplies and Services,Jan-22
Slough Borough Council,612,Berkshire Healthcare Nhs Foundation Trust,"3,617.00",A01D,Adult Social Care Operations,Agency Staff,Jan-22
Slough Borough Council,612,Berkshire Healthcare Nhs Foundation Trust,"2,604.08",A01D,Adult Social Care Operations,Agency Staff,Jan-22
Slough Borough Council,612,Berkshire Healthcare Nhs Foundation Trust,608.17,A07M,Mental Health Services,Agency Staff,Jan-22
Slough Borough Council,612,Berkshire Healthcare Nhs Foundation Trust,"7,015.25",A07M,Mental Health Services,Agency Staff,Jan-22
Slough Borough Council,612,Berkshire Healthcare Nhs Foundation Trust,684.25,A07M,Mental Health Services,Agency Staff,Jan-22
Slough Borough Council,612,Berkshire Healthcare Nhs Foundation Trust,"2,689.58",A07M,Mental Health Services,Agency Staff,Jan-22
Slough Borough Council,612,Berkshire Healthcare Nhs Foundation Trust,"3,066.08",A07M,Mental Health Services,Agency Staff,Jan-22
Slough Borough Council,612,Berkshire Healthcare Nhs Foundation Trust,806.92,A07M,Mental Health Services,Agency Staff,Jan-22
Slough Borough Council,612,Berkshire Healthcare Nhs Foundation Trust,"3,801.17",A07M,Mental Health Services,Agency Staff,Jan-22
Slough Borough Council,612,Berkshire Healthcare Nhs Foundation Trust,"6,582.00",A07R,Adult Social Care Operations,Supplies and Services,Jan-22
Slough Borough Council,806987,Better Life Care Ltd,731.34,B298,Finance,Supplies and Services,Jan-22
Slough Borough Council,806987,Better Life Care Ltd,"3,076.99",B298,Finance,Supplies and Services,Jan-22
Slough Borough Council,1736,Bevan Brittan Llp,"2,593.50",B086,Regeneration Development,Capital Charges,Jan-22
Slough Borough Council,1736,Bevan Brittan Llp,"1,467.00",P159,Capital,Capital Charges,Jan-22
Slough Borough Council,3611,Birch Assist Ltd T/A Bluebird Care (South Bucks & Slough),"2,982.00",M44C,Adult Social Care Operations,Supplies and Services,Jan-22
Slough Borough Council,3611,Birch Assist Ltd T/A Bluebird Care (South Bucks & Slough),"2,982.00",M44D,Adult Social Care Operations,Supplies and Services,Jan-22
Slough Borough Council,1186,Bishops Sports And Leisure Ltd,"1,527.50",C406,Communities and Leisure,Supplies and Services,Jan-22
Slough Borough Council,803828,Blue Willow Day Nursery Ltd,"17,914.55",F909,DSG - Early Years,Supplies and Services,Jan-22
Slough Borough Council,805160,Bouygues E&S FM UK Limited,-702.67,B060,Building Management,Premises,Jan-22
Slough Borough Council,805160,Bouygues E&S FM UK Limited,"47,761.58",K522,Building Management,Premises,Jan-22
Slough Borough Council,805160,Bouygues E&S FM UK Limited,"45,197.94",K522,Building Management,Premises,Jan-22
Slough Borough Council,805160,Bouygues E&S FM UK Limited,"9,754.85",K521,Building Management,Premises,Jan-22
Slough Borough Council,805160,Bouygues E&S FM UK Limited,"24,138.71",K521,Building Management,Premises,Jan-22
Slough Borough Council,805160,Bouygues E&S FM UK Limited,"10,524.48",K521,Building Management,Premises,Jan-22
Slough Borough Council,805160,Bouygues E&S FM UK Limited,"48,306.04",K523,Building Management,Premises,Jan-22
Slough Borough Council,805160,Bouygues E&S FM UK Limited,"46,358.96",K523,Building Management,Premises,Jan-22
Slough Borough Council,805160,Bouygues E&S FM UK Limited,"3,149.03",K525,Building Management,Premises,Jan-22
Slough Borough Council,805160,Bouygues E&S FM UK Limited,"3,022.10",K525,Building Management,Premises,Jan-22
Slough Borough Council,805160,Bouygues E&S FM UK Limited,"7,309.95",K522,Building Management,Supplies and Services,Jan-22
Slough Borough Council,805160,Bouygues E&S FM UK Limited,"7,015.31",K522,Building Management,Supplies and Services,Jan-22
Slough Borough Council,805160,Bouygues E&S FM UK Limited,"5,631.02",B060,Building Management,Transport,Jan-22
Slough Borough Council,805160,Bouygues E&S FM UK Limited,"5,404.05",B060,Building Management,Transport,Jan-22
Slough Borough Council,805060,BPS Dorking Ltd t/a BPS Chartered Surveyors,"2,640.00",D224,Planning and Transport,Supplies and Services,Jan-22
Slough Borough Council,805817,Bright World Nurseries,"9,173.90",F909,DSG - Early Years,Supplies and Services,Jan-22
Slough Borough Council,617,British Telecommunications,"1,884.99",K089,Regulatory Services,Supplies and Services,Jan-22
Slough Borough Council,504,Britwell Baptist Pre School,"5,179.48",F909,DSG - Early Years,Supplies and Services,Jan-22
Slough Borough Council,806260,BRUSHWOOD JUNIOR SCHOOL,"14,000.00",F552,DSG - High Needs Block,Supplies and Services,Jan-22
Slough Borough Council,806892,Bucks & Berks SLT Consultancy,506.25,F417,DSG - High Needs Block,Supplies and Services,Jan-22
Slough Borough Council,741,Bunnies Pre-School,"5,080.00",F909,DSG - Early Years,Supplies and Services,Jan-22
Slough Borough Council,803553,BUPA CARE HOME (CFH CARE),"3,172.00",M25D,Adult Social Care Operations,Supplies and Services,Jan-22
Slough Borough Council,804448,Bupa Care Homes (ANS) Ltd,"5,821.18",M15D,Adult Social Care Operations,Supplies and Services,Jan-22
Slough Borough Council,629,C.H.O.I.C.E Limited,"8,738.50",M26E,Adult Social Care Operations,Supplies and Services,Jan-22
Slough Borough Council,629,C.H.O.I.C.E Limited,"10,997.65",M26E,Adult Social Care Operations,Supplies and Services,Jan-22
Slough Borough Council,629,C.H.O.I.C.E Limited,"9,798.30",M26E,Adult Social Care Operations,Supplies and Services,Jan-22
Slough Borough Council,629,C.H.O.I.C.E Limited,"6,421.47",M26E,Adult Social Care Operations,Supplies and Services,Jan-22
Slough Borough Council,629,C.H.O.I.C.E Limited,"10,756.82",M26E,Adult Social Care Operations,Supplies and Services,Jan-22
Slough Borough Council,629,C.H.O.I.C.E Limited,"10,427.25",M26E,Adult Social Care Operations,Supplies and Services,Jan-22
Slough Borough Council,629,C.H.O.I.C.E Limited,"10,756.82",M26E,Adult Social Care Operations,Supplies and Services,Jan-22
Slough Borough Council,629,C.H.O.I.C.E Limited,"11,453.17",M26E,Adult Social Care Operations,Supplies and Services,Jan-22
Slough Borough Council,629,C.H.O.I.C.E Limited,"5,947.11",M42E,Adult Social Care Operations,Supplies and Services,Jan-22
Slough Borough Council,629,C.H.O.I.C.E Limited,"6,033.90",M42E,Adult Social Care Operations,Supplies and Services,Jan-22
Slough Borough Council,629,C.H.O.I.C.E Limited,"6,145.35",M42E,Adult Social Care Operations,Supplies and Services,Jan-22
Slough Borough Council,629,C.H.O.I.C.E Limited,"6,235.03",M42E,Adult Social Care Operations,Supplies and Services,Jan-22
Slough Borough Council,629,C.H.O.I.C.E Limited,"6,033.90",M42E,Adult Social Care Operations,Supplies and Services,Jan-22
Slough Borough Council,629,C.H.O.I.C.E Limited,"4,288.54",M44D,Adult Social Care Operations,Supplies and Services,Jan-22
Slough Borough Council,629,C.H.O.I.C.E Limited,"2,581.90",M44F,Adult Social Care Operations,Supplies and Services,Jan-22
Slough Borough Council,629,C.H.O.I.C.E Limited,"2,498.61",M44F,Adult Social Care Operations,Supplies and Services,Jan-22
Slough Borough Council,629,C.H.O.I.C.E Limited,"2,523.94",M44F,Adult Social Care Operations,Supplies and Services,Jan-22
Slough Borough Council,808007,Cameron & Cooper Limited (The Beech House School),"2,420.98",F462,DSG - High Needs Block,Supplies and Services,Jan-22
Slough Borough Council,623,Canon (Uk) Ltd,"2,097.54",K059,Customer and Communications,Supplies and Services,Jan-22
Slough Borough Council,623,Canon (Uk) Ltd,741.18,K059,Customer and Communications,Supplies and Services,Jan-22
Slough Borough Council,623,Canon (Uk) Ltd,647.79,K059,Customer and Communications,Supplies and Services,Jan-22
Slough Borough Council,737,Capita Business Services Ltd,"21,495.00",B282,Digital and Strategic IT,Supplies and Services,Jan-22
Slough Borough Council,804861,Care Management Group Ltd,"1,926.74",M42F,Adult Social Care Operations,Supplies and Services,Jan-22
Slough Borough Council,804861,Care Management Group Ltd,"1,864.59",M42F,Adult Social Care Operations,Supplies and Services,Jan-22
Slough Borough Council,805621,Care Staff Services,"3,283.39",B324,Finance,Supplies and Services,Jan-22
Slough Borough Council,805621,Care Staff Services,582.75,A07R,Adult Social Care Operations,Supplies and Services,Jan-22
Slough Borough Council,805621,Care Staff Services,"1,023.75",A07R,Adult Social Care Operations,Supplies and Services,Jan-22
Slough Borough Council,805621,Care Staff Services,"1,715.00",A07R,Adult Social Care Operations,Supplies and Services,Jan-22
Slough Borough Council,805621,Care Staff Services,"1,156.25",A07R,Adult Social Care Operations,Supplies and Services,Jan-22
Slough Borough Council,805621,Care Staff Services,612.50,A07R,Adult Social Care Operations,Supplies and Services,Jan-22
Slough Borough Council,805621,Care Staff Services,875.00,A07R,Adult Social Care Operations,Supplies and Services,Jan-22
Slough Borough Council,805621,Care Staff Services,735.00,A07R,Adult Social Care Operations,Supplies and Services,Jan-22
Slough Borough Council,805621,Care Staff Services,"-1,165.50",M44C,Adult Social Care Operations,Supplies and Services,Jan-22
Slough Borough Council,805621,Care Staff Services,"1,554.00",M44C,Adult Social Care Operations,Supplies and Services,Jan-22
Slough Borough Council,805621,Care Staff Services,638.25,M44C,Adult Social Care Operations,Supplies and Services,Jan-22
Slough Borough Council,805621,Care Staff Services,647.50,M44C,Adult Social Care Operations,Supplies and Services,Jan-22
Slough Borough Council,805621,Care Staff Services,"1,581.75",M44C,Adult Social Care Operations,Supplies and Services,Jan-22
Slough Borough Council,805621,Care Staff Services,"2,331.00",M44C,Adult Social Care Operations,Supplies and Services,Jan-22
Slough Borough Council,805621,Care Staff Services,758.50,M44C,Adult Social Care Operations,Supplies and Services,Jan-22
Slough Borough Council,805621,Care Staff Services,971.25,M44C,Adult Social Care Operations,Supplies and Services,Jan-22
Slough Borough Council,805621,Care Staff Services,804.75,M44C,Adult Social Care Operations,Supplies and Services,Jan-22
Slough Borough Council,805621,Care Staff Services,721.50,M44C,Adult Social Care Operations,Supplies and Services,Jan-22
Slough Borough Council,805621,Care Staff Services,906.50,M44C,Adult Social Care Operations,Supplies and Services,Jan-22
Slough Borough Council,805621,Care Staff Services,541.13,M44C,Adult Social Care Operations,Supplies and Services,Jan-22
Slough Borough Council,805621,Care Staff Services,518.00,M44C,Adult Social Care Operations,Supplies and Services,Jan-22
Slough Borough Council,805621,Care Staff Services,"1,165.50",M44C,Adult Social Care Operations,Supplies and Services,Jan-22
Slough Borough Council,805621,Care Staff Services,925.00,M44C,Adult Social Care Operations,Supplies and Services,Jan-22
Slough Borough Council,805621,Care Staff Services,"1,295.00",M44C,Adult Social Care Operations,Supplies and Services,Jan-22
Slough Borough Council,805621,Care Staff Services,805.00,M44C,Adult Social Care Operations,Supplies and Services,Jan-22
Slough Borough Council,805621,Care Staff Services,906.50,M44C,Adult Social Care Operations,Supplies and Services,Jan-22
Slough Borough Council,805621,Care Staff Services,"1,813.00",M44C,Adult Social Care Operations,Supplies and Services,Jan-22
Slough Borough Council,805621,Care Staff Services,"2,664.00",M44C,Adult Social Care Operations,Supplies and Services,Jan-22
Slough Borough Council,805621,Care Staff Services,682.50,M44C,Adult Social Care Operations,Supplies and Services,Jan-22
Slough Borough Council,805621,Care Staff Services,"2,146.00",M44C,Adult Social Care Operations,Supplies and Services,Jan-22
Slough Borough Council,805621,Care Staff Services,573.50,M44C,Adult Social Care Operations,Supplies and Services,Jan-22
Slough Borough Council,805621,Care Staff Services,906.50,M44C,Adult Social Care Operations,Supplies and Services,Jan-22
Slough Borough Council,805621,Care Staff Services,857.50,M44C,Adult Social Care Operations,Supplies and Services,Jan-22
Slough Borough Council,805621,Care Staff Services,"1,378.25",M44C,Adult Social Care Operations,Supplies and Services,Jan-22
Slough Borough Council,805621,Care Staff Services,906.50,M44C,Adult Social Care Operations,Supplies and Services,Jan-22
Slough Borough Council,805621,Care Staff Services,"1,165.50",M44C,Adult Social Care Operations,Supplies and Services,Jan-22
Slough Borough Council,805621,Care Staff Services,897.25,M44C,Adult Social Care Operations,Supplies and Services,Jan-22
Slough Borough Council,805621,Care Staff Services,568.88,M44C,Adult Social Care Operations,Supplies and Services,Jan-22
Slough Borough Council,805621,Care Staff Services,"2,072.00",M44C,Adult Social Care Operations,Supplies and Services,Jan-22
Slough Borough Council,805621,Care Staff Services,"1,082.25",M44C,Adult Social Care Operations,Supplies and Services,Jan-22
Slough Borough Council,805621,Care Staff Services,"2,331.00",M44C,Adult Social Care Operations,Supplies and Services,Jan-22
Slough Borough Council,805621,Care Staff Services,786.25,M44C,Adult Social Care Operations,Supplies and Services,Jan-22
Slough Borough Council,805621,Care Staff Services,586.25,M44C,Adult Social Care Operations,Supplies and Services,Jan-22
Slough Borough Council,805621,Care Staff Services,"2,331.00",M44C,Adult Social Care Operations,Supplies and Services,Jan-22
Slough Borough Council,805621,Care Staff Services,735.00,M44C,Adult Social Care Operations,Supplies and Services,Jan-22
Slough Borough Council,805621,Care Staff Services,"1,156.25",M44C,Adult Social Care Operations,Supplies and Services,Jan-22
Slough Borough Council,805621,Care Staff Services,"1,202.50",M44C,Adult Social Care Operations,Supplies and Services,Jan-22
Slough Borough Council,805621,Care Staff Services,910.00,M44C,Adult Social Care Operations,Supplies and Services,Jan-22
Slough Borough Council,805621,Care Staff Services,"2,146.00",M44C,Adult Social Care Operations,Supplies and Services,Jan-22
Slough Borough Council,805621,Care Staff Services,"2,205.00",M44C,Adult Social Care Operations,Supplies and Services,Jan-22
Slough Borough Council,805621,Care Staff Services,"1,470.00",M44C,Adult Social Care Operations,Supplies and Services,Jan-22
Slough Borough Council,805621,Care Staff Services,"1,165.50",M44C,Adult Social Care Operations,Supplies and Services,Jan-22
Slough Borough Council,805621,Care Staff Services,857.50,M44C,Adult Social Care Operations,Supplies and Services,Jan-22
Slough Borough Council,805621,Care Staff Services,643.13,M44C,Adult Social Care Operations,Supplies and Services,Jan-22
Slough Borough Council,805621,Care Staff Services,"2,312.50",M44D,Adult Social Care Operations,Supplies and Services,Jan-22
Slough Borough Council,805621,Care Staff Services,832.50,M44D,Adult Social Care Operations,Supplies and Services,Jan-22
Slough Borough Council,805621,Care Staff Services,"1,522.50",M44D,Adult Social Care Operations,Supplies and Services,Jan-22
Slough Borough Council,805621,Care Staff Services,"1,156.25",M44D,Adult Social Care Operations,Supplies and Services,Jan-22
Slough Borough Council,805621,Care Staff Services,"1,165.47",M44D,Adult Social Care Operations,Supplies and Services,Jan-22
Slough Borough Council,805621,Care Staff Services,"1,592.50",M44D,Adult Social Care Operations,Supplies and Services,Jan-22
Slough Borough Council,805621,Care Staff Services,"1,165.50",M44D,Adult Social Care Operations,Supplies and Services,Jan-22
Slough Borough Council,805621,Care Staff Services,610.50,M44D,Adult Social Care Operations,Supplies and Services,Jan-22
Slough Borough Council,805621,Care Staff Services,612.50,M44D,Adult Social Care Operations,Supplies and Services,Jan-22
Slough Borough Council,805621,Care Staff Services,"1,239.50",M44D,Adult Social Care Operations,Supplies and Services,Jan-22
Slough Borough Council,805621,Care Staff Services,"1,387.50",M44F,Adult Social Care Operations,Supplies and Services,Jan-22
Slough Borough Council,805621,Care Staff Services,740.00,M44F,Adult Social Care Operations,Supplies and Services,Jan-22
Slough Borough Council,805621,Care Staff Services,"2,590.00",M44F,Adult Social Care Operations,Supplies and Services,Jan-22
Slough Borough Council,805621,Care Staff Services,703.00,M44F,Adult Social Care Operations,Supplies and Services,Jan-22
Slough Borough Council,805621,Care Staff Services,980.00,M44F,Adult Social Care Operations,Supplies and Services,Jan-22
Slough Borough Council,805621,Care Staff Services,666.00,M44F,Adult Social Care Operations,Supplies and Services,Jan-22
Slough Borough Council,805621,Care Staff Services,"1,443.00",M44F,Adult Social Care Operations,Supplies and Services,Jan-22
Slough Borough Council,805621,Care Staff Services,999.00,M44F,Adult Social Care Operations,Supplies and Services,Jan-22
Slough Borough Council,805621,Care Staff Services,"1,534.75",M45C,Adult Social Care Operations,Supplies and Services,Jan-22
Slough Borough Council,805621,Care Staff Services,748.13,M45C,Adult Social Care Operations,Supplies and Services,Jan-22
Slough Borough Council,805621,Care Staff Services,"1,137.50",M45C,Adult Social Care Operations,Supplies and Services,Jan-22
Slough Borough Council,805621,Care Staff Services,"1,890.00",M45C,Adult Social Care Operations,Supplies and Services,Jan-22
Slough Borough Council,805621,Care Staff Services,"2,775.00",M48C,Adult Social Care Operations,Supplies and Services,Jan-22
Slough Borough Council,805621,Care Staff Services,"2,812.00",M48C,Adult Social Care Operations,Supplies and Services,Jan-22
Slough Borough Council,805621,Care Staff Services,"3,108.00",M48C,Adult Social Care Operations,Supplies and Services,Jan-22
Slough Borough Council,805621,Care Staff Services,"1,225.00",M48C,Adult Social Care Operations,Supplies and Services,Jan-22
Slough Borough Council,805621,Care Staff Services,"3,700.00",M48C,Adult Social Care Operations,Supplies and Services,Jan-22
Slough Borough Council,805621,Care Staff Services,"4,144.00",M48C,Adult Social Care Operations,Supplies and Services,Jan-22
Slough Borough Council,805621,Care Staff Services,582.75,M85F,Adult Social Care Operations,Supplies and Services,Jan-22
Slough Borough Council,808149,Care Staff Services Support,"1,743.86",M44F,Adult Social Care Operations,Supplies and Services,Jan-22
Slough Borough Council,808149,Care Staff Services Support,"1,937.48",M44F,Adult Social Care Operations,Supplies and Services,Jan-22
Slough Borough Council,808149,Care Staff Services Support,904.24,M44F,Adult Social Care Operations,Supplies and Services,Jan-22
Slough Borough Council,808149,Care Staff Services Support,"1,097.92",M44F,Adult Social Care Operations,Supplies and Services,Jan-22
Slough Borough Council,1162,Care Uk Community Partnership Ltd,"5,584.06",B298,Finance,Supplies and Services,Jan-22
Slough Borough Council,1162,Care Uk Community Partnership Ltd,"3,840.00",A03E,Adult Social Care Operations,Supplies and Services,Jan-22
Slough Borough Council,1162,Care Uk Community Partnership Ltd,"3,680.80",M15D,Adult Social Care Operations,Supplies and Services,Jan-22
Slough Borough Council,1162,Care Uk Community Partnership Ltd,"2,827.20",M15D,Adult Social Care Operations,Supplies and Services,Jan-22
Slough Borough Council,1162,Care Uk Community Partnership Ltd,"3,680.80",M15D,Adult Social Care Operations,Supplies and Services,Jan-22
Slough Borough Council,1162,Care Uk Community Partnership Ltd,"3,680.80",M15D,Adult Social Care Operations,Supplies and Services,Jan-22
Slough Borough Council,1162,Care Uk Community Partnership Ltd,"3,680.80",M15D,Adult Social Care Operations,Supplies and Services,Jan-22
Slough Borough Council,1162,Care Uk Community Partnership Ltd,"5,571.43",M15D,Adult Social Care Operations,Supplies and Services,Jan-22
Slough Borough Council,1162,Care Uk Community Partnership Ltd,"2,971.43",M15D,Adult Social Care Operations,Supplies and Services,Jan-22
Slough Borough Council,1162,Care Uk Community Partnership Ltd,"3,842.16",M15D,Adult Social Care Operations,Supplies and Services,Jan-22
Slough Borough Council,1162,Care Uk Community Partnership Ltd,"2,837.14",M15F,Adult Social Care Operations,Supplies and Services,Jan-22
Slough Borough Council,1162,Care Uk Community Partnership Ltd,"2,837.14",M15F,Adult Social Care Operations,Supplies and Services,Jan-22
Slough Borough Council,1162,Care Uk Community Partnership Ltd,"2,648.00",M15F,Adult Social Care Operations,Supplies and Services,Jan-22
Slough Borough Council,1162,Care Uk Community Partnership Ltd,"2,648.00",M15F,Adult Social Care Operations,Supplies and Services,Jan-22
Slough Borough Council,1162,Care Uk Community Partnership Ltd,"2,837.14",M15F,Adult Social Care Operations,Supplies and Services,Jan-22
Slough Borough Council,1162,Care Uk Community Partnership Ltd,"2,648.00",M15F,Adult Social Care Operations,Supplies and Services,Jan-22
Slough Borough Council,1162,Care Uk Community Partnership Ltd,"3,842.16",M17C,Adult Social Care Operations,Supplies and Services,Jan-22
Slough Borough Council,1162,Care Uk Community Partnership Ltd,"3,842.16",M17C,Adult Social Care Operations,Supplies and Services,Jan-22
Slough Borough Council,1162,Care Uk Community Partnership Ltd,"5,200.00",M17C,Adult Social Care Operations,Supplies and Services,Jan-22
Slough Borough Council,1162,Care Uk Community Partnership Ltd,557.14,M17C,Adult Social Care Operations,Supplies and Services,Jan-22
Slough Borough Council,1162,Care Uk Community Partnership Ltd,"3,842.16",M17C,Adult Social Care Operations,Supplies and Services,Jan-22
Slough Borough Council,1162,Care Uk Community Partnership Ltd,"3,842.16",M17C,Adult Social Care Operations,Supplies and Services,Jan-22
Slough Borough Council,1162,Care Uk Community Partnership Ltd,"21,019.44",M17C,Adult Social Care Operations,Supplies and Services,Jan-22
Slough Borough Council,1162,Care Uk Community Partnership Ltd,"3,842.16",M17C,Adult Social Care Operations,Supplies and Services,Jan-22
Slough Borough Council,1162,Care Uk Community Partnership Ltd,"3,680.80",M18C,Adult Social Care Operations,Supplies and Services,Jan-22
Slough Borough Council,1162,Care Uk Community Partnership Ltd,"3,680.80",M18C,Adult Social Care Operations,Supplies and Services,Jan-22
Slough Borough Council,1162,Care Uk Community Partnership Ltd,"3,680.80",M18C,Adult Social Care Operations,Supplies and Services,Jan-22
Slough Borough Council,1162,Care Uk Community Partnership Ltd,"3,680.80",M18C,Adult Social Care Operations,Supplies and Services,Jan-22
Slough Borough Council,1162,Care Uk Community Partnership Ltd,"-18,404.00",M18C,Adult Social Care Operations,Supplies and Services,Jan-22
Slough Borough Council,1162,Care Uk Community Partnership Ltd,"3,680.80",M18C,Adult Social Care Operations,Supplies and Services,Jan-22
Slough Borough Council,1162,Care Uk Community Partnership Ltd,"3,680.80",M18C,Adult Social Care Operations,Supplies and Services,Jan-22
Slough Borough Council,1162,Care Uk Community Partnership Ltd,"3,680.80",M18C,Adult Social Care Operations,Supplies and Services,Jan-22
Slough Borough Council,1162,Care Uk Community Partnership Ltd,"3,842.16",M18C,Adult Social Care Operations,Supplies and Services,Jan-22
Slough Borough Council,1162,Care Uk Community Partnership Ltd,"-9,494.80",M18C,Adult Social Care Operations,Supplies and Services,Jan-22
Slough Borough Council,1162,Care Uk Community Partnership Ltd,"3,842.16",M18C,Adult Social Care Operations,Supplies and Services,Jan-22
Slough Borough Council,1162,Care Uk Community Partnership Ltd,"3,680.80",M18C,Adult Social Care Operations,Supplies and Services,Jan-22
Slough Borough Council,1162,Care Uk Community Partnership Ltd,"78,453.16",M18C,Adult Social Care Operations,Supplies and Services,Jan-22
Slough Borough Council,1162,Care Uk Community Partnership Ltd,"3,680.80",M18C,Adult Social Care Operations,Supplies and Services,Jan-22
Slough Borough Council,1162,Care Uk Community Partnership Ltd,"3,680.80",M18C,Adult Social Care Operations,Supplies and Services,Jan-22
Slough Borough Council,1162,Care Uk Community Partnership Ltd,"3,842.16",M18C,Adult Social Care Operations,Supplies and Services,Jan-22
Slough Borough Council,1162,Care Uk Community Partnership Ltd,"3,842.16",M18C,Adult Social Care Operations,Supplies and Services,Jan-22
Slough Borough Council,1162,Care Uk Community Partnership Ltd,"3,680.80",M18C,Adult Social Care Operations,Supplies and Services,Jan-22
Slough Borough Council,1162,Care Uk Community Partnership Ltd,"3,680.80",M18C,Adult Social Care Operations,Supplies and Services,Jan-22
Slough Borough Council,1162,Care Uk Community Partnership Ltd,"3,680.80",M18C,Adult Social Care Operations,Supplies and Services,Jan-22
Slough Borough Council,1162,Care Uk Community Partnership Ltd,"3,842.16",M18C,Adult Social Care Operations,Supplies and Services,Jan-22
Slough Borough Council,1162,Care Uk Community Partnership Ltd,"3,372.56",M25C,Adult Social Care Operations,Supplies and Services,Jan-22
Slough Borough Council,1162,Care Uk Community Partnership Ltd,"3,372.56",M25C,Adult Social Care Operations,Supplies and Services,Jan-22
Slough Borough Council,1162,Care Uk Community Partnership Ltd,"3,372.56",M25C,Adult Social Care Operations,Supplies and Services,Jan-22
Slough Borough Council,1162,Care Uk Community Partnership Ltd,"3,372.56",M25C,Adult Social Care Operations,Supplies and Services,Jan-22
Slough Borough Council,1162,Care Uk Community Partnership Ltd,"-23,607.92",M25C,Adult Social Care Operations,Supplies and Services,Jan-22
Slough Borough Council,1162,Care Uk Community Partnership Ltd,"53,960.96",M25C,Adult Social Care Operations,Supplies and Services,Jan-22
Slough Borough Council,1162,Care Uk Community Partnership Ltd,"3,372.56",M25C,Adult Social Care Operations,Supplies and Services,Jan-22
Slough Borough Council,1162,Care Uk Community Partnership Ltd,"-19,555.36",M26D,Adult Social Care Operations,Supplies and Services,Jan-22
Slough Borough Council,1162,Care Uk Community Partnership Ltd,"3,680.80",M26E,Adult Social Care Operations,Supplies and Services,Jan-22
Slough Borough Council,1162,Care Uk Community Partnership Ltd,"3,372.56",M26E,Adult Social Care Operations,Supplies and Services,Jan-22
Slough Borough Council,1162,Care Uk Community Partnership Ltd,"3,372.56",M27C,Adult Social Care Operations,Supplies and Services,Jan-22
Slough Borough Council,1162,Care Uk Community Partnership Ltd,"3,372.56",M27C,Adult Social Care Operations,Supplies and Services,Jan-22
Slough Borough Council,1162,Care Uk Community Partnership Ltd,"3,372.56",M27C,Adult Social Care Operations,Supplies and Services,Jan-22
Slough Borough Council,1162,Care Uk Community Partnership Ltd,"3,372.56",M27C,Adult Social Care Operations,Supplies and Services,Jan-22
Slough Borough Council,1162,Care Uk Community Partnership Ltd,"3,372.56",M27C,Adult Social Care Operations,Supplies and Services,Jan-22
Slough Borough Council,1162,Care Uk Community Partnership Ltd,"3,372.56",M27C,Adult Social Care Operations,Supplies and Services,Jan-22
Slough Borough Council,1162,Care Uk Community Partnership Ltd,"3,372.56",M27C,Adult Social Care Operations,Supplies and Services,Jan-22
Slough Borough Council,1162,Care Uk Community Partnership Ltd,"3,079.16",M27C,Adult Social Care Operations,Supplies and Services,Jan-22
Slough Borough Council,1162,Care Uk Community Partnership Ltd,"3,079.16",M27C,Adult Social Care Operations,Supplies and Services,Jan-22
Slough Borough Council,1162,Care Uk Community Partnership Ltd,"3,372.56",M27C,Adult Social Care Operations,Supplies and Services,Jan-22
Slough Borough Council,1162,Care Uk Community Partnership Ltd,"3,079.16",M27C,Adult Social Care Operations,Supplies and Services,Jan-22
Slough Borough Council,1162,Care Uk Community Partnership Ltd,"3,372.56",M27C,Adult Social Care Operations,Supplies and Services,Jan-22
Slough Borough Council,1162,Care Uk Community Partnership Ltd,"3,372.56",M27C,Adult Social Care Operations,Supplies and Services,Jan-22
Slough Borough Council,1162,Care Uk Community Partnership Ltd,"3,372.56",M27C,Adult Social Care Operations,Supplies and Services,Jan-22
Slough Borough Council,1162,Care Uk Community Partnership Ltd,"3,079.16",M27C,Adult Social Care Operations,Supplies and Services,Jan-22
Slough Borough Council,1162,Care Uk Community Partnership Ltd,"3,372.56",M27C,Adult Social Care Operations,Supplies and Services,Jan-22
Slough Borough Council,1162,Care Uk Community Partnership Ltd,"30,791.60",M27C,Adult Social Care Operations,Supplies and Services,Jan-22
Slough Borough Council,1162,Care Uk Community Partnership Ltd,"3,079.16",M27C,Adult Social Care Operations,Supplies and Services,Jan-22
Slough Borough Council,1162,Care Uk Community Partnership Ltd,"-3,084.16",M27C,Adult Social Care Operations,Supplies and Services,Jan-22
Slough Borough Council,1162,Care Uk Community Partnership Ltd,"3,372.56",M27C,Adult Social Care Operations,Supplies and Services,Jan-22
Slough Borough Council,1162,Care Uk Community Partnership Ltd,"3,372.56",M27C,Adult Social Care Operations,Supplies and Services,Jan-22
Slough Borough Council,1162,Care Uk Community Partnership Ltd,"3,079.16",M27C,Adult Social Care Operations,Supplies and Services,Jan-22
Slough Borough Council,1162,Care Uk Community Partnership Ltd,"3,372.56",M27C,Adult Social Care Operations,Supplies and Services,Jan-22
Slough Borough Council,1162,Care Uk Community Partnership Ltd,"3,680.80",M28C,Adult Social Care Operations,Supplies and Services,Jan-22
Slough Borough Council,804413,Castle Water,"2,524.29",B182,Building Management,Premises,Jan-22
Slough Borough Council,804413,Castle Water,"1,686.23",B182,Building Management,Premises,Jan-22
Slough Borough Council,804413,Castle Water,632.20,B190,Building Management,Premises,Jan-22
Slough Borough Council,804413,Castle Water,500.39,D900,Direct Service Organisation (DSO),Premises,Jan-22
Slough Borough Council,418,Castleview School,"25,677.00",E239,DSG - Schools,Supplies and Services,Jan-22
Slough Borough Council,803560,Centennial Property Limited T/A Rent Connect,"32,107.00",H205,Housing (People) Services,Premises,Jan-22
Slough Borough Council,805619,Centennial Property Limited T/A The Housing Network,"29,760.00",H205,Housing (People) Services,Premises,Jan-22
Slough Borough Council,3609,Centurion Healthcare Ltd,"6,031.67",M26E,Adult Social Care Operations,Supplies and Services,Jan-22
Slough Borough Council,805174,Certas Energy,"1,490.40",D910,Direct Service Organisation (DSO),Supplies and Services,Jan-22
Slough Borough Council,806920,Cetus Solutions Limited,540.00,P084,Capital,Capital Charges,Jan-22
Slough Borough Council,2892,Chalfont Lodge,"3,321.43",M15D,Adult Social Care Operations,Supplies and Services,Jan-22
Slough Borough Council,2892,Chalfont Lodge,"5,978.57",M15D,Adult Social Care Operations,Supplies and Services,Jan-22
Slough Borough Council,2892,Chalfont Lodge,"8,857.14",M15F,Adult Social Care Operations,Supplies and Services,Jan-22
Slough Borough Council,2892,Chalfont Lodge,"5,978.57",M26E,Adult Social Care Operations,Supplies and Services,Jan-22
Slough Borough Council,2608,Chandos Lodge Nursing Home,"3,600.00",M18C,Adult Social Care Operations,Supplies and Services,Jan-22
Slough Borough Council,2174,Chartered Institute Of Environmental Health(Cieh),"1,443.00",H253,Neighbourhood Services,Salaries and Wages-Employees Expenses,Jan-22
Slough Borough Council,3114,Cherry Trees Day Nursery,"32,028.24",F909,DSG - Early Years,Supplies and Services,Jan-22
Slough Borough Council,2871,Cherry Trees Residential Care,"1,660.71",M42F,Adult Social Care Operations,Supplies and Services,Jan-22
Slough Borough Council,2871,Cherry Trees Residential Care,"3,321.43",M42F,Adult Social Care Operations,Supplies and Services,Jan-22
Slough Borough Council,2871,Cherry Trees Residential Care,"3,321.43",M42F,Adult Social Care Operations,Supplies and Services,Jan-22
Slough Borough Council,803495,Christchurch Court Ltd,"8,859.80",M15D,Adult Social Care Operations,Supplies and Services,Jan-22
Slough Borough Council,803495,Christchurch Court Ltd,"8,859.80",M15D,Adult Social Care Operations,Supplies and Services,Jan-22
Slough Borough Council,2561,Christies Care Ltd,"4,404.00",M44D,Adult Social Care Operations,Supplies and Services,Jan-22
Slough Borough Council,2561,Christies Care Ltd,"4,404.00",M44D,Adult Social Care Operations,Supplies and Services,Jan-22
Slough Borough Council,807491,Cippenham School,"21,500.00",E579,DSG - Schools,Supplies and Services,Jan-22
Slough Borough Council,807491,Cippenham School,"4,176.00",B297,Finance,Government Grants,Jan-22
Slough Borough Council,455,Cj Associates,700.00,F150,Early Years & Prevention,Indirect Employee Expenses,Jan-22
Slough Borough Council,1151,Claycots Primary School,"749,517.45",E209,DSG - Schools,Supplies and Services,Jan-22
Slough Borough Council,408,Clear Channel Uk Ltd,"6,500.00",P235,Capital,Capital Charges,Jan-22
Slough Borough Council,3685,Coghlan Lodges Limited,"2,116.04",M44D,Adult Social Care Operations,Supplies and Services,Jan-22
Slough Borough Council,3685,Coghlan Lodges Limited,"2,068.29",M44F,Adult Social Care Operations,Supplies and Services,Jan-22
Slough Borough Council,3685,Coghlan Lodges Limited,"3,048.00",M44F,Adult Social Care Operations,Supplies and Services,Jan-22
Slough Borough Council,3685,Coghlan Lodges Limited,"1,870.00",M44F,Adult Social Care Operations,Supplies and Services,Jan-22
Slough Borough Council,3685,Coghlan Lodges Limited,"3,048.00",M44F,Adult Social Care Operations,Supplies and Services,Jan-22
Slough Borough Council,805823,Collaborative Care Solutions,"1,070.28",B298,Finance,Supplies and Services,Jan-22
Slough Borough Council,805823,Collaborative Care Solutions,"3,283.39",B324,Finance,Supplies and Services,Jan-22
Slough Borough Council,459,Colliers Cre,"3,666.67",J006,HDC Housing Development,Supplies and Services,Jan-22
Slough Borough Council,459,Colliers Cre,"3,666.67",J006,HDC Housing Development,Supplies and Services,Jan-22
Slough Borough Council,286,Colnbrook C Of E Primary School,"12,417.00",E219,DSG - Schools,Supplies and Services,Jan-22
Slough Borough Council,2535,Comfort Care Services,"1,165.92",M42E,Adult Social Care Operations,Supplies and Services,Jan-22
Slough Borough Council,2535,Comfort Care Services,"2,587.09",M42E,Adult Social Care Operations,Supplies and Services,Jan-22
Slough Borough Council,2535,Comfort Care Services,"3,192.03",M42E,Adult Social Care Operations,Supplies and Services,Jan-22
Slough Borough Council,2535,Comfort Care Services,"2,482.07",M42E,Adult Social Care Operations,Supplies and Services,Jan-22
Slough Borough Council,2535,Comfort Care Services,"2,564.81",M42E,Adult Social Care Operations,Supplies and Services,Jan-22
Slough Borough Council,2535,Comfort Care Services,"2,482.07",M42E,Adult Social Care Operations,Supplies and Services,Jan-22
Slough Borough Council,2535,Comfort Care Services,"2,564.81",M42E,Adult Social Care Operations,Supplies and Services,Jan-22
Slough Borough Council,2535,Comfort Care Services,"2,564.81",M42E,Adult Social Care Operations,Supplies and Services,Jan-22
Slough Borough Council,2535,Comfort Care Services,"2,564.81",M42E,Adult Social Care Operations,Supplies and Services,Jan-22
Slough Borough Council,2535,Comfort Care Services,"2,564.81",M42E,Adult Social Care Operations,Supplies and Services,Jan-22
Slough Borough Council,2535,Comfort Care Services,"2,482.07",M42E,Adult Social Care Operations,Supplies and Services,Jan-22
Slough Borough Council,2535,Comfort Care Services,"1,165.82",M42E,Adult Social Care Operations,Supplies and Services,Jan-22
Slough Borough Council,2535,Comfort Care Services,"2,564.81",M42E,Adult Social Care Operations,Supplies and Services,Jan-22
Slough Borough Council,2535,Comfort Care Services,"1,007.06",M42F,Adult Social Care Operations,Supplies and Services,Jan-22
Slough Borough Council,2535,Comfort Care Services,"1,477.99",M42F,Adult Social Care Operations,Supplies and Services,Jan-22
Slough Borough Council,2535,Comfort Care Services,"2,635.00",M42F,Adult Social Care Operations,Supplies and Services,Jan-22
Slough Borough Council,2535,Comfort Care Services,839.21,M42F,Adult Social Care Operations,Supplies and Services,Jan-22
Slough Borough Council,2535,Comfort Care Services,"2,635.00",M42F,Adult Social Care Operations,Supplies and Services,Jan-22
Slough Borough Council,2535,Comfort Care Services,"2,635.00",M42F,Adult Social Care Operations,Supplies and Services,Jan-22
Slough Borough Council,2535,Comfort Care Services,"4,461.58",M44E,Adult Social Care Operations,Supplies and Services,Jan-22
Slough Borough Council,2535,Comfort Care Services,"2,141.66",M44E,Adult Social Care Operations,Supplies and Services,Jan-22
Slough Borough Council,2535,Comfort Care Services,"2,937.87",M44F,Adult Social Care Operations,Supplies and Services,Jan-22
Slough Borough Council,2535,Comfort Care Services,"1,165.82",M44F,Adult Social Care Operations,Supplies and Services,Jan-22
Slough Borough Council,2535,Comfort Care Services,"3,474.21",M44F,Adult Social Care Operations,Supplies and Services,Jan-22
Slough Borough Council,2535,Comfort Care Services,"2,635.00",M44F,Adult Social Care Operations,Supplies and Services,Jan-22
Slough Borough Council,2535,Comfort Care Services,503.53,M44F,Adult Social Care Operations,Supplies and Services,Jan-22
Slough Borough Council,807005,Complete Background Screening Ltd,"1,472.00",B348,People,Supplies and Services,Jan-22
Slough Borough Council,1772,Computershare Voucher Services,"3,041.00",B348,People,Supplies and Services,Jan-22
Slough Borough Council,807468,"Connect Managed Services (UK) Ltd, trading as Conn3ct","3,123.25",A106,Customer and Communications,Supplies and Services,Jan-22
Slough Borough Council,805278,Countrystyle Recycling Ltd,"3,973.05",D342,Direct Service Organisation (DSO),Supplies and Services,Jan-22
Slough Borough Council,3670,Craegmoor Birches Grove Priory,"1,888.44",M27F,Adult Social Care Operations,Supplies and Services,Jan-22
Slough Borough Council,3670,Craegmoor Birches Grove Priory,"3,805.68",M27F,Adult Social Care Operations,Supplies and Services,Jan-22
Slough Borough Council,3670,Craegmoor Birches Grove Priory,"1,888.44",M27F,Adult Social Care Operations,Supplies and Services,Jan-22
Slough Borough Council,1638,Creative Support Ltd,"15,902.39",B298,Finance,Supplies and Services,Jan-22
Slough Borough Council,1638,Creative Support Ltd,"32,356.38",A02F,Adult Social Care Commissioning,Supplies and Services,Jan-22
Slough Borough Council,1638,Creative Support Ltd,"32,356.38",A02F,Adult Social Care Commissioning,Supplies and Services,Jan-22
Slough Borough Council,1638,Creative Support Ltd,"32,356.38",A02F,Adult Social Care Commissioning,Supplies and Services,Jan-22
Slough Borough Council,1638,Creative Support Ltd,"32,356.38",A02F,Adult Social Care Commissioning,Supplies and Services,Jan-22
Slough Borough Council,1638,Creative Support Ltd,"32,356.38",A02F,Adult Social Care Commissioning,Supplies and Services,Jan-22
Slough Borough Council,1638,Creative Support Ltd,"32,412.75",A02F,Adult Social Care Commissioning,Supplies and Services,Jan-22
Slough Borough Council,1638,Creative Support Ltd,"23,938.46",A02F,Adult Social Care Commissioning,Supplies and Services,Jan-22
Slough Borough Council,1638,Creative Support Ltd,"23,938.46",A02F,Adult Social Care Commissioning,Supplies and Services,Jan-22
Slough Borough Council,1638,Creative Support Ltd,"32,356.38",A02F,Adult Social Care Commissioning,Supplies and Services,Jan-22
Slough Borough Council,1638,Creative Support Ltd,"1,431.90",A02L,Adult Social Care Operations,Supplies and Services,Jan-22
Slough Borough Council,1638,Creative Support Ltd,"1,565.10",A02L,Adult Social Care Operations,Supplies and Services,Jan-22
Slough Borough Council,1638,Creative Support Ltd,"1,165.50",A02L,Adult Social Care Operations,Supplies and Services,Jan-22
Slough Borough Council,1638,Creative Support Ltd,"1,065.60",A02L,Adult Social Care Operations,Supplies and Services,Jan-22
Slough Borough Council,1638,Creative Support Ltd,599.40,A02L,Adult Social Care Operations,Supplies and Services,Jan-22
Slough Borough Council,1638,Creative Support Ltd,"1,365.30",A02L,Adult Social Care Operations,Supplies and Services,Jan-22
Slough Borough Council,1638,Creative Support Ltd,"1,182.15",M42E,Adult Social Care Operations,Supplies and Services,Jan-22
Slough Borough Council,1638,Creative Support Ltd,899.10,M44C,Adult Social Care Operations,Supplies and Services,Jan-22
Slough Borough Council,1638,Creative Support Ltd,"1,215.45",M44E,Adult Social Care Operations,Supplies and Services,Jan-22
Slough Borough Council,1638,Creative Support Ltd,699.30,M44E,Adult Social Care Operations,Supplies and Services,Jan-22
Slough Borough Council,1638,Creative Support Ltd,957.38,M44E,Adult Social Care Operations,Supplies and Services,Jan-22
Slough Borough Council,1638,Creative Support Ltd,932.40,M44E,Adult Social Care Operations,Supplies and Services,Jan-22
Slough Borough Council,808207,Creese Consulting Limited,"1,462.50",B282,Digital and Strategic IT,Supplies and Services,Jan-22
Slough Borough Council,806983,Critiqom,557.56,B377,Customer and Communications,Supplies and Services,Jan-22
Slough Borough Council,806983,Critiqom,"1,110.17",H015,Customer and Communications,Supplies and Services,Jan-22
Slough Borough Council,806900,CYXTERA TECHNOLOGY UK LIMITED,"25,055.61",B282,Digital and Strategic IT,Supplies and Services,Jan-22
Slough Borough Council,807440,David Peplow,800.00,A04A,Adult Social Care Operations,Supplies and Services,Jan-22
Slough Borough Council,804689,De Lage Landen Leasing Ltd,"2,085.00",K059,Customer and Communications,Supplies and Services,Jan-22
Slough Borough Council,805964,Design South East,"1,500.00",D224,Planning and Transport,Supplies and Services,Jan-22
Slough Borough Council,803306,Ditton Park Academy,"5,567.00",E269,DSG - Schools,Supplies and Services,Jan-22
Slough Borough Council,803306,Ditton Park Academy,"5,850.00",B297,Finance,Government Grants,Jan-22
Slough Borough Council,1457,Dr Norman Gordon,"2,066.50",D320,Regulatory Services,Premises,Jan-22
Slough Borough Council,1457,Dr Norman Gordon,"2,024.75",D320,Regulatory Services,Premises,Jan-22
Slough Borough Council,803177,Early Steps Preschool,"4,085.27",F909,DSG - Early Years,Supplies and Services,Jan-22
Slough Borough Council,804924,Econ Engineering Limited,"6,945.55",D880,Direct Service Organisation (DSO),Transport,Jan-22
Slough Borough Council,803301,Eden Girls School,"3,500.00",E279,DSG - Schools,Supplies and Services,Jan-22
Slough Borough Council,1299,Edf Energy,"2,867.59",D413,Major Infrastructure Projects,Supplies and Services,Jan-22
Slough Borough Council,805698,EKC GROUP,"11,559.04",F558,DSG - High Needs Block,Supplies and Services,Jan-22
Slough Borough Council,807001,Elegant Care Services Ltd,"5,978.57",M42E,Adult Social Care Operations,Supplies and Services,Jan-22
Slough Borough Council,807001,Elegant Care Services Ltd,"5,757.14",M42E,Adult Social Care Operations,Supplies and Services,Jan-22
Slough Borough Council,807001,Elegant Care Services Ltd,"10,185.71",M42E,Adult Social Care Operations,Supplies and Services,Jan-22
Slough Borough Council,807001,Elegant Care Services Ltd,"6,753.57",M44C,Adult Social Care Operations,Supplies and Services,Jan-22
Slough Borough Council,806355,Elysium Healthcare,"9,576.52",M26E,Adult Social Care Operations,Supplies and Services,Jan-22
Slough Borough Council,3752,Endurance Health,"1,106.70",M44C,Adult Social Care Operations,Supplies and Services,Jan-22
Slough Borough Council,3752,Endurance Health,874.65,M44C,Adult Social Care Operations,Supplies and Services,Jan-22
Slough Borough Council,3752,Endurance Health,571.20,M44C,Adult Social Care Operations,Supplies and Services,Jan-22
Slough Borough Council,3752,Endurance Health,946.05,M44C,Adult Social Care Operations,Supplies and Services,Jan-22
Slough Borough Council,3752,Endurance Health,810.30,M44C,Adult Social Care Operations,Supplies and Services,Jan-22
Slough Borough Council,3752,Endurance Health,624.75,M44C,Adult Social Care Operations,Supplies and Services,Jan-22
Slough Borough Council,3752,Endurance Health,"2,249.10",M44C,Adult Social Care Operations,Supplies and Services,Jan-22
Slough Borough Council,3752,Endurance Health,892.50,M44C,Adult Social Care Operations,Supplies and Services,Jan-22
Slough Borough Council,3752,Endurance Health,"1,694.73",M44C,Adult Social Care Operations,Supplies and Services,Jan-22
Slough Borough Council,3752,Endurance Health,714.31,M44C,Adult Social Care Operations,Supplies and Services,Jan-22
Slough Borough Council,3752,Endurance Health,"2,998.80",M44C,Adult Social Care Operations,Supplies and Services,Jan-22
Slough Borough Council,3752,Endurance Health,"1,108.21",M44C,Adult Social Care Operations,Supplies and Services,Jan-22
Slough Borough Council,3752,Endurance Health,"1,300.00",M44C,Adult Social Care Operations,Supplies and Services,Jan-22
Slough Borough Council,3752,Endurance Health,"1,124.55",M44C,Adult Social Care Operations,Supplies and Services,Jan-22
Slough Borough Council,3752,Endurance Health,"1,100.55",M44C,Adult Social Care Operations,Supplies and Services,Jan-22
Slough Borough Council,3752,Endurance Health,660.15,M44C,Adult Social Care Operations,Supplies and Services,Jan-22
Slough Borough Council,3752,Endurance Health,"1,949.20",M44C,Adult Social Care Operations,Supplies and Services,Jan-22
Slough Borough Council,3752,Endurance Health,696.15,M44C,Adult Social Care Operations,Supplies and Services,Jan-22
Slough Borough Council,3752,Endurance Health,"1,374.45",M44C,Adult Social Care Operations,Supplies and Services,Jan-22
Slough Borough Council,3752,Endurance Health,999.60,M44C,Adult Social Care Operations,Supplies and Services,Jan-22
Slough Borough Council,3752,Endurance Health,"1,041.95",M44C,Adult Social Care Operations,Supplies and Services,Jan-22
Slough Borough Council,3752,Endurance Health,"1,249.50",M44C,Adult Social Care Operations,Supplies and Services,Jan-22
Slough Borough Council,3752,Endurance Health,"1,124.55",M44C,Adult Social Care Operations,Supplies and Services,Jan-22
Slough Borough Council,3752,Endurance Health,700.00,M44C,Adult Social Care Operations,Supplies and Services,Jan-22
Slough Borough Council,3752,Endurance Health,946.05,M44C,Adult Social Care Operations,Supplies and Services,Jan-22
Slough Borough Council,3752,Endurance Health,896.06,M44C,Adult Social Care Operations,Supplies and Services,Jan-22
Slough Borough Council,3752,Endurance Health,"1,178.10",M44D,Adult Social Care Operations,Supplies and Services,Jan-22
Slough Borough Council,3752,Endurance Health,599.00,M44D,Adult Social Care Operations,Supplies and Services,Jan-22
Slough Borough Council,3752,Endurance Health,834.65,M44D,Adult Social Care Operations,Supplies and Services,Jan-22
Slough Borough Council,3752,Endurance Health,"2,249.10",M44D,Adult Social Care Operations,Supplies and Services,Jan-22
Slough Borough Council,3752,Endurance Health,606.90,M44F,Adult Social Care Operations,Supplies and Services,Jan-22
Slough Borough Council,3752,Endurance Health,"1,249.50",M48C,Adult Social Care Operations,Supplies and Services,Jan-22
Slough Borough Council,3752,Endurance Health,"2,781.80",M48C,Adult Social Care Operations,Supplies and Services,Jan-22
Slough Borough Council,805423,Enriched Care,"3,741.70",M44D,Adult Social Care Operations,Supplies and Services,Jan-22
Slough Borough Council,805423,Enriched Care,"2,613.30",M44F,Adult Social Care Operations,Supplies and Services,Jan-22
Slough Borough Council,805423,Enriched Care,"2,861.30",M44F,Adult Social Care Operations,Supplies and Services,Jan-22
Slough Borough Council,805423,Enriched Care,"2,879.90",M44F,Adult Social Care Operations,Supplies and Services,Jan-22
Slough Borough Council,805423,Enriched Care,"4,417.50",M44F,Adult Social Care Operations,Supplies and Services,Jan-22
Slough Borough Council,805423,Enriched Care,"2,768.30",M44F,Adult Social Care Operations,Supplies and Services,Jan-22
Slough Borough Council,805423,Enriched Care,"1,758.01",M80F,Adult Social Care Operations,Supplies and Services,Jan-22
Slough Borough Council,807310,Enterprise Rent-A-Car UK Limited trading as Enterprise Flex-E-Rent,"27,639.10",D910,Direct Service Organisation (DSO),Transport,Jan-22
Slough Borough Council,807039,Epaton Ltd,"9,300.00",B282,Digital and Strategic IT,Supplies and Services,Jan-22
Slough Borough Council,805225,Falcon Surfacing Ltd,"5,594.16",D880,Direct Service Organisation (DSO),Supplies and Services,Jan-22
Slough Borough Council,805225,Falcon Surfacing Ltd,"13,773.90",D880,Direct Service Organisation (DSO),Supplies and Services,Jan-22
Slough Borough Council,805225,Falcon Surfacing Ltd,"4,255.00",D880,Direct Service Organisation (DSO),Supplies and Services,Jan-22
Slough Borough Council,805225,Falcon Surfacing Ltd,"1,175.00",D880,Direct Service Organisation (DSO),Supplies and Services,Jan-22
Slough Borough Council,805225,Falcon Surfacing Ltd,"23,420.00",D880,Direct Service Organisation (DSO),Supplies and Services,Jan-22
Slough Borough Council,805225,Falcon Surfacing Ltd,"2,400.00",D880,Direct Service Organisation (DSO),Supplies and Services,Jan-22
Slough Borough Council,805225,Falcon Surfacing Ltd,"1,450.23",D880,Direct Service Organisation (DSO),Supplies and Services,Jan-22
Slough Borough Council,805225,Falcon Surfacing Ltd,"2,135.00",D880,Direct Service Organisation (DSO),Supplies and Services,Jan-22
Slough Borough Council,805225,Falcon Surfacing Ltd,"1,036.90",D880,Direct Service Organisation (DSO),Supplies and Services,Jan-22
Slough Borough Council,805225,Falcon Surfacing Ltd,"1,211.40",D880,Direct Service Organisation (DSO),Supplies and Services,Jan-22
Slough Borough Council,805225,Falcon Surfacing Ltd,"1,543.08",D880,Direct Service Organisation (DSO),Supplies and Services,Jan-22
Slough Borough Council,805225,Falcon Surfacing Ltd,"11,151.80",D880,Direct Service Organisation (DSO),Supplies and Services,Jan-22
Slough Borough Council,805225,Falcon Surfacing Ltd,"1,320.00",D880,Direct Service Organisation (DSO),Supplies and Services,Jan-22
Slough Borough Council,805225,Falcon Surfacing Ltd,652.60,D880,Direct Service Organisation (DSO),Supplies and Services,Jan-22
Slough Borough Council,805225,Falcon Surfacing Ltd,"10,267.00",D880,Direct Service Organisation (DSO),Supplies and Services,Jan-22
Slough Borough Council,805225,Falcon Surfacing Ltd,"1,185.98",D880,Direct Service Organisation (DSO),Supplies and Services,Jan-22
Slough Borough Council,805225,Falcon Surfacing Ltd,"12,728.44",D880,Direct Service Organisation (DSO),Supplies and Services,Jan-22
Slough Borough Council,805225,Falcon Surfacing Ltd,"1,090.42",D880,Direct Service Organisation (DSO),Supplies and Services,Jan-22
Slough Borough Council,805225,Falcon Surfacing Ltd,"1,081.61",D880,Direct Service Organisation (DSO),Supplies and Services,Jan-22
Slough Borough Council,805225,Falcon Surfacing Ltd,"10,573.00",D880,Direct Service Organisation (DSO),Supplies and Services,Jan-22
Slough Borough Council,805225,Falcon Surfacing Ltd,"1,115.26",D880,Direct Service Organisation (DSO),Supplies and Services,Jan-22
Slough Borough Council,805225,Falcon Surfacing Ltd,"5,618.80",D880,Direct Service Organisation (DSO),Supplies and Services,Jan-22
Slough Borough Council,805225,Falcon Surfacing Ltd,"4,575.00",D880,Direct Service Organisation (DSO),Supplies and Services,Jan-22
Slough Borough Council,805225,Falcon Surfacing Ltd,"1,518.20",D880,Direct Service Organisation (DSO),Supplies and Services,Jan-22
Slough Borough Council,805225,Falcon Surfacing Ltd,"1,550.46",D880,Direct Service Organisation (DSO),Supplies and Services,Jan-22
Slough Borough Council,805225,Falcon Surfacing Ltd,525.76,D880,Direct Service Organisation (DSO),Supplies and Services,Jan-22
Slough Borough Council,805225,Falcon Surfacing Ltd,"3,086.16",D880,Direct Service Organisation (DSO),Supplies and Services,Jan-22
Slough Borough Council,805225,Falcon Surfacing Ltd,"1,667.00",D880,Direct Service Organisation (DSO),Supplies and Services,Jan-22
Slough Borough Council,805225,Falcon Surfacing Ltd,"10,060.00",D880,Direct Service Organisation (DSO),Supplies and Services,Jan-22
Slough Borough Council,805225,Falcon Surfacing Ltd,561.20,D880,Direct Service Organisation (DSO),Supplies and Services,Jan-22
Slough Borough Council,805225,Falcon Surfacing Ltd,"10,949.88",D880,Direct Service Organisation (DSO),Supplies and Services,Jan-22
Slough Borough Council,805225,Falcon Surfacing Ltd,"1,067.78",D880,Direct Service Organisation (DSO),Supplies and Services,Jan-22
Slough Borough Council,805225,Falcon Surfacing Ltd,"7,721.40",D880,Direct Service Organisation (DSO),Supplies and Services,Jan-22
Slough Borough Council,4031,Family Support Practise Limited,"1,665.00",B277,Digital and Strategic IT,Supplies and Services,Jan-22
Slough Borough Council,4031,Family Support Practise Limited,"1,665.00",B277,Digital and Strategic IT,Supplies and Services,Jan-22
Slough Borough Council,4031,Family Support Practise Limited,"1,665.00",B277,Digital and Strategic IT,Supplies and Services,Jan-22
Slough Borough Council,4031,Family Support Practise Limited,"1,665.00",B277,Digital and Strategic IT,Supplies and Services,Jan-22
Slough Borough Council,4031,Family Support Practise Limited,"1,665.00",B277,Digital and Strategic IT,Supplies and Services,Jan-22
Slough Borough Council,4031,Family Support Practise Limited,"1,350.00",B277,Digital and Strategic IT,Supplies and Services,Jan-22
Slough Borough Council,475,Farnham Road Surgery,"14,203.66",A04C,Adult Social Care Commissioning,Supplies and Services,Jan-22
Slough Borough Council,807403,Farol Limited,"1,352.06",B179,Building Management,Premises,Jan-22
Slough Borough Council,807620,FERN CONSULTING SERVICES LTD,"4,477.70",D012,Major Infrastructure Projects,Supplies and Services,Jan-22
Slough Borough Council,754,First Steps Day Nursery,"7,676.23",F909,DSG - Early Years,Supplies and Services,Jan-22
Slough Borough Council,1626,Five Star Radio Cars Limited,"1,800.00",F123,Schools,Supplies and Services,Jan-22
Slough Borough Council,1626,Five Star Radio Cars Limited,"1,197.00",F123,Schools,Supplies and Services,Jan-22
Slough Borough Council,1626,Five Star Radio Cars Limited,"1,795.50",F123,Schools,Supplies and Services,Jan-22
Slough Borough Council,1626,Five Star Radio Cars Limited,"1,575.00",F123,Schools,Supplies and Services,Jan-22
Slough Borough Council,1204,Forget Me Not,744.54,B298,Finance,Supplies and Services,Jan-22
Slough Borough Council,1204,Forget Me Not,"1,492.45",B324,Finance,Supplies and Services,Jan-22
Slough Borough Council,1204,Forget Me Not,"3,800.00",M25C,Adult Social Care Operations,Supplies and Services,Jan-22
Slough Borough Council,1204,Forget Me Not,"3,180.00",M25C,Adult Social Care Operations,Supplies and Services,Jan-22
Slough Borough Council,1204,Forget Me Not,"4,180.00",M27C,Adult Social Care Operations,Supplies and Services,Jan-22
Slough Borough Council,1204,Forget Me Not,"3,400.00",M27C,Adult Social Care Operations,Supplies and Services,Jan-22
Slough Borough Council,1204,Forget Me Not,"3,047.40",M27C,Adult Social Care Operations,Supplies and Services,Jan-22
Slough Borough Council,1204,Forget Me Not,"4,180.00",M27C,Adult Social Care Operations,Supplies and Services,Jan-22
Slough Borough Council,647,Foxborough Primary School,"6,390.00",E229,DSG - Schools,Supplies and Services,Jan-22
Slough Borough Council,3120,Frontier Software Plc,"8,162.51",B409,People,Supplies and Services,Jan-22
Slough Borough Council,804911,GAP Group Limited,997.92,D880,Direct Service Organisation (DSO),Supplies and Services,Jan-22
Slough Borough Council,804911,GAP Group Limited,966.00,D880,Direct Service Organisation (DSO),Supplies and Services,Jan-22
Slough Borough Council,804911,GAP Group Limited,"1,012.00",D880,Direct Service Organisation (DSO),Supplies and Services,Jan-22
Slough Borough Council,807662,GASMARK TRAINING AND ASSESSMENT LTD,"1,000.00",J020,HDC Housing Development,Indirect Employee Expenses,Jan-22
Slough Borough Council,650,George Lines (Merchants) Ltd,"6,207.56",D880,Direct Service Organisation (DSO),Supplies and Services,Jan-22
Slough Borough Council,650,George Lines (Merchants) Ltd,"4,523.96",D880,Direct Service Organisation (DSO),Supplies and Services,Jan-22
Slough Borough Council,650,George Lines (Merchants) Ltd,"6,141.08",D880,Direct Service Organisation (DSO),Supplies and Services,Jan-22
Slough Borough Council,808013,Get Active Sports,"2,460.00",F382,Children & Families,Supplies and Services,Jan-22
Slough Borough Council,807626,Global Radio Services Ltd,"2,611.20",B310,Finance,Supplies and Services,Jan-22
Slough Borough Council,807626,Global Radio Services Ltd,"3,225.60",B310,Finance,Supplies and Services,Jan-22
Slough Borough Council,807626,Global Radio Services Ltd,"1,663.20",B310,Finance,Supplies and Services,Jan-22
Slough Borough Council,807340,Goldcrest Care Services,767.02,B298,Finance,Supplies and Services,Jan-22
Slough Borough Council,807340,Goldcrest Care Services,"3,227.09",B298,Finance,Supplies and Services,Jan-22
Slough Borough Council,807340,Goldcrest Care Services,"1,940.18",B324,Finance,Supplies and Services,Jan-22
Slough Borough Council,807340,Goldcrest Care Services,-767.02,B324,Finance,Supplies and Services,Jan-22
Slough Borough Council,807340,Goldcrest Care Services,"-1,940.18",B324,Finance,Supplies and Services,Jan-22
Slough Borough Council,2830,GR Response Healthcare Ltd,"1,535.62",B298,Finance,Supplies and Services,Jan-22
Slough Borough Council,2830,GR Response Healthcare Ltd,"1,492.45",B324,Finance,Supplies and Services,Jan-22
Slough Borough Council,2830,GR Response Healthcare Ltd,"2,250.08",A07R,Adult Social Care Operations,Supplies and Services,Jan-22
Slough Borough Council,2830,GR Response Healthcare Ltd,"2,249.10",A07R,Adult Social Care Operations,Supplies and Services,Jan-22
Slough Borough Council,2830,GR Response Healthcare Ltd,"1,320.50",M44C,Adult Social Care Operations,Supplies and Services,Jan-22
Slough Borough Council,2830,GR Response Healthcare Ltd,776.75,M44C,Adult Social Care Operations,Supplies and Services,Jan-22
Slough Borough Council,2830,GR Response Healthcare Ltd,"1,064.00",M44C,Adult Social Care Operations,Supplies and Services,Jan-22
Slough Borough Council,2830,GR Response Healthcare Ltd,"2,394.00",M44C,Adult Social Care Operations,Supplies and Services,Jan-22
Slough Borough Council,2830,GR Response Healthcare Ltd,"1,482.04",M44C,Adult Social Care Operations,Supplies and Services,Jan-22
Slough Borough Council,2830,GR Response Healthcare Ltd,"2,090.00",M44C,Adult Social Care Operations,Supplies and Services,Jan-22
Slough Borough Council,2830,GR Response Healthcare Ltd,"2,394.00",M44C,Adult Social Care Operations,Supplies and Services,Jan-22
Slough Borough Council,2830,GR Response Healthcare Ltd,"1,415.50",M44C,Adult Social Care Operations,Supplies and Services,Jan-22
Slough Borough Council,2830,GR Response Healthcare Ltd,665.00,M44C,Adult Social Care Operations,Supplies and Services,Jan-22
Slough Borough Council,2830,GR Response Healthcare Ltd,"1,862.00",M44C,Adult Social Care Operations,Supplies and Services,Jan-22
Slough Borough Council,2830,GR Response Healthcare Ltd,"2,394.00",M44C,Adult Social Care Operations,Supplies and Services,Jan-22
Slough Borough Council,2830,GR Response Healthcare Ltd,"2,546.00",M44C,Adult Social Care Operations,Supplies and Services,Jan-22
Slough Borough Council,2830,GR Response Healthcare Ltd,"1,064.00",M44D,Adult Social Care Operations,Supplies and Services,Jan-22
Slough Borough Council,2830,GR Response Healthcare Ltd,"1,596.00",M44D,Adult Social Care Operations,Supplies and Services,Jan-22
Slough Borough Council,2830,GR Response Healthcare Ltd,665.00,M44D,Adult Social Care Operations,Supplies and Services,Jan-22
Slough Borough Council,2830,GR Response Healthcare Ltd,"2,812.00",M44D,Adult Social Care Operations,Supplies and Services,Jan-22
Slough Borough Council,2830,GR Response Healthcare Ltd,"2,394.00",M44D,Adult Social Care Operations,Supplies and Services,Jan-22
Slough Borough Council,2830,GR Response Healthcare Ltd,570.92,M44F,Adult Social Care Operations,Supplies and Services,Jan-22
Slough Borough Council,2830,GR Response Healthcare Ltd,"2,128.00",M44F,Adult Social Care Operations,Supplies and Services,Jan-22
Slough Borough Council,2830,GR Response Healthcare Ltd,"2,249.10",M45C,Adult Social Care Operations,Supplies and Services,Jan-22
Slough Borough Council,2830,GR Response Healthcare Ltd,946.46,M45C,Adult Social Care Operations,Supplies and Services,Jan-22
Slough Borough Council,2830,GR Response Healthcare Ltd,"3,002.00",M48C,Adult Social Care Operations,Supplies and Services,Jan-22
Slough Borough Council,2830,GR Response Healthcare Ltd,"8,750.00",A06C,Adult Social Care Commissioning,Supplies and Services,Jan-22
Slough Borough Council,804577,Green Monarch ZC2016 c/o Savills(UK) Limited,"3,583.33",H205,Housing (People) Services,Premises,Jan-22
Slough Borough Council,805069,Grove Academy,"32,825.00",E299,DSG - Schools,Supplies and Services,Jan-22
Slough Borough Council,804447,Grundon Waste Management Limited,"440,716.11",D342,Direct Service Organisation (DSO),Supplies and Services,Jan-22
Slough Borough Council,804447,Grundon Waste Management Limited,"118,069.21",D342,Direct Service Organisation (DSO),Supplies and Services,Jan-22
Slough Borough Council,1946,Guru Nanak Sikh Academy Ltd,"3,365.33",F552,DSG - High Needs Block,Supplies and Services,Jan-22
Slough Borough Council,3228,H Plus Care Ltd,"4,180.57",M17C,Adult Social Care Operations,Supplies and Services,Jan-22
Slough Borough Council,3228,H Plus Care Ltd,"4,180.57",M18C,Adult Social Care Operations,Supplies and Services,Jan-22
Slough Borough Council,3228,H Plus Care Ltd,"5,535.71",M25C,Adult Social Care Operations,Supplies and Services,Jan-22
Slough Borough Council,3228,H Plus Care Ltd,"5,314.29",M26E,Adult Social Care Operations,Supplies and Services,Jan-22
Slough Borough Council,806681,Hako Machines Ltd,597.42,D620,Direct Service Organisation (DSO),Supplies and Services,Jan-22
Slough Borough Council,744,Hampshire County Council,"2,047.10",D015,Major Infrastructure Projects,Supplies and Services,Jan-22
Slough Borough Council,744,Hampshire County Council,"3,794.00",D015,Major Infrastructure Projects,Supplies and Services,Jan-22
Slough Borough Council,804986,Havencare Ltd,"1,279.50",M26E,Adult Social Care Operations,Supplies and Services,Jan-22
Slough Borough Council,804986,Havencare Ltd,"1,279.50",M26E,Adult Social Care Operations,Supplies and Services,Jan-22
Slough Borough Council,804986,Havencare Ltd,"1,279.50",M26E,Adult Social Care Operations,Supplies and Services,Jan-22
Slough Borough Council,804986,Havencare Ltd,"1,279.50",M26E,Adult Social Care Operations,Supplies and Services,Jan-22
Slough Borough Council,1381,Haybrook College,"190,366.00",E809,DSG - High Needs Block,Supplies and Services,Jan-22
Slough Borough Council,3784,Haybrook College Pru,"54,200.00",E809,DSG - High Needs Block,Supplies and Services,Jan-22
Slough Borough Council,1956,Heathlands School,"4,640.85",F551,DSG - High Needs Block,Supplies and Services,Jan-22
Slough Borough Council,3387,Herschel Grammar School,"1,300.00",E309,DSG - Schools,Supplies and Services,Jan-22
Slough Borough Council,807998,Heywood�s Catering,"2,123.00",F382,Children & Families,TP-Other Bodies,Jan-22
Slough Borough Council,806731,High Hurlands Homes,"6,971.20",M26E,Adult Social Care Operations,Supplies and Services,Jan-22
Slough Borough Council,3250,Hodge Hill Grange H C One Ltd,"2,380.00",M15D,Adult Social Care Operations,Supplies and Services,Jan-22
Slough Borough Council,850,Holy Family Catholic Primary School,"198,702.79",E259,DSG - Schools,Supplies and Services,Jan-22
Slough Borough Council,807737,Homelink Healthcare Limited,"4,477.35",B324,Finance,Supplies and Services,Jan-22
Slough Borough Council,803983,Hounslow Arts Centre Ltd,"6,500.00",C322,Communities and Leisure,Supplies and Services,Jan-22
Slough Borough Council,1914,Huntcliff Limited,"1,225.00",J028,Housing Revenue Account,Supplies and Services,Jan-22
Slough Borough Council,1914,Huntcliff Limited,675.00,J028,Housing Revenue Account,Supplies and Services,Jan-22
Slough Borough Council,1914,Huntcliff Limited,"1,925.00",J028,Housing Revenue Account,Supplies and Services,Jan-22
Slough Borough Council,803037,Idox Software Ltd,845.19,B282,Digital and Strategic IT,Supplies and Services,Jan-22
Slough Borough Council,2917,Imperial Coaches Ltd,"2,730.00",F123,Schools,Supplies and Services,Jan-22
Slough Borough Council,807666,Independence Home and Domicilary Care,"2,940.66",M44F,Adult Social Care Operations,Supplies and Services,Jan-22
Slough Borough Council,807666,Independence Home and Domicilary Care,"3,272.10",M44F,Adult Social Care Operations,Supplies and Services,Jan-22
Slough Borough Council,807666,Independence Home and Domicilary Care,"2,845.80",M44F,Adult Social Care Operations,Supplies and Services,Jan-22
Slough Borough Council,807666,Independence Home and Domicilary Care,"3,381.17",M44F,Adult Social Care Operations,Supplies and Services,Jan-22
Slough Borough Council,3570,Independent Supported Living And Disabilities Ltd,"1,716.32",B324,Finance,Supplies and Services,Jan-22
Slough Borough Council,3570,Independent Supported Living And Disabilities Ltd,"2,291.52",M44F,Adult Social Care Operations,Supplies and Services,Jan-22
Slough Borough Council,808214,Infocus Charity,"23,678.55",F462,DSG - High Needs Block,Supplies and Services,Jan-22
Slough Borough Council,3172,Intelligent Transport Services,"2,400.00",D509,Major Infrastructure Projects,Supplies and Services,Jan-22
Slough Borough Council,3172,Intelligent Transport Services,"2,100.00",P209,Capital,Capital Charges,Jan-22
Slough Borough Council,3172,Intelligent Transport Services,"1,500.00",P209,Capital,Capital Charges,Jan-22
Slough Borough Council,3172,Intelligent Transport Services,"3,900.00",P211,Capital,Capital Charges,Jan-22
Slough Borough Council,3172,Intelligent Transport Services,"2,100.00",P235,Capital,Capital Charges,Jan-22
Slough Borough Council,3172,Intelligent Transport Services,600.00,P235,Capital,Capital Charges,Jan-22
Slough Borough Council,3500,Iqra Slough Islamic Primary School,"103,286.89",E489,DSG - Schools,Supplies and Services,Jan-22
Slough Borough Council,998,Iron Mountain Uk Ltd,"1,961.12",B282,Digital and Strategic IT,Supplies and Services,Jan-22
Slough Borough Council,998,Iron Mountain Uk Ltd,"1,844.97",B282,Digital and Strategic IT,Supplies and Services,Jan-22
Slough Borough Council,998,Iron Mountain Uk Ltd,"1,900.01",B282,Digital and Strategic IT,Supplies and Services,Jan-22
Slough Borough Council,998,Iron Mountain Uk Ltd,"1,989.59",B282,Digital and Strategic IT,Supplies and Services,Jan-22
Slough Borough Council,998,Iron Mountain Uk Ltd,"2,242.53",B282,Digital and Strategic IT,Supplies and Services,Jan-22
Slough Borough Council,998,Iron Mountain Uk Ltd,"2,338.59",B282,Digital and Strategic IT,Supplies and Services,Jan-22
Slough Borough Council,998,Iron Mountain Uk Ltd,838.90,B282,Digital and Strategic IT,Supplies and Services,Jan-22
Slough Borough Council,998,Iron Mountain Uk Ltd,"2,027.17",B282,Digital and Strategic IT,Supplies and Services,Jan-22
Slough Borough Council,998,Iron Mountain Uk Ltd,"2,116.51",B282,Digital and Strategic IT,Supplies and Services,Jan-22
Slough Borough Council,998,Iron Mountain Uk Ltd,"2,014.10",B282,Digital and Strategic IT,Supplies and Services,Jan-22
Slough Borough Council,998,Iron Mountain Uk Ltd,"1,840.94",B282,Digital and Strategic IT,Supplies and Services,Jan-22
Slough Borough Council,998,Iron Mountain Uk Ltd,"2,135.85",B282,Digital and Strategic IT,Supplies and Services,Jan-22
Slough Borough Council,998,Iron Mountain Uk Ltd,"2,159.18",B282,Digital and Strategic IT,Supplies and Services,Jan-22
Slough Borough Council,998,Iron Mountain Uk Ltd,"2,179.49",B282,Digital and Strategic IT,Supplies and Services,Jan-22
Slough Borough Council,998,Iron Mountain Uk Ltd,"2,110.96",B282,Digital and Strategic IT,Supplies and Services,Jan-22
Slough Borough Council,2919,Islamic Shakhsiyah Foundation,"7,326.15",F909,DSG - Early Years,Supplies and Services,Jan-22
Slough Borough Council,807346,Jacaranda,"4,379.00",M44F,Adult Social Care Operations,Supplies and Services,Jan-22
Slough Borough Council,753,Jack In The Box Day Nursery,"10,369.81",F909,DSG - Early Years,Supplies and Services,Jan-22
Slough Borough Council,733,James Elliman  School,"23,920.00",E319,DSG - Schools,Supplies and Services,Jan-22
Slough Borough Council,805226,JD Surfacing & Civil Engineering Limited,"9,705.00",D880,Direct Service Organisation (DSO),Supplies and Services,Jan-22
Slough Borough Council,805226,JD Surfacing & Civil Engineering Limited,"7,560.00",D880,Direct Service Organisation (DSO),Supplies and Services,Jan-22
Slough Borough Council,805226,JD Surfacing & Civil Engineering Limited,"7,560.00",D880,Direct Service Organisation (DSO),Supplies and Services,Jan-22
Slough Borough Council,805226,JD Surfacing & Civil Engineering Limited,"9,720.00",D880,Direct Service Organisation (DSO),Supplies and Services,Jan-22
Slough Borough Council,1592,Jmw Systems Limited,"2,000.00",B303,Finance,Supplies and Services,Jan-22
Slough Borough Council,807339,Joymac Care Ltd,747.09,B298,Finance,Supplies and Services,Jan-22
Slough Borough Council,807339,Joymac Care Ltd,596.98,B324,Finance,Supplies and Services,Jan-22
Slough Borough Council,807674,Kainos Software Ltd,"2,500.00",D501,Planning and Transport,Supplies and Services,Jan-22
Slough Borough Council,803815,Kathys Childcare,"1,900.00",F909,DSG - Early Years,Supplies and Services,Jan-22
Slough Borough Council,2620,Kcare Nursing Agency Ltd,"2,668.75",M44C,Adult Social Care Operations,Supplies and Services,Jan-22
Slough Borough Council,804887,KCare Nursing Agency Ltd Supported House Living,"2,926.00",M42F,Adult Social Care Operations,Supplies and Services,Jan-22
Slough Borough Council,804887,KCare Nursing Agency Ltd Supported House Living,"2,926.00",M42F,Adult Social Care Operations,Supplies and Services,Jan-22
Slough Borough Council,804887,KCare Nursing Agency Ltd Supported House Living,"2,493.50",M44F,Adult Social Care Operations,Supplies and Services,Jan-22
Slough Borough Council,807742,Khalsa Primary School,"11,660.00",E529,DSG - Schools,Supplies and Services,Jan-22
Slough Borough Council,803916,Kharis Solutions,"2,278.00",M44C,Adult Social Care Operations,Supplies and Services,Jan-22
Slough Borough Council,803916,Kharis Solutions,"2,142.00",M44D,Adult Social Care Operations,Supplies and Services,Jan-22
Slough Borough Council,803916,Kharis Solutions,"9,018.00",M44E,Adult Social Care Operations,Supplies and Services,Jan-22
Slough Borough Council,803916,Kharis Solutions,"9,900.00",M44E,Adult Social Care Operations,Supplies and Services,Jan-22
Slough Borough Council,803916,Kharis Solutions,"9,018.00",M44E,Adult Social Care Operations,Supplies and Services,Jan-22
Slough Borough Council,803916,Kharis Solutions,"2,210.00",M48C,Adult Social Care Operations,Supplies and Services,Jan-22
Slough Borough Council,807911,Kidz Enterprise LTD,"1,360.00",F382,Children & Families,Supplies and Services,Jan-22
Slough Borough Council,664,Langley Grammar School,800.00,E329,DSG - Schools,Supplies and Services,Jan-22
Slough Borough Council,1699,Langley Hall Primary Academy,"2,700.00",E739,DSG - Schools,Supplies and Services,Jan-22
Slough Borough Council,3001,Langley Haven Care Homes Ltd,"3,604.68",M25C,Adult Social Care Operations,Supplies and Services,Jan-22
Slough Borough Council,3001,Langley Haven Care Homes Ltd,"3,604.68",M25C,Adult Social Care Operations,Supplies and Services,Jan-22
Slough Borough Council,3001,Langley Haven Care Homes Ltd,"3,720.00",M26E,Adult Social Care Operations,Supplies and Services,Jan-22
Slough Borough Council,3001,Langley Haven Care Homes Ltd,"3,720.00",M26E,Adult Social Care Operations,Supplies and Services,Jan-22
Slough Borough Council,3001,Langley Haven Care Homes Ltd,"3,604.68",M27C,Adult Social Care Operations,Supplies and Services,Jan-22
Slough Borough Council,3001,Langley Haven Care Homes Ltd,"3,604.68",M27C,Adult Social Care Operations,Supplies and Services,Jan-22
Slough Borough Council,3001,Langley Haven Care Homes Ltd,"3,604.68",M27C,Adult Social Care Operations,Supplies and Services,Jan-22
Slough Borough Council,3001,Langley Haven Care Homes Ltd,"3,604.68",M27C,Adult Social Care Operations,Supplies and Services,Jan-22
Slough Borough Council,3001,Langley Haven Care Homes Ltd,"3,604.68",M27C,Adult Social Care Operations,Supplies and Services,Jan-22
Slough Borough Council,3001,Langley Haven Care Homes Ltd,"3,604.68",M27C,Adult Social Care Operations,Supplies and Services,Jan-22
Slough Borough Council,3001,Langley Haven Care Homes Ltd,"3,604.68",M27F,Adult Social Care Operations,Supplies and Services,Jan-22
Slough Borough Council,3001,Langley Haven Care Homes Ltd,"3,604.68",M27F,Adult Social Care Operations,Supplies and Services,Jan-22
Slough Borough Council,3001,Langley Haven Care Homes Ltd,"3,604.68",M27F,Adult Social Care Operations,Supplies and Services,Jan-22
Slough Borough Council,3001,Langley Haven Care Homes Ltd,"1,860.00",M27F,Adult Social Care Operations,Supplies and Services,Jan-22
Slough Borough Council,3001,Langley Haven Care Homes Ltd,"3,985.71",M27F,Adult Social Care Operations,Supplies and Services,Jan-22
Slough Borough Council,3001,Langley Haven Care Homes Ltd,"1,882.14",M27F,Adult Social Care Operations,Supplies and Services,Jan-22
Slough Borough Council,3001,Langley Haven Care Homes Ltd,"3,604.68",M27F,Adult Social Care Operations,Supplies and Services,Jan-22
Slough Borough Council,3001,Langley Haven Care Homes Ltd,"3,604.68",M29C,Adult Social Care Operations,Supplies and Services,Jan-22
Slough Borough Council,803686,Lascelles Park Nursery,"14,207.72",F909,DSG - Early Years,Supplies and Services,Jan-22
Slough Borough Council,3482,Leonard Cheshire Disability,"5,608.87",M25D,Adult Social Care Operations,Supplies and Services,Jan-22
Slough Borough Council,301,Liberata Uk Limited,"8,694.60",B290,Customer and Communications,Premises,Jan-22
Slough Borough Council,301,Liberata Uk Limited,"9,329.70",B290,Customer and Communications,Premises,Jan-22
Slough Borough Council,301,Liberata Uk Limited,"7,241.86",B048,Customer and Communications,Supplies and Services,Jan-22
Slough Borough Council,469,LimeBlue Innovation Limited,"1,615.00",H213,Housing (People) Services,Supplies and Services,Jan-22
Slough Borough Council,397,Liquidlogic,"21,500.00",B277,Digital and Strategic IT,Supplies and Services,Jan-22
Slough Borough Council,804692,Little Diamonds Pre School,"15,000.00",F909,DSG - Early Years,Supplies and Services,Jan-22
Slough Borough Council,808192,Little Musketeers,"4,560.00",F382,Children & Families,Supplies and Services,Jan-22
Slough Borough Council,808192,Little Musketeers,"1,504.80",F382,Children & Families,Supplies and Services,Jan-22
Slough Borough Council,3791,Littledown Pru,"17,100.00",E807,DSG - High Needs Block,Supplies and Services,Jan-22
Slough Borough Council,667,Littledown School,"80,653.00",E807,DSG - High Needs Block,Supplies and Services,Jan-22
Slough Borough Council,792,Local Government Association,"11,439.39",J400,Housing Revenue Account,Supplies and Services,Jan-22
Slough Borough Council,1328,London & Quadrant Housing Trust,"57,554.16",H205,Housing (People) Services,Premises,Jan-22
Slough Borough Council,804544,London Borough of Harrow,"70,446.18",B096,Governance,Indirect Employee Expenses,Jan-22
Slough Borough Council,804544,London Borough of Harrow,"89,246.13",B096,Governance,Indirect Employee Expenses,Jan-22
Slough Borough Council,804544,London Borough of Harrow,"96,332.38",B096,Governance,Indirect Employee Expenses,Jan-22
Slough Borough Council,804544,London Borough of Harrow,"91,880.38",B096,Governance,Indirect Employee Expenses,Jan-22
Slough Borough Council,1282,Long Close School,"3,156.88",F909,DSG - Early Years,Supplies and Services,Jan-22
Slough Borough Council,804585,Longlea Ltd,"3,985.71",M18C,Adult Social Care Operations,Supplies and Services,Jan-22
Slough Borough Council,2302,Look Ahead Care And Support,522.36,B324,Finance,Supplies and Services,Jan-22
Slough Borough Council,2302,Look Ahead Care And Support,"28,184.58",M42F,Adult Social Care Operations,Supplies and Services,Jan-22
Slough Borough Council,2302,Look Ahead Care And Support,"3,131.62",M44F,Adult Social Care Operations,Supplies and Services,Jan-22
Slough Borough Council,2302,Look Ahead Care And Support,"3,131.62",M44F,Adult Social Care Operations,Supplies and Services,Jan-22
Slough Borough Council,2302,Look Ahead Care And Support,"-3,722.40",M44F,Adult Social Care Operations,Supplies and Services,Jan-22
Slough Borough Council,2302,Look Ahead Care And Support,"13,982.80",H211,Adult Social Care Operations,Supplies and Services,Jan-22
Slough Borough Council,3910,Lookahead Care & Support,"2,161.54",H216,Housing (People) Services,Supplies and Services,Jan-22
Slough Borough Council,807840,Lumen,"4,109.90",B282,Digital and Strategic IT,Supplies and Services,Jan-22
Slough Borough Council,1195,Lynch Hill (Foundation Primary) School,"32,450.00",E749,DSG - Schools,Supplies and Services,Jan-22
Slough Borough Council,1771,Lynch Hill Academy,"8,200.00",E359,DSG - Schools,Supplies and Services,Jan-22
Slough Borough Council,807217,Macadamia Support Limited,"7,308.00",M42E,Adult Social Care Operations,Supplies and Services,Jan-22
Slough Borough Council,807217,Macadamia Support Limited,"6,931.20",M42E,Adult Social Care Operations,Supplies and Services,Jan-22
Slough Borough Council,807217,Macadamia Support Limited,"6,713.00",M42E,Adult Social Care Operations,Supplies and Services,Jan-22
Slough Borough Council,807217,Macadamia Support Limited,"3,973.20",M42E,Adult Social Care Operations,Supplies and Services,Jan-22
Slough Borough Council,807217,Macadamia Support Limited,"7,308.00",M42E,Adult Social Care Operations,Supplies and Services,Jan-22
Slough Borough Council,807217,Macadamia Support Limited,"3,589.12",M42E,Adult Social Care Operations,Supplies and Services,Jan-22
Slough Borough Council,807217,Macadamia Support Limited,"3,591.56",M44C,Adult Social Care Operations,Supplies and Services,Jan-22
Slough Borough Council,807217,Macadamia Support Limited,"5,523.00",M44D,Adult Social Care Operations,Supplies and Services,Jan-22
Slough Borough Council,3768,Marish Academy Trust,"1,613.45",B191,Building Management,Premises,Jan-22
Slough Borough Council,3768,Marish Academy Trust,"6,781.50",B191,Building Management,Premises,Jan-22
Slough Borough Council,529,Marish Primary School,"40,650.00",E759,DSG - Schools,Supplies and Services,Jan-22
Slough Borough Council,1886,Matrix Scm,"362,280.12",B023,Finance,Agency Staff,Jan-22
Slough Borough Council,1886,Matrix Scm,"242,414.34",B023,Finance,Agency Staff,Jan-22
Slough Borough Council,1886,Matrix Scm,"158,720.47",B023,Finance,Agency Staff,Jan-22
Slough Borough Council,1886,Matrix Scm,"239,184.77",B023,Finance,Agency Staff,Jan-22
Slough Borough Council,1886,Matrix Scm,"305,684.98",B023,Finance,Agency Staff,Jan-22
Slough Borough Council,1886,Matrix Scm,"305,113.78",B023,Finance,Agency Staff,Jan-22
Slough Borough Council,805218,Merit Thornton Planning and Community Consultants Ltd,"2,508.17",D012,Major Infrastructure Projects,Supplies and Services,Jan-22
Slough Borough Council,1496,Mighty Acorns Day Nursery Ltd,"13,646.53",F909,DSG - Early Years,Supplies and Services,Jan-22
Slough Borough Council,806737,Mishcon de Reya LLP,"4,059.00",P405,Capital,Capital Charges,Jan-22
Slough Borough Council,1879,Mj Events Support Limited,"13,440.00",B310,Finance,Supplies and Services,Jan-22
Slough Borough Council,805121,MMCG (2) Limited,"2,466.29",B298,Finance,Supplies and Services,Jan-22
Slough Borough Council,805121,MMCG (2) Limited,"4,387.30",A03E,Adult Social Care Operations,Supplies and Services,Jan-22
Slough Borough Council,805121,MMCG (2) Limited,"3,557.25",M15D,Adult Social Care Operations,Supplies and Services,Jan-22
Slough Borough Council,805121,MMCG (2) Limited,"3,557.25",M15F,Adult Social Care Operations,Supplies and Services,Jan-22
Slough Borough Council,805121,MMCG (2) Limited,"3,557.25",M17C,Adult Social Care Operations,Supplies and Services,Jan-22
Slough Borough Council,805121,MMCG (2) Limited,"3,557.25",M17C,Adult Social Care Operations,Supplies and Services,Jan-22
Slough Borough Council,805121,MMCG (2) Limited,"4,031.55",M17C,Adult Social Care Operations,Supplies and Services,Jan-22
Slough Borough Council,805121,MMCG (2) Limited,"3,557.25",M17C,Adult Social Care Operations,Supplies and Services,Jan-22
Slough Borough Council,805121,MMCG (2) Limited,688.50,M18C,Adult Social Care Operations,Supplies and Services,Jan-22
Slough Borough Council,805121,MMCG (2) Limited,"3,557.25",M18C,Adult Social Care Operations,Supplies and Services,Jan-22
Slough Borough Council,805121,MMCG (2) Limited,"3,557.25",M18C,Adult Social Care Operations,Supplies and Services,Jan-22
Slough Borough Council,805121,MMCG (2) Limited,"3,557.25",M18C,Adult Social Care Operations,Supplies and Services,Jan-22
Slough Borough Council,805121,MMCG (2) Limited,"4,387.30",M18C,Adult Social Care Operations,Supplies and Services,Jan-22
Slough Borough Council,805121,MMCG (2) Limited,"4,031.55",M18C,Adult Social Care Operations,Supplies and Services,Jan-22
Slough Borough Council,805121,MMCG (2) Limited,"2,639.25",M18C,Adult Social Care Operations,Supplies and Services,Jan-22
Slough Borough Council,805121,MMCG (2) Limited,"3,557.25",M18C,Adult Social Care Operations,Supplies and Services,Jan-22
Slough Borough Council,805121,MMCG (2) Limited,"3,557.25",M25C,Adult Social Care Operations,Supplies and Services,Jan-22
Slough Borough Council,805121,MMCG (2) Limited,"3,557.25",M25C,Adult Social Care Operations,Supplies and Services,Jan-22
Slough Borough Council,805121,MMCG (2) Limited,"3,557.25",M25C,Adult Social Care Operations,Supplies and Services,Jan-22
Slough Borough Council,805121,MMCG (2) Limited,"3,557.25",M27C,Adult Social Care Operations,Supplies and Services,Jan-22
Slough Borough Council,805121,MMCG (2) Limited,"3,557.25",M27C,Adult Social Care Operations,Supplies and Services,Jan-22
Slough Borough Council,805121,MMCG (2) Limited,"3,557.25",M27C,Adult Social Care Operations,Supplies and Services,Jan-22
Slough Borough Council,805121,MMCG (2) Limited,"3,557.25",M27C,Adult Social Care Operations,Supplies and Services,Jan-22
Slough Borough Council,805121,MMCG (2) Limited,"3,557.25",M27C,Adult Social Care Operations,Supplies and Services,Jan-22
Slough Borough Council,805121,MMCG (2) Limited,"3,557.25",M27C,Adult Social Care Operations,Supplies and Services,Jan-22
Slough Borough Council,1786,Mobius Networks Ltd,618.10,D500,Major Infrastructure Projects,Premises,Jan-22
Slough Borough Council,2645,Modus Care Ltd,"10,804.39",M26E,Adult Social Care Operations,Supplies and Services,Jan-22
Slough Borough Council,1140,Montem Guesthouse,"1,705.00",H205,Housing (People) Services,Supplies and Services,Jan-22
Slough Borough Council,1140,Montem Guesthouse,630.00,H205,Housing (People) Services,Supplies and Services,Jan-22
Slough Borough Council,1140,Montem Guesthouse,"1,550.00",H205,Housing (People) Services,Supplies and Services,Jan-22
Slough Borough Council,1140,Montem Guesthouse,630.00,H205,Housing (People) Services,Supplies and Services,Jan-22
Slough Borough Council,1140,Montem Guesthouse,"1,350.00",H205,Housing (People) Services,Supplies and Services,Jan-22
Slough Borough Council,1140,Montem Guesthouse,"1,500.00",H205,Housing (People) Services,Supplies and Services,Jan-22
Slough Borough Council,1140,Montem Guesthouse,"1,350.00",H205,Housing (People) Services,Supplies and Services,Jan-22
Slough Borough Council,1140,Montem Guesthouse,"1,350.00",H205,Housing (People) Services,Supplies and Services,Jan-22
Slough Borough Council,1140,Montem Guesthouse,"1,350.00",H205,Housing (People) Services,Supplies and Services,Jan-22
Slough Borough Council,1140,Montem Guesthouse,"1,350.00",H205,Housing (People) Services,Supplies and Services,Jan-22
Slough Borough Council,1140,Montem Guesthouse,"1,500.00",H205,Housing (People) Services,Supplies and Services,Jan-22
Slough Borough Council,1140,Montem Guesthouse,"1,650.00",H205,Housing (People) Services,Supplies and Services,Jan-22
Slough Borough Council,1140,Montem Guesthouse,"1,350.00",H205,Housing (People) Services,Supplies and Services,Jan-22
Slough Borough Council,1140,Montem Guesthouse,"1,200.00",H205,Housing (People) Services,Supplies and Services,Jan-22
Slough Borough Council,1140,Montem Guesthouse,800.00,H205,Housing (People) Services,Supplies and Services,Jan-22
Slough Borough Council,1140,Montem Guesthouse,"1,500.00",H205,Housing (People) Services,Supplies and Services,Jan-22
Slough Borough Council,1140,Montem Guesthouse,"1,085.00",H205,Housing (People) Services,Supplies and Services,Jan-22
Slough Borough Council,1140,Montem Guesthouse,"1,550.00",H205,Housing (People) Services,Supplies and Services,Jan-22
Slough Borough Council,1140,Montem Guesthouse,"1,375.00",H205,Housing (People) Services,Supplies and Services,Jan-22
Slough Borough Council,1140,Montem Guesthouse,"1,395.00",H205,Housing (People) Services,Supplies and Services,Jan-22
Slough Borough Council,1140,Montem Guesthouse,750.00,H205,Housing (People) Services,Supplies and Services,Jan-22
Slough Borough Council,1140,Montem Guesthouse,"1,550.00",H205,Housing (People) Services,Supplies and Services,Jan-22
Slough Borough Council,1140,Montem Guesthouse,"1,350.00",H205,Housing (People) Services,Supplies and Services,Jan-22
Slough Borough Council,1140,Montem Guesthouse,"1,500.00",H205,Housing (People) Services,Supplies and Services,Jan-22
Slough Borough Council,1140,Montem Guesthouse,"1,650.00",H205,Housing (People) Services,Supplies and Services,Jan-22
Slough Borough Council,1140,Montem Guesthouse,"1,260.00",H205,Housing (People) Services,Supplies and Services,Jan-22
Slough Borough Council,1140,Montem Guesthouse,"1,350.00",H205,Housing (People) Services,Supplies and Services,Jan-22
Slough Borough Council,1140,Montem Guesthouse,"1,350.00",H205,Housing (People) Services,Supplies and Services,Jan-22
Slough Borough Council,1140,Montem Guesthouse,990.00,H205,Housing (People) Services,Supplies and Services,Jan-22
Slough Borough Council,1140,Montem Guesthouse,"1,260.00",H205,Housing (People) Services,Supplies and Services,Jan-22
Slough Borough Council,1140,Montem Guesthouse,"1,050.00",H205,Housing (People) Services,Supplies and Services,Jan-22
Slough Borough Council,1140,Montem Guesthouse,"1,500.00",H205,Housing (People) Services,Supplies and Services,Jan-22
Slough Borough Council,1140,Montem Guesthouse,"1,250.00",H205,Housing (People) Services,Supplies and Services,Jan-22
Slough Borough Council,1140,Montem Guesthouse,"1,500.00",H205,Housing (People) Services,Supplies and Services,Jan-22
Slough Borough Council,1140,Montem Guesthouse,"1,350.00",H205,Housing (People) Services,Supplies and Services,Jan-22
Slough Borough Council,1140,Montem Guesthouse,"1,350.00",H205,Housing (People) Services,Supplies and Services,Jan-22
Slough Borough Council,1140,Montem Guesthouse,"1,050.00",H205,Housing (People) Services,Supplies and Services,Jan-22
Slough Borough Council,1140,Montem Guesthouse,"1,550.00",H205,Housing (People) Services,Supplies and Services,Jan-22
Slough Borough Council,1140,Montem Guesthouse,"1,240.00",H205,Housing (People) Services,Supplies and Services,Jan-22
Slough Borough Council,1140,Montem Guesthouse,"1,395.00",H205,Housing (People) Services,Supplies and Services,Jan-22
Slough Borough Council,1140,Montem Guesthouse,"1,395.00",H205,Housing (People) Services,Supplies and Services,Jan-22
Slough Borough Council,1140,Montem Guesthouse,"1,395.00",H205,Housing (People) Services,Supplies and Services,Jan-22
Slough Borough Council,1140,Montem Guesthouse,"1,085.00",H205,Housing (People) Services,Supplies and Services,Jan-22
Slough Borough Council,1140,Montem Guesthouse,"1,550.00",H205,Housing (People) Services,Supplies and Services,Jan-22
Slough Borough Council,1140,Montem Guesthouse,"1,170.00",H205,Housing (People) Services,Supplies and Services,Jan-22
Slough Borough Council,1140,Montem Guesthouse,"1,550.00",H205,Housing (People) Services,Supplies and Services,Jan-22
Slough Borough Council,1140,Montem Guesthouse,630.00,H205,Housing (People) Services,Supplies and Services,Jan-22
Slough Borough Council,1140,Montem Guesthouse,765.00,H205,Housing (People) Services,Supplies and Services,Jan-22
Slough Borough Council,1140,Montem Guesthouse,"1,085.00",H205,Housing (People) Services,Supplies and Services,Jan-22
Slough Borough Council,1140,Montem Guesthouse,"1,085.00",H205,Housing (People) Services,Supplies and Services,Jan-22
Slough Borough Council,1140,Montem Guesthouse,"1,395.00",H205,Housing (People) Services,Supplies and Services,Jan-22
Slough Borough Council,1140,Montem Guesthouse,"1,550.00",H205,Housing (People) Services,Supplies and Services,Jan-22
Slough Borough Council,1140,Montem Guesthouse,"1,395.00",H205,Housing (People) Services,Supplies and Services,Jan-22
Slough Borough Council,1140,Montem Guesthouse,"1,300.00",H205,Housing (People) Services,Supplies and Services,Jan-22
Slough Borough Council,1140,Montem Guesthouse,"1,395.00",H205,Housing (People) Services,Supplies and Services,Jan-22
Slough Borough Council,1140,Montem Guesthouse,"1,395.00",H205,Housing (People) Services,Supplies and Services,Jan-22
Slough Borough Council,1140,Montem Guesthouse,"1,395.00",H205,Housing (People) Services,Supplies and Services,Jan-22
Slough Borough Council,3302,Montem Primary School,"24,250.00",E339,DSG - Schools,Supplies and Services,Jan-22
Slough Borough Council,807432,MPD FM Limited,"5,411.49",H216,Housing (People) Services,Supplies and Services,Jan-22
Slough Borough Council,807432,MPD FM Limited,"5,766.26",H216,Housing (People) Services,Supplies and Services,Jan-22
Slough Borough Council,807432,MPD FM Limited,"5,554.46",H216,Housing (People) Services,Supplies and Services,Jan-22
Slough Borough Council,806484,Mrs Parwinder Kaur Bhandal,"7,500.00",H205,Housing (People) Services,Supplies and Services,Jan-22
Slough Borough Council,806484,Mrs Parwinder Kaur Bhandal,"7,750.00",H205,Housing (People) Services,Supplies and Services,Jan-22
Slough Borough Council,806858,MUDDY BOOTS DAY NURSERY LTD,"7,020.75",F909,DSG - Early Years,Supplies and Services,Jan-22
Slough Borough Council,805369,NAS Services Limited,"8,442.50",M42E,Adult Social Care Operations,Supplies and Services,Jan-22
Slough Borough Council,805369,NAS Services Limited,"15,288.00",F449,DSG - High Needs Block,Supplies and Services,Jan-22
Slough Borough Council,805369,NAS Services Limited,"22,204.88",F449,DSG - High Needs Block,Supplies and Services,Jan-22
Slough Borough Council,808068,NEC Software Solutions UK Limited,"92,747.72",P216,Capital,Capital Charges,Jan-22
Slough Borough Council,1216,Network Rail Infrastructure Ltd,"1,429.79",P213,Capital,Capital Charges,Jan-22
Slough Borough Council,1216,Network Rail Infrastructure Ltd,"1,869.40",P213,Capital,Capital Charges,Jan-22
Slough Borough Council,1216,Network Rail Infrastructure Ltd,"1,869.40",P213,Capital,Capital Charges,Jan-22
Slough Borough Council,1216,Network Rail Infrastructure Ltd,"1,346.63",P213,Capital,Capital Charges,Jan-22
Slough Borough Council,1216,Network Rail Infrastructure Ltd,"1,429.79",P213,Capital,Capital Charges,Jan-22
Slough Borough Council,804831,No.5 Chambers,"1,350.00",H009,Finance,Supplies and Services,Jan-22
Slough Borough Council,807860,Nominet UK,765.94,B282,Digital and Strategic IT,Supplies and Services,Jan-22
Slough Borough Council,3717,Norwood Schools Limited,"4,040.28",M26E,Adult Social Care Operations,Supplies and Services,Jan-22
Slough Borough Council,3717,Norwood Schools Limited,-608.80,M26E,Adult Social Care Operations,External Receipts,Jan-22
Slough Borough Council,2021,Now Medical,645.00,H201,Housing (People) Services,Supplies and Services,Jan-22
Slough Borough Council,2021,Now Medical,505.00,H207,Housing (People) Services,Supplies and Services,Jan-22
Slough Borough Council,803238,Oasis Care and Training Agency,584.48,A07R,Adult Social Care Operations,Supplies and Services,Jan-22
Slough Borough Council,803238,Oasis Care and Training Agency,"1,754.20",A07R,Adult Social Care Operations,Supplies and Services,Jan-22
Slough Borough Council,803238,Oasis Care and Training Agency,"1,443.96",M42C,Adult Social Care Operations,Supplies and Services,Jan-22
Slough Borough Council,803238,Oasis Care and Training Agency,"2,681.64",M44C,Adult Social Care Operations,Supplies and Services,Jan-22
Slough Borough Council,803238,Oasis Care and Training Agency,"2,784.80",M44C,Adult Social Care Operations,Supplies and Services,Jan-22
Slough Borough Council,803238,Oasis Care and Training Agency,601.64,M44C,Adult Social Care Operations,Supplies and Services,Jan-22
Slough Borough Council,803238,Oasis Care and Training Agency,"1,014.20",M44C,Adult Social Care Operations,Supplies and Services,Jan-22
Slough Borough Council,803238,Oasis Care and Training Agency,"2,105.79",M44C,Adult Social Care Operations,Supplies and Services,Jan-22
Slough Borough Council,803238,Oasis Care and Training Agency,"1,203.32",M44C,Adult Social Care Operations,Supplies and Services,Jan-22
Slough Borough Council,803238,Oasis Care and Training Agency,"2,165.96",M44C,Adult Social Care Operations,Supplies and Services,Jan-22
Slough Borough Council,803238,Oasis Care and Training Agency,562.97,M44C,Adult Social Care Operations,Supplies and Services,Jan-22
Slough Borough Council,803238,Oasis Care and Training Agency,"3,438.00",M44C,Adult Social Care Operations,Supplies and Services,Jan-22
Slough Borough Council,803238,Oasis Care and Training Agency,"1,370.91",M44C,Adult Social Care Operations,Supplies and Services,Jan-22
Slough Borough Council,803238,Oasis Care and Training Agency,"1,168.94",M44C,Adult Social Care Operations,Supplies and Services,Jan-22
Slough Borough Council,803238,Oasis Care and Training Agency,962.64,M44C,Adult Social Care Operations,Supplies and Services,Jan-22
Slough Borough Council,803238,Oasis Care and Training Agency,"2,165.96",M44D,Adult Social Care Operations,Supplies and Services,Jan-22
Slough Borough Council,803238,Oasis Care and Training Agency,842.32,M44D,Adult Social Care Operations,Supplies and Services,Jan-22
Slough Borough Council,803238,Oasis Care and Training Agency,670.40,M44D,Adult Social Care Operations,Supplies and Services,Jan-22
Slough Borough Council,803238,Oasis Care and Training Agency,"1,323.64",M44D,Adult Social Care Operations,Supplies and Services,Jan-22
Slough Borough Council,803238,Oasis Care and Training Agency,"1,994.04",M44D,Adult Social Care Operations,Supplies and Services,Jan-22
Slough Borough Council,803238,Oasis Care and Training Agency,979.84,M44D,Adult Social Care Operations,Supplies and Services,Jan-22
Slough Borough Council,803238,Oasis Care and Training Agency,979.84,M44D,Adult Social Care Operations,Supplies and Services,Jan-22
Slough Borough Council,803238,Oasis Care and Training Agency,550.08,M44D,Adult Social Care Operations,Supplies and Services,Jan-22
Slough Borough Council,803238,Oasis Care and Training Agency,842.32,M44D,Adult Social Care Operations,Supplies and Services,Jan-22
Slough Borough Council,803238,Oasis Care and Training Agency,"1,340.84",M44D,Adult Social Care Operations,Supplies and Services,Jan-22
Slough Borough Council,803238,Oasis Care and Training Agency,"1,839.35",M44D,Adult Social Care Operations,Supplies and Services,Jan-22
Slough Borough Council,803238,Oasis Care and Training Agency,"1,237.68",M44F,Adult Social Care Operations,Supplies and Services,Jan-22
Slough Borough Council,803238,Oasis Care and Training Agency,"4,331.88",M44F,Adult Social Care Operations,Supplies and Services,Jan-22
Slough Borough Council,803238,Oasis Care and Training Agency,704.79,M44F,Adult Social Care Operations,Supplies and Services,Jan-22
Slough Borough Council,803238,Oasis Care and Training Agency,"1,443.96",M45C,Adult Social Care Operations,Supplies and Services,Jan-22
Slough Borough Council,803238,Oasis Care and Training Agency,"2,045.60",M45C,Adult Social Care Operations,Supplies and Services,Jan-22
Slough Borough Council,803238,Oasis Care and Training Agency,"9,576.00",M48C,Adult Social Care Operations,Supplies and Services,Jan-22
Slough Borough Council,1767,Olive Tree Montessori Ltd,"19,008.64",F909,DSG - Early Years,Supplies and Services,Jan-22
Slough Borough Council,3603,Olympia Transport Limited,"4,375.86",F123,Schools,Supplies and Services,Jan-22
Slough Borough Council,804687,Optalis Limited,"5,642.13",M42E,Adult Social Care Operations,Supplies and Services,Jan-22
Slough Borough Council,804687,Optalis Limited,"4,807.26",M42E,Adult Social Care Operations,Supplies and Services,Jan-22
Slough Borough Council,803490,Optimum Specialised Home Limited,596.98,B324,Finance,Supplies and Services,Jan-22
Slough Borough Council,803490,Optimum Specialised Home Limited,"1,492.45",B324,Finance,Supplies and Services,Jan-22
Slough Borough Council,803490,Optimum Specialised Home Limited,"2,100.00",M26E,Adult Social Care Operations,Supplies and Services,Jan-22
Slough Borough Council,803490,Optimum Specialised Home Limited,"2,100.00",M26E,Adult Social Care Operations,Supplies and Services,Jan-22
Slough Borough Council,803490,Optimum Specialised Home Limited,"2,100.00",M26E,Adult Social Care Operations,Supplies and Services,Jan-22
Slough Borough Council,803490,Optimum Specialised Home Limited,"2,100.00",M26E,Adult Social Care Operations,Supplies and Services,Jan-22
Slough Borough Council,803490,Optimum Specialised Home Limited,"1,795.00",M26E,Adult Social Care Operations,Supplies and Services,Jan-22
Slough Borough Council,803490,Optimum Specialised Home Limited,"1,795.00",M26E,Adult Social Care Operations,Supplies and Services,Jan-22
Slough Borough Council,803490,Optimum Specialised Home Limited,"1,795.00",M26E,Adult Social Care Operations,Supplies and Services,Jan-22
Slough Borough Council,803490,Optimum Specialised Home Limited,"1,795.00",M26E,Adult Social Care Operations,Supplies and Services,Jan-22
Slough Borough Council,1629,Opus Energy Limited,"10,551.77",K526,Building Management,Premises,Jan-22
Slough Borough Council,1629,Opus Energy Limited,"20,680.16",K526,Building Management,Premises,Jan-22
Slough Borough Council,803960,Orchard Hill College,"17,887.93",F462,DSG - High Needs Block,Supplies and Services,Jan-22
Slough Borough Council,803960,Orchard Hill College,"18,091.93",F462,DSG - High Needs Block,Supplies and Services,Jan-22
Slough Borough Council,803960,Orchard Hill College,"17,404.56",F462,DSG - High Needs Block,Supplies and Services,Jan-22
Slough Borough Council,803960,Orchard Hill College,"16,622.16",F462,DSG - High Needs Block,Supplies and Services,Jan-22
Slough Borough Council,805011,Osborne Property Services Limited,"9,564.66",H206,Housing (People) Services,Premises,Jan-22
Slough Borough Council,805011,Osborne Property Services Limited,"75,365.73",P408,Capital,Capital Charges,Jan-22
Slough Borough Council,805011,Osborne Property Services Limited,"283,608.55",P431,Capital,Supplies and Services,Jan-22
Slough Borough Council,3371,Our Lady Of Peace Catholic Primary and Nursery School,"37,304.04",E349,DSG - Schools,Supplies and Services,Jan-22
Slough Borough Council,680,Oxford House Community Care,931.03,A07R,Adult Social Care Operations,Supplies and Services,Jan-22
Slough Borough Council,680,Oxford House Community Care,890.60,A07R,Adult Social Care Operations,Supplies and Services,Jan-22
Slough Borough Council,680,Oxford House Community Care,707.86,M44C,Adult Social Care Operations,Supplies and Services,Jan-22
Slough Borough Council,680,Oxford House Community Care,971.26,M44C,Adult Social Care Operations,Supplies and Services,Jan-22
Slough Borough Council,680,Oxford House Community Care,"2,251.64",M44C,Adult Social Care Operations,Supplies and Services,Jan-22
Slough Borough Council,680,Oxford House Community Care,"2,220.55",M44C,Adult Social Care Operations,Supplies and Services,Jan-22
Slough Borough Council,680,Oxford House Community Care,"1,079.75",M44C,Adult Social Care Operations,Supplies and Services,Jan-22
Slough Borough Council,680,Oxford House Community Care,"1,218.24",M44C,Adult Social Care Operations,Supplies and Services,Jan-22
Slough Borough Council,680,Oxford House Community Care,"1,228.19",M44C,Adult Social Care Operations,Supplies and Services,Jan-22
Slough Borough Council,680,Oxford House Community Care,861.51,M44C,Adult Social Care Operations,Supplies and Services,Jan-22
Slough Borough Council,680,Oxford House Community Care,877.37,M44C,Adult Social Care Operations,Supplies and Services,Jan-22
Slough Borough Council,680,Oxford House Community Care,595.76,M44C,Adult Social Care Operations,Supplies and Services,Jan-22
Slough Borough Council,680,Oxford House Community Care,834.24,M44C,Adult Social Care Operations,Supplies and Services,Jan-22
Slough Borough Council,680,Oxford House Community Care,"1,198.01",M44C,Adult Social Care Operations,Supplies and Services,Jan-22
Slough Borough Council,680,Oxford House Community Care,"1,203.85",M44C,Adult Social Care Operations,Supplies and Services,Jan-22
Slough Borough Council,680,Oxford House Community Care,"2,243.13",M44C,Adult Social Care Operations,Supplies and Services,Jan-22
Slough Borough Council,680,Oxford House Community Care,"2,482.49",M44C,Adult Social Care Operations,Supplies and Services,Jan-22
Slough Borough Council,680,Oxford House Community Care,743.01,M44C,Adult Social Care Operations,Supplies and Services,Jan-22
Slough Borough Council,680,Oxford House Community Care,995.29,M44C,Adult Social Care Operations,Supplies and Services,Jan-22
Slough Borough Council,680,Oxford House Community Care,"1,145.15",M44C,Adult Social Care Operations,Supplies and Services,Jan-22
Slough Borough Council,680,Oxford House Community Care,"1,231.42",M44C,Adult Social Care Operations,Supplies and Services,Jan-22
Slough Borough Council,680,Oxford House Community Care,616.00,M44D,Adult Social Care Operations,Supplies and Services,Jan-22
Slough Borough Council,680,Oxford House Community Care,"1,058.05",M44D,Adult Social Care Operations,Supplies and Services,Jan-22
Slough Borough Council,680,Oxford House Community Care,673.50,M44D,Adult Social Care Operations,Supplies and Services,Jan-22
Slough Borough Council,680,Oxford House Community Care,953.63,M45C,Adult Social Care Operations,Supplies and Services,Jan-22
Slough Borough Council,680,Oxford House Community Care,633.60,M47D,Adult Social Care Operations,Supplies and Services,Jan-22
Slough Borough Council,680,Oxford House Community Care,868.85,M48C,Adult Social Care Operations,Supplies and Services,Jan-22
Slough Borough Council,680,Oxford House Community Care,"1,091.20",M48C,Adult Social Care Operations,Supplies and Services,Jan-22
Slough Borough Council,680,Oxford House Community Care,757.75,M48C,Adult Social Care Operations,Supplies and Services,Jan-22
Slough Borough Council,680,Oxford House Community Care,517.13,M48C,Adult Social Care Operations,Supplies and Services,Jan-22
Slough Borough Council,805913,PANORAMIC ASSOCIATES LIMITED,"2,250.00",B296,Finance,Supplies and Services,Jan-22
Slough Borough Council,805913,PANORAMIC ASSOCIATES LIMITED,"5,850.00",B296,Finance,Supplies and Services,Jan-22
Slough Borough Council,805913,PANORAMIC ASSOCIATES LIMITED,"2,750.00",B310,Finance,Supplies and Services,Jan-22
Slough Borough Council,2520,Paradigm Housing Group Ltd,"24,603.73",H205,Housing (People) Services,Premises,Jan-22
Slough Borough Council,2520,Paradigm Housing Group Ltd,"25,229.34",H205,Housing (People) Services,Premises,Jan-22
Slough Borough Council,804365,Paritor Ltd,"1,761.15",F253,Schools,Supplies and Services,Jan-22
Slough Borough Council,3271,Partnership In Care Ltd,"3,973.45",M27F,Adult Social Care Operations,Supplies and Services,Jan-22
Slough Borough Council,2509,Parvaaz Project,"2,611.78",B324,Finance,Supplies and Services,Jan-22
Slough Borough Council,2509,Parvaaz Project,585.00,M44E,Adult Social Care Operations,Supplies and Services,Jan-22
Slough Borough Council,2509,Parvaaz Project,585.00,M44E,Adult Social Care Operations,Supplies and Services,Jan-22
Slough Borough Council,2509,Parvaaz Project,585.00,M44E,Adult Social Care Operations,Supplies and Services,Jan-22
Slough Borough Council,2509,Parvaaz Project,585.00,M44E,Adult Social Care Operations,Supplies and Services,Jan-22
Slough Borough Council,2509,Parvaaz Project,585.00,M44E,Adult Social Care Operations,Supplies and Services,Jan-22
Slough Borough Council,2509,Parvaaz Project,736.00,M50E,Adult Social Care Operations,Supplies and Services,Jan-22
Slough Borough Council,2509,Parvaaz Project,736.00,M50E,Adult Social Care Operations,Supplies and Services,Jan-22
Slough Borough Council,2509,Parvaaz Project,736.00,M50E,Adult Social Care Operations,Supplies and Services,Jan-22
Slough Borough Council,2509,Parvaaz Project,736.00,M50E,Adult Social Care Operations,Supplies and Services,Jan-22
Slough Borough Council,2509,Parvaaz Project,736.00,M50E,Adult Social Care Operations,Supplies and Services,Jan-22
Slough Borough Council,806879,Pearce Recycling Ltd,590.40,D342,Direct Service Organisation (DSO),Supplies and Services,Jan-22
Slough Borough Council,824,Penn Wood Primary and Nursery School,"312,961.94",E459,DSG - Schools,Supplies and Services,Jan-22
Slough Borough Council,807611,Peopletoo Ltd,"3,550.00",A01D,Adult Social Care Operations,Supplies and Services,Jan-22
Slough Borough Council,807611,Peopletoo Ltd,"13,475.00",M03B,"Children, Learning and Skills",Supplies and Services,Jan-22
Slough Borough Council,807611,Peopletoo Ltd,"11,875.00",C025,Communities and Leisure,Supplies and Services,Jan-22
Slough Borough Council,1504,Permanent Futures Limited,"4,950.00",F410,DSG - High Needs Block,Agency Staff,Jan-22
Slough Borough Council,1504,Permanent Futures Limited,"1,500.00",F640,Inclusion,Agency Staff,Jan-22
Slough Borough Council,1504,Permanent Futures Limited,"1,500.00",F640,Inclusion,Agency Staff,Jan-22
Slough Borough Council,1504,Permanent Futures Limited,"7,975.00",P331,Capital,Supplies and Services,Jan-22
Slough Borough Council,807727,Phoenix Infant Academy c/o Thames Learning Trust,"3,400.00",E289,DSG - Schools,Supplies and Services,Jan-22
Slough Borough Council,3359,Pippins School,"15,492.89",E379,DSG - Schools,Supplies and Services,Jan-22
Slough Borough Council,807854,Pixel Financial Management Limited,"2,500.00",B015,Finance,Supplies and Services,Jan-22
Slough Borough Council,807854,Pixel Financial Management Limited,"2,500.00",B015,Finance,Supplies and Services,Jan-22
Slough Borough Council,807120,PJ Care Limited,"9,831.65",M15D,Adult Social Care Operations,Supplies and Services,Jan-22
Slough Borough Council,2537,Pre School Stars,"4,129.79",F909,DSG - Early Years,Supplies and Services,Jan-22
Slough Borough Council,2693,Pressbeau Ltd,"4,207.14",M18C,Adult Social Care Operations,Supplies and Services,Jan-22
Slough Borough Council,849,Priory Primary School,"456,108.14",E389,DSG - Schools,Supplies and Services,Jan-22
Slough Borough Council,805500,Privilege Care Ltd,"1,114.63",B298,Finance,Supplies and Services,Jan-22
Slough Borough Council,805500,Privilege Care Ltd,820.85,B324,Finance,Supplies and Services,Jan-22
Slough Borough Council,806492,PW Safety Ltd,"2,000.00",P204,Capital,Capital Charges,Jan-22
Slough Borough Council,1138,Qed Slough Ltd,"4,332.48",F868,"Children, Learning and Skills",Supplies and Services,Jan-22
Slough Borough Council,1138,Qed Slough Ltd,"17,388.00",F868,"Children, Learning and Skills",Supplies and Services,Jan-22
Slough Borough Council,1138,Qed Slough Ltd,"576,551.86",F868,"Children, Learning and Skills",Supplies and Services,Jan-22
Slough Borough Council,808200,Quest Recovery Services Ltd,"2,016.00",M44C,Adult Social Care Operations,Supplies and Services,Jan-22
Slough Borough Council,808200,Quest Recovery Services Ltd,832.00,M44C,Adult Social Care Operations,Supplies and Services,Jan-22
Slough Borough Council,808200,Quest Recovery Services Ltd,832.00,M44C,Adult Social Care Operations,Supplies and Services,Jan-22
Slough Borough Council,808200,Quest Recovery Services Ltd,"2,016.00",M44C,Adult Social Care Operations,Supplies and Services,Jan-22
Slough Borough Council,808200,Quest Recovery Services Ltd,"1,792.00",M44E,Adult Social Care Operations,Supplies and Services,Jan-22
Slough Borough Council,808200,Quest Recovery Services Ltd,"1,792.00",M44E,Adult Social Care Operations,Supplies and Services,Jan-22
Slough Borough Council,2685,R.E.A.C.H,558.41,B298,Finance,Supplies and Services,Jan-22
Slough Borough Council,2685,R.E.A.C.H,970.09,B324,Finance,Supplies and Services,Jan-22
Slough Borough Council,2685,R.E.A.C.H,"1,417.83",B324,Finance,Supplies and Services,Jan-22
Slough Borough Council,2685,R.E.A.C.H,"1,193.96",B324,Finance,Supplies and Services,Jan-22
Slough Borough Council,2685,R.E.A.C.H,"7,404.56",M26E,Adult Social Care Operations,Supplies and Services,Jan-22
Slough Borough Council,2685,R.E.A.C.H,"6,880.00",M26E,Adult Social Care Operations,Supplies and Services,Jan-22
Slough Borough Council,2685,R.E.A.C.H,"5,928.12",M26E,Adult Social Care Operations,Supplies and Services,Jan-22
Slough Borough Council,2685,R.E.A.C.H,"7,485.72",M26E,Adult Social Care Operations,Supplies and Services,Jan-22
Slough Borough Council,2685,R.E.A.C.H,"5,261.44",M26E,Adult Social Care Operations,Supplies and Services,Jan-22
Slough Borough Council,2685,R.E.A.C.H,"5,355.80",M26E,Adult Social Care Operations,Supplies and Services,Jan-22
Slough Borough Council,2685,R.E.A.C.H,"1,697.44",M51C,Adult Social Care Operations,Supplies and Services,Jan-22
Slough Borough Council,2685,R.E.A.C.H,-608.80,M26E,Adult Social Care Operations,External Receipts,Jan-22
Slough Borough Council,1305,Rackspace Limited,"3,808.18",B282,Digital and Strategic IT,Supplies and Services,Jan-22
Slough Borough Council,806766,Red Brick Care Ltd,"2,057.00",M44C,Adult Social Care Operations,Supplies and Services,Jan-22
Slough Borough Council,806766,Red Brick Care Ltd,"1,071.00",M44C,Adult Social Care Operations,Supplies and Services,Jan-22
Slough Borough Council,806541,Redacted,"15,337.37",F909,DSG - Early Years,Supplies and Services,Jan-22
Slough Borough Council,803807,Redacted,"1,895.67",F909,DSG - Early Years,Supplies and Services,Jan-22
Slough Borough Council,3553,Redacted,603.22,F909,DSG - Early Years,Supplies and Services,Jan-22
Slough Borough Council,3903,Redacted,959.33,F909,DSG - Early Years,Supplies and Services,Jan-22
Slough Borough Council,805403,Redacted,"1,221.00",F909,DSG - Early Years,Supplies and Services,Jan-22
Slough Borough Council,805307,Redacted,"1,148.90",F909,DSG - Early Years,Supplies and Services,Jan-22
Slough Borough Council,3834,Redacted,537.32,F909,DSG - Early Years,Supplies and Services,Jan-22
Slough Borough Council,3173,Redacted,594.64,F909,DSG - Early Years,Supplies and Services,Jan-22
Slough Borough Council,3209,Redacted,610.50,F909,DSG - Early Years,Supplies and Services,Jan-22
Slough Borough Council,804932,Redacted,"1,425.24",F909,DSG - Early Years,Supplies and Services,Jan-22
Slough Borough Council,804705,Redacted,582.75,F909,DSG - Early Years,Supplies and Services,Jan-22
Slough Borough Council,803824,Redacted,"1,384.63",F909,DSG - Early Years,Supplies and Services,Jan-22
Slough Borough Council,807475,Redacted,"6,091.49",F909,DSG - Early Years,Supplies and Services,Jan-22
Slough Borough Council,3251,Redacted,610.49,F909,DSG - Early Years,Supplies and Services,Jan-22
Slough Borough Council,3251,Redacted,610.49,F909,DSG - Early Years,Supplies and Services,Jan-22
Slough Borough Council,807836,Redacted,610.50,F909,DSG - Early Years,Supplies and Services,Jan-22
Slough Borough Council,803884,Redacted,"1,202.25",F909,DSG - Early Years,Supplies and Services,Jan-22
Slough Borough Council,3917,Redacted,610.50,F909,DSG - Early Years,Supplies and Services,Jan-22
Slough Borough Council,803819,Redacted,771.70,F909,DSG - Early Years,Supplies and Services,Jan-22
Slough Borough Council,805317,Redacted,915.75,F909,DSG - Early Years,Supplies and Services,Jan-22
Slough Borough Council,806854,Reed Specialist Recruitment,788.50,B033,People,Salaries and Wages,Jan-22
Slough Borough Council,806854,Reed Specialist Recruitment,767.75,B033,People,Salaries and Wages,Jan-22
Slough Borough Council,806854,Reed Specialist Recruitment,622.50,B033,People,Salaries and Wages,Jan-22
Slough Borough Council,806854,Reed Specialist Recruitment,731.44,B033,People,Salaries and Wages,Jan-22
Slough Borough Council,6,Re-Format Llp,"3,110.50",P577,Capital,Capital Charges,Jan-22
Slough Borough Council,2229,Reliance High-Tech Limited (T/A Reliance Project),"6,735.12",A01D,Adult Social Care Operations,Supplies and Services,Jan-22
Slough Borough Council,807562,Renovo Farnborough Limited,"8,502.24",M25D,Adult Social Care Operations,Supplies and Services,Jan-22
Slough Borough Council,781,Resource Productions CIC,"1,200.00",F253,Schools,Agency Staff,Jan-22
Slough Borough Council,3486,Response Organisation,613.48,M42F,Adult Social Care Operations,Supplies and Services,Jan-22
Slough Borough Council,3486,Response Organisation,613.48,M42F,Adult Social Care Operations,Supplies and Services,Jan-22
Slough Borough Council,3486,Response Organisation,613.48,M42F,Adult Social Care Operations,Supplies and Services,Jan-22
Slough Borough Council,3486,Response Organisation,613.48,M42F,Adult Social Care Operations,Supplies and Services,Jan-22
Slough Borough Council,3486,Response Organisation,613.48,M42F,Adult Social Care Operations,Supplies and Services,Jan-22
Slough Borough Council,3486,Response Organisation,567.28,M42F,Adult Social Care Operations,Supplies and Services,Jan-22
Slough Borough Council,3486,Response Organisation,567.28,M42F,Adult Social Care Operations,Supplies and Services,Jan-22
Slough Borough Council,3486,Response Organisation,567.28,M42F,Adult Social Care Operations,Supplies and Services,Jan-22
Slough Borough Council,3486,Response Organisation,567.28,M42F,Adult Social Care Operations,Supplies and Services,Jan-22
Slough Borough Council,1893,Ricardo-Aea Limited,"11,000.00",P155,Capital,Capital Charges,Jan-22
Slough Borough Council,1553,Robyn Baker,986.00,C322,Communities and Leisure,Supplies and Services,Jan-22
Slough Borough Council,806930,Roselight Healthcare Service Limited,"3,340.00",M42F,Adult Social Care Operations,Supplies and Services,Jan-22
Slough Borough Council,806930,Roselight Healthcare Service Limited,"2,360.00",M42F,Adult Social Care Operations,Supplies and Services,Jan-22
Slough Borough Council,806930,Roselight Healthcare Service Limited,"2,600.00",M44F,Adult Social Care Operations,Supplies and Services,Jan-22
Slough Borough Council,806930,Roselight Healthcare Service Limited,"3,340.00",M44F,Adult Social Care Operations,Supplies and Services,Jan-22
Slough Borough Council,806930,Roselight Healthcare Service Limited,"1,930.00",M44F,Adult Social Care Operations,Supplies and Services,Jan-22
Slough Borough Council,806930,Roselight Healthcare Service Limited,"1,722.00",M44F,Adult Social Care Operations,Supplies and Services,Jan-22
Slough Borough Council,806930,Roselight Healthcare Service Limited,"1,506.00",M44F,Adult Social Care Operations,Supplies and Services,Jan-22
Slough Borough Council,696,Royal Borough Of Windsor And Maidenhead,"10,996.00",C104,Communities and Leisure,Supplies and Services,Jan-22
Slough Borough Council,804860,Royal Masonic Benevolent Institution,"4,207.14",M18C,Adult Social Care Operations,Supplies and Services,Jan-22
Slough Borough Council,2168,RSM UK Risk Assurance Services LLP,"25,572.75",B132,Finance,Supplies and Services,Jan-22
Slough Borough Council,2168,RSM UK Risk Assurance Services LLP,"25,572.75",B132,Finance,Supplies and Services,Jan-22
Slough Borough Council,2168,RSM UK Risk Assurance Services LLP,"25,572.75",B132,Finance,Supplies and Services,Jan-22
Slough Borough Council,2168,RSM UK Risk Assurance Services LLP,"11,475.00",B146,Governance,Supplies and Services,Jan-22
Slough Borough Council,2168,RSM UK Risk Assurance Services LLP,"10,525.00",B146,Governance,Supplies and Services,Jan-22
Slough Borough Council,808187,Rupert Griffiths t/a Land and Art,"4,000.00",P220,Capital,Capital Charges,Jan-22
Slough Borough Council,808187,Rupert Griffiths t/a Land and Art,"4,610.65",P220,Capital,Capital Charges,Jan-22
Slough Borough Council,808187,Rupert Griffiths t/a Land and Art,"4,000.00",P220,Capital,Capital Charges,Jan-22
Slough Borough Council,842,Ryvers Primary School,"26,253.00",E399,DSG - Schools,Supplies and Services,Jan-22
Slough Borough Council,806398,Saba Park UK Services Limited,"12,792.47",D122,Planning and Transport,Premises,Jan-22
Slough Borough Council,806398,Saba Park UK Services Limited,850.00,D123,Planning and Transport,Supplies and Services,Jan-22
Slough Borough Council,806398,Saba Park UK Services Limited,"87,283.05",D123,Planning and Transport,Supplies and Services,Jan-22
Slough Borough Council,806398,Saba Park UK Services Limited,"9,698.12",D122,Planning and Transport,Supplies and Services,Jan-22
Slough Borough Council,806398,Saba Park UK Services Limited,"1,613.62",D123,Planning and Transport,Supplies and Services,Jan-22
Slough Borough Council,806398,Saba Park UK Services Limited,"17,208.75",D010,Planning and Transport,Supplies and Services,Jan-22
Slough Borough Council,805875,Salutem LD Bidco IV Limited T/A Ambito Care,"6,642.86",M25D,Adult Social Care Operations,Supplies and Services,Jan-22
Slough Borough Council,805875,Salutem LD Bidco IV Limited T/A Ambito Care,"4,494.56",M26E,Adult Social Care Operations,Supplies and Services,Jan-22
Slough Borough Council,805875,Salutem LD Bidco IV Limited T/A Ambito Care,-611.59,M26E,Adult Social Care Operations,External Receipts,Jan-22
Slough Borough Council,804350,Sandra�s Childcare,"1,073.03",F909,DSG - Early Years,Supplies and Services,Jan-22
Slough Borough Council,925,Sara Wood,900.00,D320,Regulatory Services,Supplies and Services,Jan-22
Slough Borough Council,925,Sara Wood,700.00,D320,Regulatory Services,Supplies and Services,Jan-22
Slough Borough Council,1580,Savills (UK) Ltd,"16,500.00",P405,Capital,Capital Charges,Jan-22
Slough Borough Council,1580,Savills (UK) Ltd,"19,050.00",P405,Capital,Capital Charges,Jan-22
Slough Borough Council,1580,Savills (UK) Ltd,"4,575.00",P405,Capital,Capital Charges,Jan-22
Slough Borough Council,1580,Savills (UK) Ltd,"1,200.00",P432,Capital,Capital Charges,Jan-22
Slough Borough Council,1580,Savills (UK) Ltd,"4,000.00",P432,Capital,Capital Charges,Jan-22
Slough Borough Council,1580,Savills (UK) Ltd,"4,000.00",P432,Capital,Capital Charges,Jan-22
Slough Borough Council,1580,Savills (UK) Ltd,"4,500.00",J606,HDC Housing Development,Supplies and Services,Jan-22
Slough Borough Council,3169,Seeability,"11,010.00",M26E,Adult Social Care Operations,Supplies and Services,Jan-22
Slough Borough Council,3169,Seeability,"10,016.31",M26E,Adult Social Care Operations,Supplies and Services,Jan-22
Slough Borough Council,3169,Seeability,"11,377.00",M26E,Adult Social Care Operations,Supplies and Services,Jan-22
Slough Borough Council,3169,Seeability,"10,350.19",M26E,Adult Social Care Operations,Supplies and Services,Jan-22
Slough Borough Council,3169,Seeability,"8,210.13",M26E,Adult Social Care Operations,Supplies and Services,Jan-22
Slough Borough Council,803999,Sequence Care Group,"12,228.79",M26E,Adult Social Care Operations,Supplies and Services,Jan-22
Slough Borough Council,808140,Service to the Aged Ltd,"3,764.33",M15D,Adult Social Care Operations,Supplies and Services,Jan-22
Slough Borough Council,2585,Seymour House,"6,545.77",M26E,Adult Social Care Operations,Supplies and Services,Jan-22
Slough Borough Council,2585,Seymour House,"5,638.99",M26E,Adult Social Care Operations,Supplies and Services,Jan-22
Slough Borough Council,2585,Seymour House,-594.98,M26E,Adult Social Care Operations,External Receipts,Jan-22
Slough Borough Council,805203,Shorts Agricultural Services Ltd,"-2,483.29",B342,Digital and Strategic IT,Supplies and Services,Jan-22
Slough Borough Council,805203,Shorts Agricultural Services Ltd,"7,023.85",D342,Direct Service Organisation (DSO),Supplies and Services,Jan-22
Slough Borough Council,805203,Shorts Agricultural Services Ltd,832.80,D342,Direct Service Organisation (DSO),Supplies and Services,Jan-22
Slough Borough Council,805807,Siemens Mobility Limited,"2,753.25",B282,Digital and Strategic IT,Supplies and Services,Jan-22
Slough Borough Council,805807,Siemens Mobility Limited,"23,936.51",D500,Major Infrastructure Projects,Premises,Jan-22
Slough Borough Council,805807,Siemens Mobility Limited,"30,757.00",P210,Capital,Capital Charges,Jan-22
Slough Borough Council,3333,Slk Services,"3,861.00",F123,Schools,Supplies and Services,Jan-22
Slough Borough Council,3333,Slk Services,"6,534.00",F123,Schools,Supplies and Services,Jan-22
Slough Borough Council,1459,Slough And Eton C E School,"5,133.00",E769,DSG - Schools,Supplies and Services,Jan-22
Slough Borough Council,807834,Slough Children First,"2,666,500.00",M99C,"Children, Learning and Skills",Supplies and Services,Jan-22
Slough Borough Council,276,Slough Community Transport & Shopmobility,"16,856.66",F123,Schools,Supplies and Services,Jan-22
Slough Borough Council,1913,Slough Crossroads Caring For Carers,544.83,M44C,Adult Social Care Operations,Supplies and Services,Jan-22
Slough Borough Council,1913,Slough Crossroads Caring For Carers,875.03,M44C,Adult Social Care Operations,Supplies and Services,Jan-22
Slough Borough Council,1913,Slough Crossroads Caring For Carers,528.00,M44D,Adult Social Care Operations,Supplies and Services,Jan-22
Slough Borough Council,1913,Slough Crossroads Caring For Carers,660.40,M44E,Adult Social Care Operations,Supplies and Services,Jan-22
Slough Borough Council,1913,Slough Crossroads Caring For Carers,"1,089.66",M44E,Adult Social Care Operations,Supplies and Services,Jan-22
Slough Borough Council,1913,Slough Crossroads Caring For Carers,990.60,M44E,Adult Social Care Operations,Supplies and Services,Jan-22
Slough Borough Council,1119,Slough Cvs,"39,437.58",A02C,Adult Social Care Commissioning,Supplies and Services,Jan-22
Slough Borough Council,1119,Slough Cvs,"78,875.16",A02C,Adult Social Care Commissioning,Supplies and Services,Jan-22
Slough Borough Council,114,Solutions 4 Health Ltd,"10,015.84",A03C,Adult Social Care Commissioning,Supplies and Services,Jan-22
Slough Borough Council,114,Solutions 4 Health Ltd,"70,216.29",B310,Finance,Supplies and Services,Jan-22
Slough Borough Council,114,Solutions 4 Health Ltd,"229,057.81",A09C,Adult Social Care Commissioning,Supplies and Services,Jan-22
Slough Borough Council,114,Solutions 4 Health Ltd,"60,000.00",A09C,Adult Social Care Commissioning,Supplies and Services,Jan-22
Slough Borough Council,1598,Sorbon Estates Limited,"6,040.83",H205,Housing (People) Services,Premises,Jan-22
Slough Borough Council,1598,Sorbon Estates Limited,"6,040.83",H205,Housing (People) Services,Premises,Jan-22
Slough Borough Council,808144,Sports Inc,"2,933.00",F382,Children & Families,TP-Other Bodies,Jan-22
Slough Borough Council,808060,SSE,"1,357.87",K526,Building Management,Premises,Jan-22
Slough Borough Council,803165,St Anthony�s Catholic Primary School & Nursery,"1,062.50",F417,DSG - High Needs Block,Supplies and Services,Jan-22
Slough Borough Council,803165,St Anthony�s Catholic Primary School & Nursery,"21,550.00",E409,DSG - Schools,Supplies and Services,Jan-22
Slough Borough Council,2918,St Bernard�S Rc Preparatory School,"12,089.73",F909,DSG - Early Years,Supplies and Services,Jan-22
Slough Borough Council,3383,St Bernards Catholic Grammar School,"461,732.98",E559,DSG - Schools,Supplies and Services,Jan-22
Slough Borough Council,3547,St Ethelberts School,"6,757.00",E419,DSG - Schools,Supplies and Services,Jan-22
Slough Borough Council,1378,St Josephs Catholic High School,"13,400.00",E569,DSG - Schools,Supplies and Services,Jan-22
Slough Borough Council,806584,St Mattews Ltd,"3,832.14",M15F,Adult Social Care Operations,Supplies and Services,Jan-22
Slough Borough Council,806584,St Mattews Ltd,"4,096.43",M15F,Adult Social Care Operations,Supplies and Services,Jan-22
Slough Borough Council,806584,St Mattews Ltd,"3,964.29",M15F,Adult Social Care Operations,Supplies and Services,Jan-22
Slough Borough Council,806584,St Mattews Ltd,"4,096.43",M15F,Adult Social Care Operations,Supplies and Services,Jan-22
Slough Borough Council,806584,St Mattews Ltd,"4,096.43",M15F,Adult Social Care Operations,Supplies and Services,Jan-22
Slough Borough Council,468,Stannah Lift Services Ltd,"5,515.00",P547,Capital,Capital Charges,Jan-22
Slough Borough Council,468,Stannah Lift Services Ltd,"2,756.00",P006,Capital,Capital Charges,Jan-22
Slough Borough Council,468,Stannah Lift Services Ltd,"3,068.00",P006,Capital,Capital Charges,Jan-22
Slough Borough Council,807118,Stantec Uk Limited,"2,500.00",P095,Capital,Capital Charges,Jan-22
Slough Borough Council,807118,Stantec Uk Limited,"2,244.80",P213,Capital,Capital Charges,Jan-22
Slough Borough Council,808142,Step Together Ltd,800.00,M28E,Adult Social Care Operations,Supplies and Services,Jan-22
Slough Borough Council,2687,Stepping Stones,"5,133.24",M26E,Adult Social Care Operations,Supplies and Services,Jan-22
Slough Borough Council,2687,Stepping Stones,"5,133.24",M26E,Adult Social Care Operations,Supplies and Services,Jan-22
Slough Borough Council,2687,Stepping Stones,"5,133.24",M26E,Adult Social Care Operations,Supplies and Services,Jan-22
Slough Borough Council,2687,Stepping Stones,"8,005.12",M27F,Adult Social Care Operations,Supplies and Services,Jan-22
Slough Borough Council,2687,Stepping Stones,"8,005.12",M27F,Adult Social Care Operations,Supplies and Services,Jan-22
Slough Borough Council,2687,Stepping Stones,"8,005.12",M27F,Adult Social Care Operations,Supplies and Services,Jan-22
Slough Borough Council,806115,Stepping Stones,607.63,F909,DSG - Early Years,Supplies and Services,Jan-22
Slough Borough Council,806522,Stewarts Coaches,525.60,D512,Major Infrastructure Projects,Supplies and Services,Jan-22
Slough Borough Council,806522,Stewarts Coaches,801.00,D512,Major Infrastructure Projects,Supplies and Services,Jan-22
Slough Borough Council,2688,Sunnyside Nursing Home,"2,991.76",M15D,Adult Social Care Operations,Supplies and Services,Jan-22
Slough Borough Council,807889,Sunrise Transport Ltd,"1,489.80",F123,Schools,Supplies and Services,Jan-22
Slough Borough Council,807889,Sunrise Transport Ltd,"1,320.00",F123,Schools,Supplies and Services,Jan-22
Slough Borough Council,293,Surecare Slough,"5,258.33",B298,Finance,Supplies and Services,Jan-22
Slough Borough Council,293,Surecare Slough,535.36,A07R,Adult Social Care Operations,Supplies and Services,Jan-22
Slough Borough Council,293,Surecare Slough,"2,397.33",A07R,Adult Social Care Operations,Supplies and Services,Jan-22
Slough Borough Council,293,Surecare Slough,668.50,A07R,Adult Social Care Operations,Supplies and Services,Jan-22
Slough Borough Council,293,Surecare Slough,"2,674.56",A07R,Adult Social Care Operations,Supplies and Services,Jan-22
Slough Borough Council,293,Surecare Slough,"2,675.56",A07R,Adult Social Care Operations,Supplies and Services,Jan-22
Slough Borough Council,293,Surecare Slough,"2,673.28",A07R,Adult Social Care Operations,Supplies and Services,Jan-22
Slough Borough Council,293,Surecare Slough,553.92,M44C,Adult Social Care Operations,Supplies and Services,Jan-22
Slough Borough Council,293,Surecare Slough,"1,087.25",M44C,Adult Social Care Operations,Supplies and Services,Jan-22
Slough Borough Council,293,Surecare Slough,863.45,M44C,Adult Social Care Operations,Supplies and Services,Jan-22
Slough Borough Council,293,Surecare Slough,"2,405.29",M44C,Adult Social Care Operations,Supplies and Services,Jan-22
Slough Borough Council,293,Surecare Slough,"1,012.30",M44C,Adult Social Care Operations,Supplies and Services,Jan-22
Slough Borough Council,293,Surecare Slough,"2,406.60",M44C,Adult Social Care Operations,Supplies and Services,Jan-22
Slough Borough Council,293,Surecare Slough,"2,674.00",M44C,Adult Social Care Operations,Supplies and Services,Jan-22
Slough Borough Council,293,Surecare Slough,"2,406.60",M44C,Adult Social Care Operations,Supplies and Services,Jan-22
Slough Borough Council,293,Surecare Slough,959.78,M44C,Adult Social Care Operations,Supplies and Services,Jan-22
Slough Borough Council,293,Surecare Slough,"1,337.84",M44C,Adult Social Care Operations,Supplies and Services,Jan-22
Slough Borough Council,293,Surecare Slough,707.34,M44C,Adult Social Care Operations,Supplies and Services,Jan-22
Slough Borough Council,293,Surecare Slough,997.25,M44C,Adult Social Care Operations,Supplies and Services,Jan-22
Slough Borough Council,293,Surecare Slough,"2,481.39",M44C,Adult Social Care Operations,Supplies and Services,Jan-22
Slough Borough Council,293,Surecare Slough,"1,064.55",M44C,Adult Social Care Operations,Supplies and Services,Jan-22
Slough Borough Council,293,Surecare Slough,668.50,M44C,Adult Social Care Operations,Supplies and Services,Jan-22
Slough Borough Council,293,Surecare Slough,"1,395.90",M44C,Adult Social Care Operations,Supplies and Services,Jan-22
Slough Borough Council,293,Surecare Slough,"1,303.90",M44C,Adult Social Care Operations,Supplies and Services,Jan-22
Slough Borough Council,293,Surecare Slough,"2,406.60",M44C,Adult Social Care Operations,Supplies and Services,Jan-22
Slough Borough Council,293,Surecare Slough,897.84,M44C,Adult Social Care Operations,Supplies and Services,Jan-22
Slough Borough Council,293,Surecare Slough,534.80,M44C,Adult Social Care Operations,Supplies and Services,Jan-22
Slough Borough Council,293,Surecare Slough,"1,181.80",M44C,Adult Social Care Operations,Supplies and Services,Jan-22
Slough Borough Council,293,Surecare Slough,935.90,M44C,Adult Social Care Operations,Supplies and Services,Jan-22
Slough Borough Council,293,Surecare Slough,802.20,M44C,Adult Social Care Operations,Supplies and Services,Jan-22
Slough Borough Council,293,Surecare Slough,"1,184.20",M44C,Adult Social Care Operations,Supplies and Services,Jan-22
Slough Borough Council,293,Surecare Slough,"2,406.60",M44C,Adult Social Care Operations,Supplies and Services,Jan-22
Slough Borough Council,293,Surecare Slough,"2,942.48",M44C,Adult Social Care Operations,Supplies and Services,Jan-22
Slough Borough Council,293,Surecare Slough,668.50,M44C,Adult Social Care Operations,Supplies and Services,Jan-22
Slough Borough Council,293,Surecare Slough,"2,502.10",M44C,Adult Social Care Operations,Supplies and Services,Jan-22
Slough Borough Council,293,Surecare Slough,"1,814.50",M44C,Adult Social Care Operations,Supplies and Services,Jan-22
Slough Borough Council,293,Surecare Slough,"2,139.20",M44C,Adult Social Care Operations,Supplies and Services,Jan-22
Slough Borough Council,293,Surecare Slough,749.81,M44C,Adult Social Care Operations,Supplies and Services,Jan-22
Slough Borough Council,293,Surecare Slough,"2,406.60",M44C,Adult Social Care Operations,Supplies and Services,Jan-22
Slough Borough Council,293,Surecare Slough,"2,941.40",M44C,Adult Social Care Operations,Supplies and Services,Jan-22
Slough Borough Council,293,Surecare Slough,"2,287.18",M44C,Adult Social Care Operations,Supplies and Services,Jan-22
Slough Borough Council,293,Surecare Slough,"1,260.60",M44C,Adult Social Care Operations,Supplies and Services,Jan-22
Slough Borough Council,293,Surecare Slough,"2,406.60",M44C,Adult Social Care Operations,Supplies and Services,Jan-22
Slough Borough Council,293,Surecare Slough,"2,139.20",M44D,Adult Social Care Operations,Supplies and Services,Jan-22
Slough Borough Council,293,Surecare Slough,"1,506.04",M44D,Adult Social Care Operations,Supplies and Services,Jan-22
Slough Borough Council,293,Surecare Slough,668.64,M44D,Adult Social Care Operations,Supplies and Services,Jan-22
Slough Borough Council,293,Surecare Slough,"2,406.60",M44D,Adult Social Care Operations,Supplies and Services,Jan-22
Slough Borough Council,293,Surecare Slough,"1,337.00",M44D,Adult Social Care Operations,Supplies and Services,Jan-22
Slough Borough Council,293,Surecare Slough,668.50,M44D,Adult Social Care Operations,Supplies and Services,Jan-22
Slough Borough Council,293,Surecare Slough,"2,406.60",M44D,Adult Social Care Operations,Supplies and Services,Jan-22
Slough Borough Council,293,Surecare Slough,"1,184.41",M44D,Adult Social Care Operations,Supplies and Services,Jan-22
Slough Borough Council,293,Surecare Slough,"2,406.60",M44D,Adult Social Care Operations,Supplies and Services,Jan-22
Slough Borough Council,293,Surecare Slough,"2,406.60",M44D,Adult Social Care Operations,Supplies and Services,Jan-22
Slough Borough Council,293,Surecare Slough,"2,521.20",M44D,Adult Social Care Operations,Supplies and Services,Jan-22
Slough Borough Council,293,Surecare Slough,"2,130.14",M44D,Adult Social Care Operations,Supplies and Services,Jan-22
Slough Borough Council,293,Surecare Slough,"1,336.32",M44D,Adult Social Care Operations,Supplies and Services,Jan-22
Slough Borough Council,293,Surecare Slough,"1,870.80",M44D,Adult Social Care Operations,Supplies and Services,Jan-22
Slough Borough Council,293,Surecare Slough,"1,184.88",M44D,Adult Social Care Operations,Supplies and Services,Jan-22
Slough Borough Council,293,Surecare Slough,802.20,M44E,Adult Social Care Operations,Supplies and Services,Jan-22
Slough Borough Council,293,Surecare Slough,687.60,M44E,Adult Social Care Operations,Supplies and Services,Jan-22
Slough Borough Council,293,Surecare Slough,685.06,M44F,Adult Social Care Operations,Supplies and Services,Jan-22
Slough Borough Council,293,Surecare Slough,"1,202.48",M45C,Adult Social Care Operations,Supplies and Services,Jan-22
Slough Borough Council,293,Surecare Slough,"1,061.35",M45C,Adult Social Care Operations,Supplies and Services,Jan-22
Slough Borough Council,293,Surecare Slough,"2,406.60",M47D,Adult Social Care Operations,Supplies and Services,Jan-22
Slough Borough Council,293,Surecare Slough,"1,375.48",M48C,Adult Social Care Operations,Supplies and Services,Jan-22
Slough Borough Council,293,Surecare Slough,625.85,M48C,Adult Social Care Operations,Supplies and Services,Jan-22
Slough Borough Council,293,Surecare Slough,"2,406.60",M48C,Adult Social Care Operations,Supplies and Services,Jan-22
Slough Borough Council,293,Surecare Slough,735.49,M48C,Adult Social Care Operations,Supplies and Services,Jan-22
Slough Borough Council,293,Surecare Slough,"2,916.22",M48C,Adult Social Care Operations,Supplies and Services,Jan-22
Slough Borough Council,293,Surecare Slough,"2,674.00",M48C,Adult Social Care Operations,Supplies and Services,Jan-22
Slough Borough Council,3369,Teeny Boppers Montessori School,"6,822.26",F909,DSG - Early Years,Supplies and Services,Jan-22
Slough Borough Council,807878,Thames Valley Buses,"16,670.21",D512,Major Infrastructure Projects,Supplies and Services,Jan-22
Slough Borough Council,807878,Thames Valley Buses,"16,670.21",D512,Major Infrastructure Projects,Supplies and Services,Jan-22
Slough Borough Council,807878,Thames Valley Buses,"16,670.21",D512,Major Infrastructure Projects,Supplies and Services,Jan-22
Slough Borough Council,807878,Thames Valley Buses,"16,670.71",D512,Major Infrastructure Projects,Supplies and Services,Jan-22
Slough Borough Council,807878,Thames Valley Buses,"14,853.42",D512,Major Infrastructure Projects,Supplies and Services,Jan-22
Slough Borough Council,807878,Thames Valley Buses,"16,670.71",D512,Major Infrastructure Projects,Supplies and Services,Jan-22
Slough Borough Council,807878,Thames Valley Buses,"16,670.21",D512,Major Infrastructure Projects,Supplies and Services,Jan-22
Slough Borough Council,808056,Thames Valley Tennis,700.00,C424,Communities and Leisure,Supplies and Services,Jan-22
Slough Borough Council,717,Thames Water Utilities Limited,"4,639.95",J015,Housing Revenue Account,Premises,Jan-22
Slough Borough Council,717,Thames Water Utilities Limited,"1,276.06",J015,Housing Revenue Account,Premises,Jan-22
Slough Borough Council,653,The Godolphin Junior Academy,"2,333.00",E779,DSG - Schools,Supplies and Services,Jan-22
Slough Borough Council,653,The Godolphin Junior Academy,"4,440.00",B297,Finance,Government Grants,Jan-22
Slough Borough Council,806838,The Green Room Foundation Ltd,"8,750.00",F462,DSG - High Needs Block,Supplies and Services,Jan-22
Slough Borough Council,806838,The Green Room Foundation Ltd,"12,500.00",F462,DSG - High Needs Block,Supplies and Services,Jan-22
Slough Borough Council,806838,The Green Room Foundation Ltd,"12,500.00",F462,DSG - High Needs Block,Supplies and Services,Jan-22
Slough Borough Council,1385,The Langley Academy,"7,100.00",E719,DSG - Schools,Supplies and Services,Jan-22
Slough Borough Council,803300,The Langley Academy Primary,"23,390.00",E469,DSG - Schools,Supplies and Services,Jan-22
Slough Borough Council,806847,The Langley Heritage Primary Academy,"17,980.00",E369,DSG - Schools,Supplies and Services,Jan-22
Slough Borough Council,805400,The Leading Care Company,"5,148.95",B324,Finance,Supplies and Services,Jan-22
Slough Borough Council,805400,The Leading Care Company,"2,220.27",M41D,Adult Social Care Operations,Supplies and Services,Jan-22
Slough Borough Council,805400,The Leading Care Company,970.25,M44C,Adult Social Care Operations,Supplies and Services,Jan-22
Slough Borough Council,805400,The Leading Care Company,"1,196.00",M44C,Adult Social Care Operations,Supplies and Services,Jan-22
Slough Borough Council,805400,The Leading Care Company,"3,800.16",M44D,Adult Social Care Operations,Supplies and Services,Jan-22
Slough Borough Council,805400,The Leading Care Company,"3,800.16",M48C,Adult Social Care Operations,Supplies and Services,Jan-22
Slough Borough Council,3883,The Maples Reading,"4,559.70",M26E,Adult Social Care Operations,Supplies and Services,Jan-22
Slough Borough Council,3883,The Maples Reading,"12,795.12",M26E,Adult Social Care Operations,Supplies and Services,Jan-22
Slough Borough Council,3116,The Oratory Montessori Day Nursery,"9,660.67",F909,DSG - Early Years,Supplies and Services,Jan-22
Slough Borough Council,807439,The Pines,"8,001.43",M27F,Adult Social Care Operations,Supplies and Services,Jan-22
Slough Borough Council,807439,The Pines,"8,268.14",M27F,Adult Social Care Operations,Supplies and Services,Jan-22
Slough Borough Council,807439,The Pines,"8,268.15",M27F,Adult Social Care Operations,Supplies and Services,Jan-22
Slough Borough Council,2898,The Regard Partnership Ltd,"7,231.77",M26E,Adult Social Care Operations,Supplies and Services,Jan-22
Slough Borough Council,2898,The Regard Partnership Ltd,"6,107.75",M26E,Adult Social Care Operations,Supplies and Services,Jan-22
Slough Borough Council,2898,The Regard Partnership Ltd,"5,007.74",M42E,Adult Social Care Operations,Supplies and Services,Jan-22
Slough Borough Council,2898,The Regard Partnership Ltd,"5,033.74",M42E,Adult Social Care Operations,Supplies and Services,Jan-22
Slough Borough Council,2898,The Regard Partnership Ltd,"5,353.17",M42E,Adult Social Care Operations,Supplies and Services,Jan-22
Slough Borough Council,2898,The Regard Partnership Ltd,"5,129.35",M42E,Adult Social Care Operations,Supplies and Services,Jan-22
Slough Borough Council,2898,The Regard Partnership Ltd,"6,520.63",M42E,Adult Social Care Operations,Supplies and Services,Jan-22
Slough Borough Council,2898,The Regard Partnership Ltd,"6,743.47",M42E,Adult Social Care Operations,Supplies and Services,Jan-22
Slough Borough Council,2898,The Regard Partnership Ltd,"4,519.14",M44D,Adult Social Care Operations,Supplies and Services,Jan-22
Slough Borough Council,2898,The Regard Partnership Ltd,"5,594.70",M44E,Adult Social Care Operations,Supplies and Services,Jan-22
Slough Borough Council,2209,The Specialist Education Trust,660.00,B297,Finance,Government Grants,Jan-22
Slough Borough Council,807988,The Sports Collective,"4,482.30",F382,Children & Families,TP-Other Bodies,Jan-22
Slough Borough Council,821,The Westgate School,"12,667.00",E789,DSG - Schools,Supplies and Services,Jan-22
Slough Borough Council,806360,Tiny Turtles Daycare Nursery Ltd,"13,966.09",F909,DSG - Early Years,Supplies and Services,Jan-22
Slough Borough Council,803194,TMP Worldwide,"1,877.85",D224,Planning and Transport,Indirect Employee Expenses,Jan-22
Slough Borough Council,803194,TMP Worldwide,"1,238.75",D224,Planning and Transport,Indirect Employee Expenses,Jan-22
Slough Borough Council,803194,TMP Worldwide,"1,088.75",D224,Planning and Transport,Indirect Employee Expenses,Jan-22
Slough Borough Council,803194,TMP Worldwide,525.00,D224,Planning and Transport,Indirect Employee Expenses,Jan-22
Slough Borough Council,803194,TMP Worldwide,525.00,D224,Planning and Transport,Indirect Employee Expenses,Jan-22
Slough Borough Council,803194,TMP Worldwide,"1,703.75",B348,People,Supplies and Services,Jan-22
Slough Borough Council,803194,TMP Worldwide,"1,877.85",B348,People,Supplies and Services,Jan-22
Slough Borough Council,171,Toad Hall Nursery,"23,172.85",F909,DSG - Early Years,Supplies and Services,Jan-22
Slough Borough Council,2203,Toby Miller,"1,415.00",C322,Communities and Leisure,Supplies and Services,Jan-22
Slough Borough Council,1782,Top Mill Ltd,560.00,H205,Housing (People) Services,Supplies and Services,Jan-22
Slough Borough Council,1782,Top Mill Ltd,560.00,H205,Housing (People) Services,Supplies and Services,Jan-22
Slough Borough Council,1782,Top Mill Ltd,560.00,H205,Housing (People) Services,Supplies and Services,Jan-22
Slough Borough Council,807871,Total Pest Control (UK) Limited,637.50,C001,Communities and Leisure,Supplies and Services,Jan-22
Slough Borough Council,1476,Transport For London - London Buses,"4,760.10",D512,Major Infrastructure Projects,Supplies and Services,Jan-22
Slough Borough Council,806348,Trinity Homelesss Projects,"1,500.00",H216,Housing (People) Services,Supplies and Services,Jan-22
Slough Borough Council,806348,Trinity Homelesss Projects,"3,000.00",H216,Housing (People) Services,Supplies and Services,Jan-22
Slough Borough Council,942,Turning Point,"18,406.25",A04C,Adult Social Care Commissioning,Supplies and Services,Jan-22
Slough Borough Council,942,Turning Point,"206,250.00",A04C,Adult Social Care Commissioning,Supplies and Services,Jan-22
Slough Borough Council,807414,Uniq Health Care,"1,228.00",M42E,Adult Social Care Operations,Supplies and Services,Jan-22
Slough Borough Council,807414,Uniq Health Care,"1,228.00",M42E,Adult Social Care Operations,Supplies and Services,Jan-22
Slough Borough Council,807414,Uniq Health Care,"1,228.00",M42E,Adult Social Care Operations,Supplies and Services,Jan-22
Slough Borough Council,807414,Uniq Health Care,"1,228.00",M42E,Adult Social Care Operations,Supplies and Services,Jan-22
Slough Borough Council,807414,Uniq Health Care,"1,228.00",M42E,Adult Social Care Operations,Supplies and Services,Jan-22
Slough Borough Council,807414,Uniq Health Care,"1,228.00",M42E,Adult Social Care Operations,Supplies and Services,Jan-22
Slough Borough Council,807414,Uniq Health Care,"1,228.00",M42E,Adult Social Care Operations,Supplies and Services,Jan-22
Slough Borough Council,807414,Uniq Health Care,"1,228.00",M42E,Adult Social Care Operations,Supplies and Services,Jan-22
Slough Borough Council,807414,Uniq Health Care,"1,228.00",M42E,Adult Social Care Operations,Supplies and Services,Jan-22
Slough Borough Council,807414,Uniq Health Care,"1,228.00",M42E,Adult Social Care Operations,Supplies and Services,Jan-22
Slough Borough Council,3953,Upton Court Grammar School,"2,000.00",E799,DSG - Schools,Supplies and Services,Jan-22
Slough Borough Council,577,Upton Park Hotel,"1,890.00",H205,Housing (People) Services,Supplies and Services,Jan-22
Slough Borough Council,577,Upton Park Hotel,"1,890.00",H205,Housing (People) Services,Supplies and Services,Jan-22
Slough Borough Council,577,Upton Park Hotel,"1,890.00",H205,Housing (People) Services,Supplies and Services,Jan-22
Slough Borough Council,577,Upton Park Hotel,"3,672.00",H205,Housing (People) Services,Supplies and Services,Jan-22
Slough Borough Council,577,Upton Park Hotel,"3,672.00",H205,Housing (People) Services,Supplies and Services,Jan-22
Slough Borough Council,577,Upton Park Hotel,"3,672.00",H205,Housing (People) Services,Supplies and Services,Jan-22
Slough Borough Council,577,Upton Park Hotel,"1,890.00",H205,Housing (People) Services,Supplies and Services,Jan-22
Slough Borough Council,577,Upton Park Hotel,"3,672.00",H205,Housing (People) Services,Supplies and Services,Jan-22
Slough Borough Council,577,Upton Park Hotel,"3,672.00",H205,Housing (People) Services,Supplies and Services,Jan-22
Slough Borough Council,577,Upton Park Hotel,"3,672.00",H205,Housing (People) Services,Supplies and Services,Jan-22
Slough Borough Council,577,Upton Park Hotel,"3,672.00",H205,Housing (People) Services,Supplies and Services,Jan-22
Slough Borough Council,577,Upton Park Hotel,"3,672.00",H205,Housing (People) Services,Supplies and Services,Jan-22
Slough Borough Council,577,Upton Park Hotel,"2,730.00",H205,Housing (People) Services,Supplies and Services,Jan-22
Slough Borough Council,577,Upton Park Hotel,"2,730.00",H205,Housing (People) Services,Supplies and Services,Jan-22
Slough Borough Council,577,Upton Park Hotel,"1,890.00",H205,Housing (People) Services,Supplies and Services,Jan-22
Slough Borough Council,577,Upton Park Hotel,"1,890.00",H205,Housing (People) Services,Supplies and Services,Jan-22
Slough Borough Council,577,Upton Park Hotel,"1,890.00",H205,Housing (People) Services,Supplies and Services,Jan-22
Slough Borough Council,577,Upton Park Hotel,"1,890.00",H205,Housing (People) Services,Supplies and Services,Jan-22
Slough Borough Council,577,Upton Park Hotel,"1,890.00",H205,Housing (People) Services,Supplies and Services,Jan-22
Slough Borough Council,577,Upton Park Hotel,"1,890.00",H205,Housing (People) Services,Supplies and Services,Jan-22
Slough Borough Council,577,Upton Park Hotel,"1,260.00",H205,Housing (People) Services,Supplies and Services,Jan-22
Slough Borough Council,577,Upton Park Hotel,"1,260.00",H205,Housing (People) Services,Supplies and Services,Jan-22
Slough Borough Council,577,Upton Park Hotel,"3,570.00",H205,Housing (People) Services,Supplies and Services,Jan-22
Slough Borough Council,577,Upton Park Hotel,"3,672.00",H205,Housing (People) Services,Supplies and Services,Jan-22
Slough Borough Council,577,Upton Park Hotel,"3,672.00",H205,Housing (People) Services,Supplies and Services,Jan-22
Slough Borough Council,577,Upton Park Hotel,"3,672.00",H205,Housing (People) Services,Supplies and Services,Jan-22
Slough Borough Council,577,Upton Park Hotel,"1,890.00",H205,Housing (People) Services,Supplies and Services,Jan-22
Slough Borough Council,577,Upton Park Hotel,"2,106.00",H205,Housing (People) Services,Supplies and Services,Jan-22
Slough Borough Council,577,Upton Park Hotel,"1,566.00",H205,Housing (People) Services,Supplies and Services,Jan-22
Slough Borough Council,577,Upton Park Hotel,"3,672.00",H205,Housing (People) Services,Supplies and Services,Jan-22
Slough Borough Council,577,Upton Park Hotel,"3,672.00",H205,Housing (People) Services,Supplies and Services,Jan-22
Slough Borough Council,577,Upton Park Hotel,"3,672.00",H205,Housing (People) Services,Supplies and Services,Jan-22
Slough Borough Council,577,Upton Park Hotel,"3,672.00",H205,Housing (People) Services,Supplies and Services,Jan-22
Slough Borough Council,577,Upton Park Hotel,"3,672.00",H205,Housing (People) Services,Supplies and Services,Jan-22
Slough Borough Council,577,Upton Park Hotel,"3,672.00",H205,Housing (People) Services,Supplies and Services,Jan-22
Slough Borough Council,577,Upton Park Hotel,"3,672.00",H205,Housing (People) Services,Supplies and Services,Jan-22
Slough Borough Council,577,Upton Park Hotel,"3,672.00",H205,Housing (People) Services,Supplies and Services,Jan-22
Slough Borough Council,577,Upton Park Hotel,"3,672.00",H205,Housing (People) Services,Supplies and Services,Jan-22
Slough Borough Council,577,Upton Park Hotel,"3,672.00",H205,Housing (People) Services,Supplies and Services,Jan-22
Slough Borough Council,577,Upton Park Hotel,"3,264.00",H205,Housing (People) Services,Supplies and Services,Jan-22
Slough Borough Council,577,Upton Park Hotel,"4,488.00",H205,Housing (People) Services,Supplies and Services,Jan-22
Slough Borough Council,577,Upton Park Hotel,"3,672.00",H205,Housing (People) Services,Supplies and Services,Jan-22
Slough Borough Council,577,Upton Park Hotel,"1,890.00",H205,Housing (People) Services,Supplies and Services,Jan-22
Slough Borough Council,577,Upton Park Hotel,"3,672.00",H205,Housing (People) Services,Supplies and Services,Jan-22
Slough Borough Council,577,Upton Park Hotel,"1,890.00",H205,Housing (People) Services,Supplies and Services,Jan-22
Slough Borough Council,577,Upton Park Hotel,"1,890.00",H205,Housing (People) Services,Supplies and Services,Jan-22
Slough Borough Council,577,Upton Park Hotel,"1,890.00",H205,Housing (People) Services,Supplies and Services,Jan-22
Slough Borough Council,577,Upton Park Hotel,"1,890.00",H205,Housing (People) Services,Supplies and Services,Jan-22
Slough Borough Council,577,Upton Park Hotel,"1,890.00",H205,Housing (People) Services,Supplies and Services,Jan-22
Slough Borough Council,577,Upton Park Hotel,"1,890.00",H205,Housing (People) Services,Supplies and Services,Jan-22
Slough Borough Council,577,Upton Park Hotel,"2,730.00",H205,Housing (People) Services,Supplies and Services,Jan-22
Slough Borough Council,577,Upton Park Hotel,540.00,H205,Housing (People) Services,Supplies and Services,Jan-22
Slough Borough Council,577,Upton Park Hotel,"1,890.00",H205,Housing (People) Services,Supplies and Services,Jan-22
Slough Borough Council,577,Upton Park Hotel,"3,672.00",H205,Housing (People) Services,Supplies and Services,Jan-22
Slough Borough Council,577,Upton Park Hotel,"5,304.00",H205,Housing (People) Services,Supplies and Services,Jan-22
Slough Borough Council,577,Upton Park Hotel,"3,672.00",H205,Housing (People) Services,Supplies and Services,Jan-22
Slough Borough Council,577,Upton Park Hotel,"3,672.00",H205,Housing (People) Services,Supplies and Services,Jan-22
Slough Borough Council,577,Upton Park Hotel,"3,672.00",H205,Housing (People) Services,Supplies and Services,Jan-22
Slough Borough Council,577,Upton Park Hotel,"3,672.00",H205,Housing (People) Services,Supplies and Services,Jan-22
Slough Borough Council,577,Upton Park Hotel,"3,672.00",H205,Housing (People) Services,Supplies and Services,Jan-22
Slough Borough Council,577,Upton Park Hotel,"2,970.00",H205,Housing (People) Services,Supplies and Services,Jan-22
Slough Borough Council,577,Upton Park Hotel,"3,672.00",H205,Housing (People) Services,Supplies and Services,Jan-22
Slough Borough Council,577,Upton Park Hotel,"1,890.00",H205,Housing (People) Services,Supplies and Services,Jan-22
Slough Borough Council,577,Upton Park Hotel,"3,672.00",H205,Housing (People) Services,Supplies and Services,Jan-22
Slough Borough Council,577,Upton Park Hotel,"5,304.00",H205,Housing (People) Services,Supplies and Services,Jan-22
Slough Borough Council,577,Upton Park Hotel,"3,672.00",H205,Housing (People) Services,Supplies and Services,Jan-22
Slough Borough Council,577,Upton Park Hotel,"3,672.00",H205,Housing (People) Services,Supplies and Services,Jan-22
Slough Borough Council,577,Upton Park Hotel,"1,620.00",H205,Housing (People) Services,Supplies and Services,Jan-22
Slough Borough Council,577,Upton Park Hotel,"3,672.00",H205,Housing (People) Services,Supplies and Services,Jan-22
Slough Borough Council,577,Upton Park Hotel,"2,448.00",H205,Housing (People) Services,Supplies and Services,Jan-22
Slough Borough Council,577,Upton Park Hotel,"2,448.00",H205,Housing (People) Services,Supplies and Services,Jan-22
Slough Borough Council,577,Upton Park Hotel,"6,936.00",H205,Housing (People) Services,Supplies and Services,Jan-22
Slough Borough Council,577,Upton Park Hotel,"2,310.00",H205,Housing (People) Services,Supplies and Services,Jan-22
Slough Borough Council,577,Upton Park Hotel,"1,890.00",H205,Housing (People) Services,Supplies and Services,Jan-22
Slough Borough Council,577,Upton Park Hotel,"1,890.00",H205,Housing (People) Services,Supplies and Services,Jan-22
Slough Borough Council,577,Upton Park Hotel,"1,134.00",H205,Housing (People) Services,Supplies and Services,Jan-22
Slough Borough Council,577,Upton Park Hotel,"1,026.00",H205,Housing (People) Services,Supplies and Services,Jan-22
Slough Borough Council,577,Upton Park Hotel,918.00,H205,Housing (People) Services,Supplies and Services,Jan-22
Slough Borough Council,577,Upton Park Hotel,"1,890.00",H205,Housing (People) Services,Supplies and Services,Jan-22
Slough Borough Council,577,Upton Park Hotel,"1,890.00",H205,Housing (People) Services,Supplies and Services,Jan-22
Slough Borough Council,577,Upton Park Hotel,810.00,H205,Housing (People) Services,Supplies and Services,Jan-22
Slough Borough Council,577,Upton Park Hotel,810.00,H205,Housing (People) Services,Supplies and Services,Jan-22
Slough Borough Council,577,Upton Park Hotel,"1,890.00",H205,Housing (People) Services,Supplies and Services,Jan-22
Slough Borough Council,577,Upton Park Hotel,"1,890.00",H205,Housing (People) Services,Supplies and Services,Jan-22
Slough Borough Council,577,Upton Park Hotel,"-30,890.00",H205,Housing (People) Services,Supplies and Services,Jan-22
Slough Borough Council,1212,Virgin Media Ltd,"11,512.72",B282,Digital and Strategic IT,Supplies and Services,Jan-22
Slough Borough Council,1212,Virgin Media Ltd,"3,280.97",B023,Finance,Supplies and Services,Jan-22
Slough Borough Council,1212,Virgin Media Ltd,"20,623.96",B023,Finance,Supplies and Services,Jan-22
Slough Borough Council,1212,Virgin Media Ltd,"21,699.36",B023,Finance,Supplies and Services,Jan-22
Slough Borough Council,1212,Virgin Media Ltd,738.02,P084,Capital,Capital Charges,Jan-22
Slough Borough Council,1212,Virgin Media Ltd,"40,173.33",P084,Capital,Capital Charges,Jan-22
Slough Borough Council,806099,Virtual College,500.00,F200,Schools,Supplies and Services,Jan-22
Slough Borough Council,1839,Vistascapes,"7,519.25",P006,Capital,Capital Charges,Jan-22
Slough Borough Council,1839,Vistascapes,"7,034.00",P006,Capital,Capital Charges,Jan-22
Slough Borough Council,1839,Vistascapes,970.00,P006,Capital,Supplies and Services,Jan-22
Slough Borough Council,803163,Volker Highways,966.57,P155,Capital,Capital Charges,Jan-22
Slough Borough Council,803163,Volker Highways,"29,060.39",P160,Capital,Capital Charges,Jan-22
Slough Borough Council,803163,Volker Highways,"1,170.74",P160,Capital,Capital Charges,Jan-22
Slough Borough Council,803163,Volker Highways,"32,430.14",P210,Capital,Capital Charges,Jan-22
Slough Borough Council,803163,Volker Highways,"13,216.83",D413,Major Infrastructure Projects,Supplies and Services,Jan-22
Slough Borough Council,2682,Voyage 1 Limited,"7,805.51",M26E,Adult Social Care Operations,Supplies and Services,Jan-22
Slough Borough Council,2682,Voyage 1 Limited,"5,477.92",M26E,Adult Social Care Operations,Supplies and Services,Jan-22
Slough Borough Council,2682,Voyage 1 Limited,"6,463.20",M26E,Adult Social Care Operations,Supplies and Services,Jan-22
Slough Borough Council,2682,Voyage 1 Limited,"7,146.32",M26E,Adult Social Care Operations,Supplies and Services,Jan-22
Slough Borough Council,2682,Voyage 1 Limited,"5,477.92",M26E,Adult Social Care Operations,Supplies and Services,Jan-22
Slough Borough Council,2682,Voyage 1 Limited,"5,054.19",M26E,Adult Social Care Operations,Supplies and Services,Jan-22
Slough Borough Council,2682,Voyage 1 Limited,607.11,M26E,Adult Social Care Operations,Supplies and Services,Jan-22
Slough Borough Council,2682,Voyage 1 Limited,"5,054.19",M26E,Adult Social Care Operations,Supplies and Services,Jan-22
Slough Borough Council,2682,Voyage 1 Limited,607.11,M26E,Adult Social Care Operations,Supplies and Services,Jan-22
Slough Borough Council,2682,Voyage 1 Limited,"6,463.20",M26E,Adult Social Care Operations,Supplies and Services,Jan-22
Slough Borough Council,2682,Voyage 1 Limited,"5,016.97",M27F,Adult Social Care Operations,Supplies and Services,Jan-22
Slough Borough Council,2682,Voyage 1 Limited,"5,016.97",M27F,Adult Social Care Operations,Supplies and Services,Jan-22
Slough Borough Council,2682,Voyage 1 Limited,"7,556.30",M26E,Adult Social Care Operations,Supplies and Services,Jan-22
Slough Borough Council,2682,Voyage 1 Limited,"7,556.30",M26E,Adult Social Care Operations,Supplies and Services,Jan-22
Slough Borough Council,2682,Voyage 1 Limited,-659.19,M26E,Adult Social Care Operations,External Receipts,Jan-22
Slough Borough Council,2682,Voyage 1 Limited,-687.27,M26E,Adult Social Care Operations,External Receipts,Jan-22
Slough Borough Council,2682,Voyage 1 Limited,-687.27,M26E,Adult Social Care Operations,External Receipts,Jan-22
Slough Borough Council,3436,Voyage Ltd,"5,723.62",M26E,Adult Social Care Operations,Supplies and Services,Jan-22
Slough Borough Council,3436,Voyage Ltd,"3,575.98",M26E,Adult Social Care Operations,Supplies and Services,Jan-22
Slough Borough Council,3436,Voyage Ltd,"3,575.98",M26E,Adult Social Care Operations,Supplies and Services,Jan-22
Slough Borough Council,3436,Voyage Ltd,"5,723.62",M26E,Adult Social Care Operations,Supplies and Services,Jan-22
Slough Borough Council,3436,Voyage Ltd,"5,308.80",M42E,Adult Social Care Operations,Supplies and Services,Jan-22
Slough Borough Council,3436,Voyage Ltd,"4,658.75",M42E,Adult Social Care Operations,Supplies and Services,Jan-22
Slough Borough Council,3436,Voyage Ltd,"4,676.10",M42E,Adult Social Care Operations,Supplies and Services,Jan-22
Slough Borough Council,3436,Voyage Ltd,"4,988.75",M42E,Adult Social Care Operations,Supplies and Services,Jan-22
Slough Borough Council,3436,Voyage Ltd,"1,832.68",M42E,Adult Social Care Operations,Supplies and Services,Jan-22
Slough Borough Council,3436,Voyage Ltd,"1,759.32",M42E,Adult Social Care Operations,Supplies and Services,Jan-22
Slough Borough Council,3436,Voyage Ltd,"1,759.30",M42E,Adult Social Care Operations,Supplies and Services,Jan-22
Slough Borough Council,3436,Voyage Ltd,"1,824.52",M42E,Adult Social Care Operations,Supplies and Services,Jan-22
Slough Borough Council,3436,Voyage Ltd,"1,870.77",M42E,Adult Social Care Operations,Supplies and Services,Jan-22
Slough Borough Council,3436,Voyage Ltd,"6,262.60",M42E,Adult Social Care Operations,Supplies and Services,Jan-22
Slough Borough Council,1762,Wellingtons For Langley Hall,"64,126.04",F909,DSG - Early Years,Supplies and Services,Jan-22
Slough Borough Council,2891,West Berkshire Council,"82,955.73",A08R,Adult Social Care Operations,Supplies and Services,Jan-22
Slough Borough Council,1649,Western House Primary School,"29,100.00",E439,DSG - Schools,Supplies and Services,Jan-22
Slough Borough Council,2095,White Horse Contractors Ltd,"28,366.13",P083,Capital,Capital Charges,Jan-22
Slough Borough Council,3628,White Leaf Care Ltd,"4,198.28",M26E,Adult Social Care Operations,Supplies and Services,Jan-22
Slough Borough Council,3628,White Leaf Care Ltd,"7,985.60",M27C,Adult Social Care Operations,Supplies and Services,Jan-22
Slough Borough Council,804908,Whitestone Care,"1,067.27",B298,Finance,Supplies and Services,Jan-22
Slough Borough Council,1753,Willow Primary School,"10,360.00",E499,DSG - Schools,Supplies and Services,Jan-22
Slough Borough Council,805208,Wilson & Scott (Highways) Ltd,650.00,D880,Direct Service Organisation (DSO),Supplies and Services,Jan-22
Slough Borough Council,805208,Wilson & Scott (Highways) Ltd,940.52,D880,Direct Service Organisation (DSO),Supplies and Services,Jan-22
Slough Borough Council,807549,Windsar Care (UK) LLP,"4,207.14",M15F,Adult Social Care Operations,Supplies and Services,Jan-22
Slough Borough Council,807549,Windsar Care (UK) LLP,"4,207.14",M15F,Adult Social Care Operations,Supplies and Services,Jan-22
Slough Borough Council,807549,Windsar Care (UK) LLP,"4,207.14",M15F,Adult Social Care Operations,Supplies and Services,Jan-22
Slough Borough Council,807549,Windsar Care (UK) LLP,"4,207.14",M15F,Adult Social Care Operations,Supplies and Services,Jan-22
Slough Borough Council,807549,Windsar Care (UK) LLP,"4,317.86",M18C,Adult Social Care Operations,Supplies and Services,Jan-22
Slough Borough Council,807549,Windsar Care (UK) LLP,"4,207.14",M18C,Adult Social Care Operations,Supplies and Services,Jan-22
Slough Borough Council,807549,Windsar Care (UK) LLP,"4,317.86",M18C,Adult Social Care Operations,Supplies and Services,Jan-22
Slough Borough Council,807549,Windsar Care (UK) LLP,"4,207.14",M18C,Adult Social Care Operations,Supplies and Services,Jan-22
Slough Borough Council,804807,Windsar Care Centre Ltd,"2,466.29",B298,Finance,Supplies and Services,Jan-22
Slough Borough Council,804807,Windsar Care Centre Ltd,"3,350.44",B298,Finance,Supplies and Services,Jan-22
Slough Borough Council,804807,Windsar Care Centre Ltd,"3,321.43",M15D,Adult Social Care Operations,Supplies and Services,Jan-22
Slough Borough Council,804807,Windsar Care Centre Ltd,"6,642.86",M15D,Adult Social Care Operations,Supplies and Services,Jan-22
Slough Borough Council,804807,Windsar Care Centre Ltd,"3,277.14",M15F,Adult Social Care Operations,Supplies and Services,Jan-22
Slough Borough Council,804807,Windsar Care Centre Ltd,"4,207.14",M17C,Adult Social Care Operations,Supplies and Services,Jan-22
Slough Borough Council,804807,Windsar Care Centre Ltd,"4,273.57",M17C,Adult Social Care Operations,Supplies and Services,Jan-22
Slough Borough Council,804807,Windsar Care Centre Ltd,"3,321.43",M18C,Adult Social Care Operations,Supplies and Services,Jan-22
Slough Borough Council,804807,Windsar Care Centre Ltd,"3,432.14",M18C,Adult Social Care Operations,Supplies and Services,Jan-22
Slough Borough Council,804807,Windsar Care Centre Ltd,"3,985.71",M18C,Adult Social Care Operations,Supplies and Services,Jan-22
Slough Borough Council,804807,Windsar Care Centre Ltd,"4,207.14",M18C,Adult Social Care Operations,Supplies and Services,Jan-22
Slough Borough Council,804807,Windsar Care Centre Ltd,"4,317.86",M18C,Adult Social Care Operations,Supplies and Services,Jan-22
Slough Borough Council,804807,Windsar Care Centre Ltd,"3,985.71",M18C,Adult Social Care Operations,Supplies and Services,Jan-22
Slough Borough Council,804807,Windsar Care Centre Ltd,"4,317.86",M18C,Adult Social Care Operations,Supplies and Services,Jan-22
Slough Borough Council,804807,Windsar Care Centre Ltd,"4,317.86",M18C,Adult Social Care Operations,Supplies and Services,Jan-22
Slough Borough Council,804807,Windsar Care Centre Ltd,"4,317.86",M18C,Adult Social Care Operations,Supplies and Services,Jan-22
Slough Borough Council,804807,Windsar Care Centre Ltd,"3,246.43",M18C,Adult Social Care Operations,Supplies and Services,Jan-22
Slough Borough Council,804807,Windsar Care Centre Ltd,"3,764.28",M27C,Adult Social Care Operations,Supplies and Services,Jan-22
Slough Borough Council,804807,Windsar Care Centre Ltd,"-13,500.00",M28C,Adult Social Care Operations,Supplies and Services,Jan-22
Slough Borough Council,804807,Windsar Care Centre Ltd,"4,178.57",M28C,Adult Social Care Operations,Supplies and Services,Jan-22
Slough Borough Council,804807,Windsar Care Centre Ltd,"-3,621.43",M28C,Adult Social Care Operations,Supplies and Services,Jan-22
Slough Borough Council,804807,Windsar Care Centre Ltd,"5,314.29",M28C,Adult Social Care Operations,Supplies and Services,Jan-22
Slough Borough Council,804807,Windsar Care Centre Ltd,"3,542.86",M28C,Adult Social Care Operations,Supplies and Services,Jan-22
Slough Borough Council,804807,Windsar Care Centre Ltd,"1,028.57",M28C,Adult Social Care Operations,Supplies and Services,Jan-22
Slough Borough Council,804807,Windsar Care Centre Ltd,"3,985.71",M28C,Adult Social Care Operations,Supplies and Services,Jan-22
Slough Borough Council,804807,Windsar Care Centre Ltd,"3,985.71",M28C,Adult Social Care Operations,Supplies and Services,Jan-22
Slough Borough Council,804807,Windsar Care Centre Ltd,"3,728.57",M28C,Adult Social Care Operations,Supplies and Services,Jan-22
Slough Borough Council,804807,Windsar Care Centre Ltd,"3,985.71",M28C,Adult Social Care Operations,Supplies and Services,Jan-22
Slough Borough Council,804807,Windsar Care Centre Ltd,"15,685.72",M28C,Adult Social Care Operations,Supplies and Services,Jan-22
Slough Borough Council,804807,Windsar Care Centre Ltd,"3,432.14",M29C,Adult Social Care Operations,Supplies and Services,Jan-22
Slough Borough Council,3604,Windsar Care Ltd,"4,551.97",B324,Finance,Supplies and Services,Jan-22
Slough Borough Council,3604,Windsar Care Ltd,"3,880.37",B324,Finance,Supplies and Services,Jan-22
Slough Borough Council,3604,Windsar Care Ltd,"3,985.71",M15F,Adult Social Care Operations,Supplies and Services,Jan-22
Slough Borough Council,3604,Windsar Care Ltd,"4,207.14",M15F,Adult Social Care Operations,Supplies and Services,Jan-22
Slough Borough Council,3604,Windsar Care Ltd,"2,657.14",M15F,Adult Social Care Operations,Supplies and Services,Jan-22
Slough Borough Council,3604,Windsar Care Ltd,"3,432.14",M15F,Adult Social Care Operations,Supplies and Services,Jan-22
Slough Borough Council,3604,Windsar Care Ltd,"3,321.43",M17C,Adult Social Care Operations,Supplies and Services,Jan-22
Slough Borough Council,3604,Windsar Care Ltd,"3,875.00",M18C,Adult Social Care Operations,Supplies and Services,Jan-22
Slough Borough Council,3604,Windsar Care Ltd,"3,432.14",M18C,Adult Social Care Operations,Supplies and Services,Jan-22
Slough Borough Council,3604,Windsar Care Ltd,"3,542.86",M18C,Adult Social Care Operations,Supplies and Services,Jan-22
Slough Borough Council,3604,Windsar Care Ltd,"3,764.29",M25C,Adult Social Care Operations,Supplies and Services,Jan-22
Slough Borough Council,3604,Windsar Care Ltd,"3,985.71",M25C,Adult Social Care Operations,Supplies and Services,Jan-22
Slough Borough Council,3604,Windsar Care Ltd,"3,321.43",M25C,Adult Social Care Operations,Supplies and Services,Jan-22
Slough Borough Council,3604,Windsar Care Ltd,"4,317.86",M25D,Adult Social Care Operations,Supplies and Services,Jan-22
Slough Borough Council,3604,Windsar Care Ltd,"3,321.43",M26E,Adult Social Care Operations,Supplies and Services,Jan-22
Slough Borough Council,3604,Windsar Care Ltd,"3,985.71",M27C,Adult Social Care Operations,Supplies and Services,Jan-22
Slough Borough Council,3604,Windsar Care Ltd,"3,121.43",M51C,Adult Social Care Operations,Supplies and Services,Jan-22
Slough Borough Council,807685,WR Care Services Ltd,"2,373.23",B298,Finance,Supplies and Services,Jan-22
Slough Borough Council,807685,WR Care Services Ltd,"1,567.07",B324,Finance,Supplies and Services,Jan-22
Slough Borough Council,807685,WR Care Services Ltd,980.00,M44D,Adult Social Care Operations,Supplies and Services,Jan-22
Slough Borough Council,807685,WR Care Services Ltd,980.00,M44D,Adult Social Care Operations,Supplies and Services,Jan-22
Slough Borough Council,748,YMCA St Paul�s Group,"2,250.00",H216,Housing (People) Services,Supplies and Services,Jan-22
Slough Borough Council,748,YMCA St Paul�s Group,"8,532.00",H211,Adult Social Care Operations,Supplies and Services,Jan-22
